﻿ACC.Account Name,Gross Amount,FIN.Posting Date,MCH.Merchant Name - Original,FIN.Expense Description,MCH.MCC Description,ACC.Reports To Intermediate Level 1 Name Line 1
REDACTED,8.33,01/01/2021,AMZN Digital,Children's Home Expense - Game voucher XXXXX,RECORD SHOPS,CHILDREN & YOUNG PEOPLE
REDACTED,14.99,01/01/2021,AMZNMktplace,Children's Home Expense - Slippers for CIC XXXXX,MISCELLANEOUS AND SPECIALTY RETAIL STORES,CHILDREN & YOUNG PEOPLE
REDACTED,101.80,01/01/2021,CS MORRISONS GIFT CARD,Local Welfare Assistance Scheme,BUSINESS SERVICES-NOT ELSEWHERE CLASSIFIED,PUBLIC HEALTH
REDACTED,101.80,01/01/2021,CS MORRISONS GIFT CARD,Local Welfare Assistance Scheme,BUSINESS SERVICES-NOT ELSEWHERE CLASSIFIED,PUBLIC HEALTH
REDACTED,6.66,04/01/2021,Amazon Prime MJ92W9M34,Amazon Prime subscription.,DIRECT MARKETING - CONTINUITY/SUBSCRIPTION MERCHANTS,CHILDREN & YOUNG PEOPLE
REDACTED,13.40,04/01/2021,TESCO STORE 3240,Children's Home Expense - Provisions,"GROCERY STORES, SUPERMARKETS",CHILDREN & YOUNG PEOPLE
REDACTED,50.00,04/01/2021,AMZN Digital,Children's Home Expense - Xbox voucher,RECORD SHOPS,CHILDREN & YOUNG PEOPLE
REDACTED,179.25,04/01/2021,GOOGLE  ADS6087318024,"YouTube
Suffolk Needs You #SWIS
20.12-24.12.20",ADVERTISING SERVICES,CORPORATE SERVICES
REDACTED,11.48,04/01/2021,AMZNMktplace,XXXXX Desk calendar,MISCELLANEOUS AND SPECIALTY RETAIL STORES,CHILDREN & YOUNG PEOPLE
REDACTED,59.99,04/01/2021,Amazon.co.uk MJ0QK7XH4,XXXXX 1250131- Stroller,DIRECT MARKETING-OTHER DIRECT MARKETERS/NOT ELSEW.,CHILDREN & YOUNG PEOPLE
REDACTED,29.99,04/01/2021,AMZNMktplace,XXXXX 2028816 020SL342 musical instrument,MISCELLANEOUS AND SPECIALTY RETAIL STORES,CHILDREN & YOUNG PEOPLE
REDACTED,17.00,04/01/2021,FACEBK  7535G2TPC2,Boosted Facebook post,ADVERTISING SERVICES,"GROWTH, HIGHWAYS & INFRASTRUCTURE"
REDACTED,169.99,05/01/2021,AO RETAIL LIMITED,278605. 1018W. SUHA,HOUSEHOLD APPLIANCE STORES,CHILDREN & YOUNG PEOPLE
REDACTED,21.34,05/01/2021,Amazon.co.uk MJ4QS6BU4,Antibacterial Wipes x 6 packets for Hos. Team,DIRECT MARKETING-OTHER DIRECT MARKETERS/NOT ELSEW.,ADULT & COMMUNITY SERVICES
REDACTED,21.37,05/01/2021,AMZNMktplace,Webcam 2 Lowestoft,MISCELLANEOUS AND SPECIALTY RETAIL STORES,FIRE & PUBLIC SAFETY
REDACTED,13.59,05/01/2021,AMZNMktplace,Children's Home Expense - Bike lights XXXXX,MISCELLANEOUS AND SPECIALTY RETAIL STORES,CHILDREN & YOUNG PEOPLE
REDACTED,58.41,05/01/2021,LIDL GB  STOWMARKET,Children's Home Expense - Provisions,"GROCERY STORES, SUPERMARKETS",CHILDREN & YOUNG PEOPLE
REDACTED,7.94,05/01/2021,TESCO STORE 3240,Children's Home Expense - Provisions,"GROCERY STORES, SUPERMARKETS",CHILDREN & YOUNG PEOPLE
REDACTED,26.94,05/01/2021,AMZNMktplace,Children's Home Expense - Xbox game XXXXX,MISCELLANEOUS AND SPECIALTY RETAIL STORES,CHILDREN & YOUNG PEOPLE
REDACTED,221.50,05/01/2021,H.B COMMERCIAL LTD,MOT Tests and Brake test,"AUTOMOTIVE PARTS, ACCESSORIES STORES",FIRE & PUBLIC SAFETY
REDACTED,30.00,05/01/2021,TESCO GIFT CARD,reunification food for wc 11/01/21,"GROCERY STORES, SUPERMARKETS",CHILDREN & YOUNG PEOPLE
REDACTED,34.00,05/01/2021,DVLA DRIVER ONLINE,333722/444N Driving licence for client,GOVERNMENT SERVICES-NOT ELSEWHERE CLASSIFIED,CHILDREN & YOUNG PEOPLE
REDACTED,34.00,05/01/2021,DVLA DRIVER ONLINE,420562/480N Driving licence for client,GOVERNMENT SERVICES-NOT ELSEWHERE CLASSIFIED,CHILDREN & YOUNG PEOPLE
REDACTED,74.99,05/01/2021,SPORTSDIRECT.COM,518366/1552S Clothing allowance for client,SPORTING GOODS STORES,CHILDREN & YOUNG PEOPLE
REDACTED,278.33,05/01/2021,CURRYS ONLINE,743095/494N Setting up home items for client,ELECTRONIC SALES,CHILDREN & YOUNG PEOPLE
REDACTED,195.82,05/01/2021,CURRYS ONLINE,743095/494N Setting up home items for client,ELECTRONIC SALES,CHILDREN & YOUNG PEOPLE
REDACTED,6.80,05/01/2021,MailChimp,Subscription to Mailchimp to facilitate AONB Comms,DIGITAL GOODS MULTI-CATEGORY,"GROWTH, HIGHWAYS & INFRASTRUCTURE"
REDACTED,957.74,05/01/2021,AIRBNB   HMTDPT2QKR,ACC XXXXX SW XXXXX,"LODGING-HOTELS,MOTELS,RESORTS-NOT CLASSIFIED",CHILDREN & YOUNG PEOPLE
REDACTED,45.78,06/01/2021,MAILCHIMP    MONTHLY,monthly AU mailchimp,DIRECT MARKETING - CONTINUITY/SUBSCRIPTION MERCHANTS,CHILDREN & YOUNG PEOPLE
REDACTED,143.31,06/01/2021,WAYFAIR,278605. 1018W. SUHA,"EQUIP, FURNITURE, HOME FURNSHNGS STRS (EXCPT APPL)",CHILDREN & YOUNG PEOPLE
REDACTED,285.18,06/01/2021,SUFFOLK COASTAL SERVIC,late invoice payment,BUSINESS SERVICES-NOT ELSEWHERE CLASSIFIED,FIRE & PUBLIC SAFETY
REDACTED,401.36,06/01/2021,WWW.ALZPRODUCTS.CO.UK,Customer - XXXXX 3026835 Digital Equipment,ORTHOPAEDIC GOODS - ARTIFICIAL LIMB SHOPS,ADULT & COMMUNITY SERVICES
REDACTED,9.99,06/01/2021,AMZNMKTPLACE AMAZON.CO,Stationery - desk planner,MISCELLANEOUS AND SPECIALTY RETAIL STORES,CORPORATE SERVICES
REDACTED,58.10,06/01/2021,EB  WORKSHOP CAMBRIDGE,Training course for team member,BUSINESS SERVICES-NOT ELSEWHERE CLASSIFIED,CHILDREN & YOUNG PEOPLE
REDACTED,60.00,06/01/2021,Amazon.co.uk MJ0LI8Q34,Voucher for young people attending workshop,DIRECT MARKETING-OTHER DIRECT MARKETERS/NOT ELSEW.,CHILDREN & YOUNG PEOPLE
REDACTED,896.10,06/01/2021,PRESS GANG,Laundry cleaning collection and delivery for WTC,"CLEANING, GARMENT, AND LAUNDRY SERVICES",FIRE & PUBLIC SAFETY
REDACTED,20.00,06/01/2021,HMCTS-SUFFOLK024,1215557/650S Fine for client,FINES,CHILDREN & YOUNG PEOPLE
REDACTED,27.50,06/01/2021,COPYRIGHT WITNESS LTD,Crew Manager Ind Handbook inv 522185719,"CONSULTING, MANAGEMENT AND PUBLIC RELATIONS SVCS",FIRE & PUBLIC SAFETY
REDACTED,27.50,06/01/2021,COPYRIGHT WITNESS LTD,Crew Manager Skills Work Book Jan 2020 Copyright,"CONSULTING, MANAGEMENT AND PUBLIC RELATIONS SVCS",FIRE & PUBLIC SAFETY
REDACTED,27.50,06/01/2021,COPYRIGHT WITNESS LTD,Protection Copyright Jan 2020,"CONSULTING, MANAGEMENT AND PUBLIC RELATIONS SVCS",FIRE & PUBLIC SAFETY
REDACTED,26.99,06/01/2021,AMZNMktplace,Digital Care Order :  1062132,MISCELLANEOUS AND SPECIALTY RETAIL STORES,ADULT & COMMUNITY SERVICES
REDACTED,492.28,06/01/2021,ARGOS LTD,F&E XXXXX Order number 1583295005,DISCOUNT STORES,ADULT & COMMUNITY SERVICES
REDACTED,.96,06/01/2021,POST OFFICE COUNTER,"Postage, 2 x large stamps.",POSTAL SERVICES-GOVERNMENT ONLY,CHILDREN & YOUNG PEOPLE
REDACTED,21.45,06/01/2021,QD STORES,Self seal bags & refuse sacks for PPE packs,DISCOUNT STORES,CHILDREN & YOUNG PEOPLE
REDACTED,158.32,06/01/2021,AMZNMktplace,Portable scanner for XXXXX,MISCELLANEOUS AND SPECIALTY RETAIL STORES,ADULT & COMMUNITY SERVICES
REDACTED,14.00,07/01/2021,GEN REGISTER OFFICE,"493N, ID: 415570, birth certificate",GOVERNMENT SERVICES-NOT ELSEWHERE CLASSIFIED,CHILDREN & YOUNG PEOPLE
REDACTED,174.99,07/01/2021,CURRYS ONLINE,"501N, ID: 1054954, tumble dryer",ELECTRONIC SALES,CHILDREN & YOUNG PEOPLE
REDACTED,11.00,07/01/2021,GEN REGISTER OFFICE,"504N, ID: 742535, birth certificate",GOVERNMENT SERVICES-NOT ELSEWHERE CLASSIFIED,CHILDREN & YOUNG PEOPLE
REDACTED,20.00,07/01/2021,IKEA LTD SHOP ONLINE,Display bookshelf for Pride exhibition,"EQUIP, FURNITURE, HOME FURNSHNGS STRS (EXCPT APPL)","GROWTH, HIGHWAYS & INFRASTRUCTURE"
REDACTED,-58.00,07/01/2021,BOOHOO.COM,Child in care - clothing credit,MEN'S AND WOMEN'S CLOTHING STORES,CHILDREN & YOUNG PEOPLE
REDACTED,32.99,07/01/2021,3 WISE MONKEYS SERVICE,CD Player -Fitness Testing Princes St,ELECTRONIC SALES,FIRE & PUBLIC SAFETY
REDACTED,60.40,07/01/2021,FINNEYS,Meals provided for the SRT Course delegates,BAKERIES,FIRE & PUBLIC SAFETY
REDACTED,216.98,07/01/2021,Amazon.co.uk MJ8FV9DB4,Build Cam kit,DIRECT MARKETING-OTHER DIRECT MARKETERS/NOT ELSEW.,"GROWTH, HIGHWAYS & INFRASTRUCTURE"
REDACTED,16.64,07/01/2021,AMZNMktplace,281189/1729S One-off purchase for client,MISCELLANEOUS AND SPECIALTY RETAIL STORES,CHILDREN & YOUNG PEOPLE
REDACTED,7.00,08/01/2021,iStock.com,Graphic for new website,"COMMERCIAL ART, GRAPHICS, PHOTOGRAPHY","GROWTH, HIGHWAYS & INFRASTRUCTURE"
REDACTED,20.00,08/01/2021,iStock.com,Graphic for new website,"COMMERCIAL ART, GRAPHICS, PHOTOGRAPHY","GROWTH, HIGHWAYS & INFRASTRUCTURE"
REDACTED,20.00,08/01/2021,iStock.com,graphic for new website,"COMMERCIAL ART, GRAPHICS, PHOTOGRAPHY","GROWTH, HIGHWAYS & INFRASTRUCTURE"
REDACTED,7.00,08/01/2021,iStock.com,Graphic for website,"COMMERCIAL ART, GRAPHICS, PHOTOGRAPHY","GROWTH, HIGHWAYS & INFRASTRUCTURE"
REDACTED,519.95,08/01/2021,ARGOS LTD,3 x bed frames for new Lowestoft flat.,DISCOUNT STORES,CHILDREN & YOUNG PEOPLE
REDACTED,52.47,08/01/2021,Nike,Children's Home expense - Trainers XXXXX,"SPORTS APPAREL, RIDING APPAREL STORES",CHILDREN & YOUNG PEOPLE
REDACTED,11.44,08/01/2021,RS COMPONENTS,Fine marker pens ( silver / gold) for helmet s/no,ELECTRICAL PARTS AND EQUIPMENT,FIRE & PUBLIC SAFETY
REDACTED,4.62,08/01/2021,AMZNMktplace,Tape measures for Drysuit fit measuring,MISCELLANEOUS AND SPECIALTY RETAIL STORES,FIRE & PUBLIC SAFETY
REDACTED,73.04,08/01/2021,PAYPAL  RANGEHOMELE,Picture frames for Pride exhibition,"EQUIP, FURNITURE, HOME FURNSHNGS STRS (EXCPT APPL)","GROWTH, HIGHWAYS & INFRASTRUCTURE"
REDACTED,50.00,08/01/2021,PAYPAL  CAS,Volunteer training as requested by XXXXX,"ORGANISATIONS, CHARITABLE AND SOCIAL SERVICES","GROWTH, HIGHWAYS & INFRASTRUCTURE"
REDACTED,50.00,08/01/2021,PAYPAL  CAS,Volunteer training as requested by XXXXX,"ORGANISATIONS, CHARITABLE AND SOCIAL SERVICES","GROWTH, HIGHWAYS & INFRASTRUCTURE"
REDACTED,50.00,08/01/2021,PAYPAL  CAS,Volunteer training as requested by XXXXX,"ORGANISATIONS, CHARITABLE AND SOCIAL SERVICES","GROWTH, HIGHWAYS & INFRASTRUCTURE"
REDACTED,219.20,08/01/2021,AAUK CV CREDIT CONTROL,Invoices 255991  257863  262124  262266,"AUTOMOTIVE PARTS, ACCESSORIES STORES",FIRE & PUBLIC SAFETY
REDACTED,34.14,08/01/2021,The Plastic Box Compan,Boxes as per XXXXX request -COVID purchase,INDUSTRIAL SUPPLIES NOT ELSEWHERE CLASSIFIED,FIRE & PUBLIC SAFETY
REDACTED,71.36,08/01/2021,C/GAS SAXHAM 215,Gas cylinders for WTC as per XXXXX request,"UTLTS-ELCTRC, GAS, HEATING OIL, SANITARY, WATER",FIRE & PUBLIC SAFETY
REDACTED,159.60,08/01/2021,AMZNMktplace,Chateez Cards for the Team to use with Families,MISCELLANEOUS AND SPECIALTY RETAIL STORES,CHILDREN & YOUNG PEOPLE
REDACTED,40.00,08/01/2021,AMZN Digital,children in care X box,RECORD SHOPS,CHILDREN & YOUNG PEOPLE
REDACTED,332.45,08/01/2021,ARGOS LTD,204230/1741S Setting up home items for client,DISCOUNT STORES,CHILDREN & YOUNG PEOPLE
REDACTED,-25.00,11/01/2021,AO RETAIL LIMITED,278605. 1018W. Refund of w/mch installation.,HOUSEHOLD APPLIANCE STORES,CHILDREN & YOUNG PEOPLE
REDACTED,50.00,11/01/2021,Amazon.co.uk MJ7WE6KU4,"XXXXX, XXXXX asked me to raise-competition",DIRECT MARKETING-OTHER DIRECT MARKETERS/NOT ELSEW.,"GROWTH, HIGHWAYS & INFRASTRUCTURE"
REDACTED,84.00,11/01/2021,WWW.JA.NET,Domain names SR-185003 XXXXX,"ORGANISATIONS, MEMBERSHIP-NOT ELSEWHERE CLASSIFIED",CORPORATE SERVICES
REDACTED,7.99,11/01/2021,AMZNMktplace,ORDERED IN ERROR. PAYMENT REFUNDED,MISCELLANEOUS AND SPECIALTY RETAIL STORES,CHILDREN & YOUNG PEOPLE
REDACTED,67.48,11/01/2021,SNOWBEE (UK) LTD,Purchase 2 wading poles.,SPORTING GOODS STORES,FIRE & PUBLIC SAFETY
REDACTED,22.00,11/01/2021,SOUTHEND BOROUGH COUNC,"086LS195/9
birth certificates x 2 CIC",GOVERNMENT SERVICES-NOT ELSEWHERE CLASSIFIED,CHILDREN & YOUNG PEOPLE
REDACTED,169.99,11/01/2021,AMZNMktplace,headphones ATW XXXXX,MISCELLANEOUS AND SPECIALTY RETAIL STORES,CHILDREN & YOUNG PEOPLE
REDACTED,85.34,11/01/2021,CITYSPRINT UK LIMITED,Courier - Cheaper to organise Direct,"COURIER SVC-AIR & GROUND, FREIGHT FORWARDERS",FIRE & PUBLIC SAFETY
REDACTED,781.68,11/01/2021,TWEET BINDER,Twitter adverts,COMPUTER NETWORK/INFORMATION SERVICES,CORPORATE SERVICES
REDACTED,209.72,11/01/2021,RS COMPONENTS,Solenoid valve,ELECTRICAL PARTS AND EQUIPMENT,FIRE & PUBLIC SAFETY
REDACTED,39.95,11/01/2021,MATALAN.CO.UK,Children's Home Expense - School uniform XXXXX,MEN'S AND WOMEN'S CLOTHING STORES,CHILDREN & YOUNG PEOPLE
REDACTED,25.00,11/01/2021,FACEBK  SDMJQYJQC2,Boosted Facebook post,ADVERTISING SERVICES,"GROWTH, HIGHWAYS & INFRASTRUCTURE"
REDACTED,20.83,11/01/2021,SCREWFIX DIRECT,Lock for yard,"BUILDING MATERIALS, LUMBER STORES","GROWTH, HIGHWAYS & INFRASTRUCTURE"
REDACTED,30.00,11/01/2021,TESCO GIFT CARD,reunification food,"GROCERY STORES, SUPERMARKETS",CHILDREN & YOUNG PEOPLE
REDACTED,19.99,11/01/2021,ARGOS LTD,children in care controller,DISCOUNT STORES,CHILDREN & YOUNG PEOPLE
REDACTED,-19.99,11/01/2021,BURY ST EDMUNDS,children in care Power A X box,DISCOUNT STORES,CHILDREN & YOUNG PEOPLE
REDACTED,41.00,11/01/2021,ASDA  STORES 4218,children in care provisions,"GROCERY STORES, SUPERMARKETS",CHILDREN & YOUNG PEOPLE
REDACTED,129.99,11/01/2021,ARGOS LTD,children in care smart tv,DISCOUNT STORES,CHILDREN & YOUNG PEOPLE
REDACTED,11.99,11/01/2021,ZOOM.US 888-799-9666,BEE Zoom Subscription,TELECOM INCL PREPAID/RECURRING PHONE SVCS,"GROWTH, HIGHWAYS & INFRASTRUCTURE"
REDACTED,4.05,11/01/2021,MOONPIG,"Get well card for XXXXX, RO Panel Member",SUNDRY GENERAL MERCHANDISE,CHILDREN & YOUNG PEOPLE
REDACTED,-103.99,11/01/2021,JD SPORTS INTERNET,1090191/285S Christmas allowance for client refund,SPORTING GOODS STORES,CHILDREN & YOUNG PEOPLE
REDACTED,46.20,11/01/2021,IRCAS,361134/1762S Rail fine for client,FINES,CHILDREN & YOUNG PEOPLE
REDACTED,166.95,11/01/2021,ARGOS LTD,F&E XXXXX - Order Number 1560026444,DISCOUNT STORES,ADULT & COMMUNITY SERVICES
REDACTED,19.17,11/01/2021,AMZNMktplace,Children in care - Equip purchase/bedding,MISCELLANEOUS AND SPECIALTY RETAIL STORES,CHILDREN & YOUNG PEOPLE
REDACTED,14.99,11/01/2021,OCTOPUSPLUSH,Children in care - Teddy bear,MISCELLANEOUS AND SPECIALTY RETAIL STORES,CHILDREN & YOUNG PEOPLE
REDACTED,23.50,12/01/2021,MARKS&SPENCER PLC,1270420. 793W Ch'mas allow.,"GROCERY STORES, SUPERMARKETS",CHILDREN & YOUNG PEOPLE
REDACTED,107.53,12/01/2021,AMZNMKTPLACE AMAZON.CO,578298. 1020W. One off re baby items,MISCELLANEOUS AND SPECIALTY RETAIL STORES,CHILDREN & YOUNG PEOPLE
REDACTED,192.00,12/01/2021,HART CARS,371160 1030W. Taxi to school,LIMOUSINES AND TAXICABS,CHILDREN & YOUNG PEOPLE
REDACTED,20.83,12/01/2021,AMZN Digital,Children's Home Expense - Roblox game voucher XXXXX,RECORD SHOPS,CHILDREN & YOUNG PEOPLE
REDACTED,203.61,12/01/2021,FOREWOOD FLOORS LTD,Children's Home Expense - Flooring for XXXXX's room,FLOOR COVERING STORES,CHILDREN & YOUNG PEOPLE
REDACTED,203.62,12/01/2021,FOREWOOD FLOORS LTD,Children's Home Expense - Flooring for XXXXX's room,FLOOR COVERING STORES,CHILDREN & YOUNG PEOPLE
REDACTED,341.99,12/01/2021,SITEBOX LIMITED,1 x Large trolley for WTC site,INDUSTRIAL SUPPLIES NOT ELSEWHERE CLASSIFIED,FIRE & PUBLIC SAFETY
REDACTED,683.98,12/01/2021,SITEBOX LIMITED,2 large trolleys for WTC,INDUSTRIAL SUPPLIES NOT ELSEWHERE CLASSIFIED,FIRE & PUBLIC SAFETY
REDACTED,20.00,12/01/2021,AMZN Digital,children in care amazon digital,RECORD SHOPS,CHILDREN & YOUNG PEOPLE
REDACTED,6.24,12/01/2021,PAYPAL  ADEJUPP EBAY A,HDMI/VGA Adaptor,PROFESSIONAL SERVICES - NOT ELSEWHERE CLASSIFIED,"GROWTH, HIGHWAYS & INFRASTRUCTURE"
REDACTED,5.99,12/01/2021,NETFLIX.COM,Children in Care - Activity,"CABLE, SATELLITE, OTHER PAY TELEVISION, RADIO SVCS",CHILDREN & YOUNG PEOPLE
REDACTED,158.32,12/01/2021,AMZNMktplace,Portable scanner for XXXXX,MISCELLANEOUS AND SPECIALTY RETAIL STORES,ADULT & COMMUNITY SERVICES
REDACTED,80.00,13/01/2021,JD SPORTS INTERNET,"511N, ID: 440814, joggers",SPORTING GOODS STORES,CHILDREN & YOUNG PEOPLE
REDACTED,219.99,13/01/2021,ARGOS LTD,"513N, ID: 331759 cooker",DISCOUNT STORES,CHILDREN & YOUNG PEOPLE
REDACTED,409.98,13/01/2021,ARGOS LTD,"513N, ID: 331759, washing machine, fridge freezer",DISCOUNT STORES,CHILDREN & YOUNG PEOPLE
REDACTED,79.69,13/01/2021,NEW LOOK INTERNET,1270420. 1021W. Clothing Allow.,WOMEN'S READY-TO-WEAR STORES,CHILDREN & YOUNG PEOPLE
REDACTED,85.00,13/01/2021,OFFICE,1270420. 793W. Ch'mas Allow.,SHOE STORES,CHILDREN & YOUNG PEOPLE
REDACTED,8.40,13/01/2021,1 AND 1 IONOS LTD,Hosting for website,COMPUTER NETWORK/INFORMATION SERVICES,CHILDREN & YOUNG PEOPLE
REDACTED,24.21,13/01/2021,AMZNMktplace,Lockable Box - Medicines & home Safety LAS 3033066,MISCELLANEOUS AND SPECIALTY RETAIL STORES,ADULT & COMMUNITY SERVICES
REDACTED,3.32,13/01/2021,AMZNMktplace,stationery for service development team,MISCELLANEOUS AND SPECIALTY RETAIL STORES,"GROWTH, HIGHWAYS & INFRASTRUCTURE"
REDACTED,20.99,13/01/2021,SPORTSDIRECT.COM,Children's Home expense - joggers XXXXX,SPORTING GOODS STORES,CHILDREN & YOUNG PEOPLE
REDACTED,9.03,13/01/2021,AMZNMktplace,Children's Home Expense - watch XXXXX,MISCELLANEOUS AND SPECIALTY RETAIL STORES,CHILDREN & YOUNG PEOPLE
REDACTED,20.00,13/01/2021,AMZN Digital,child in care - activity xbox card,RECORD SHOPS,CHILDREN & YOUNG PEOPLE
REDACTED,20.00,13/01/2021,AMZN Digital,Child in care - Activity xbox card,RECORD SHOPS,CHILDREN & YOUNG PEOPLE
REDACTED,3.16,13/01/2021,D & L STANTON LTD,Milk,"MISC FOOD STORE-CONVENIENCE,MRKT,SPLTY,VENDNG MACS",CHILDREN & YOUNG PEOPLE
REDACTED,39.00,13/01/2021,BRISTOS RENAULT IPSWIC,AX16 EWC MOT Test,"AUTO & TRUCK DLRS-SALES,SVC, REPRS,PRTS, & LEASING",FIRE & PUBLIC SAFETY
REDACTED,353.36,13/01/2021,BRISTOS RENAULT IPSWIC,AY11AZP MOT Test and repairs,"AUTO & TRUCK DLRS-SALES,SVC, REPRS,PRTS, & LEASING",FIRE & PUBLIC SAFETY
REDACTED,11.44,13/01/2021,AMZNMKTPLACE AMAZON.CO,HDMI to VGA Cable for XXXXX,MISCELLANEOUS AND SPECIALTY RETAIL STORES,FIRE & PUBLIC SAFETY
REDACTED,175.99,13/01/2021,AMZNMktplace,1178440/1766S Setting up home items for client,MISCELLANEOUS AND SPECIALTY RETAIL STORES,CHILDREN & YOUNG PEOPLE
REDACTED,10.00,13/01/2021,Amazon.co.uk MJ1CU0YR4,1204542/1759S Birthday allowance for client,DIRECT MARKETING-OTHER DIRECT MARKETERS/NOT ELSEW.,CHILDREN & YOUNG PEOPLE
REDACTED,45.82,13/01/2021,CURRYS ONLINE,2016809/1764S Setting up home item for client,ELECTRONIC SALES,CHILDREN & YOUNG PEOPLE
REDACTED,-149.99,13/01/2021,eBay O 25-06265-43417,283990/1691S Setting up home item for client refun,DEPARTMENT STORES,CHILDREN & YOUNG PEOPLE
REDACTED,-70.06,13/01/2021,AMZNMKTPLACE AMAZON.CO,367126/1698S Setting up home item for client refun,MISCELLANEOUS AND SPECIALTY RETAIL STORES,CHILDREN & YOUNG PEOPLE
REDACTED,132.71,13/01/2021,Amazon.co.uk MJ6651YB4,504136/1747S Setting up home item for client,DIRECT MARKETING-OTHER DIRECT MARKETERS/NOT ELSEW.,CHILDREN & YOUNG PEOPLE
REDACTED,59.99,13/01/2021,AMZNMKTPLACE AMAZON.CO,504136/1747S Setting up home item for client,MISCELLANEOUS AND SPECIALTY RETAIL STORES,CHILDREN & YOUNG PEOPLE
REDACTED,33.33,13/01/2021,TIMPSON LTD,Key cutting 4 x front door 4 x gate,MISCELLANEOUS AND SPECIALTY RETAIL STORES,CHILDREN & YOUNG PEOPLE
REDACTED,105.76,13/01/2021,WWW.RYMAN.CO.UK,Stationary equipment unable to procure on P2P,"OFFICE, SCHOOL SUPPLY, AND STATIONERY STORES",FIRE & PUBLIC SAFETY
REDACTED,30.00,14/01/2021,AMZNMKTPLACE AMAZON.CO,Screen for Deaf team - XXXXX,MISCELLANEOUS AND SPECIALTY RETAIL STORES,CHILDREN & YOUNG PEOPLE
REDACTED,16.93,14/01/2021,ROYAL MAIL ONLINE SHOP,Large letter stamps for the office,POSTAL SERVICES-GOVERNMENT ONLY,"GROWTH, HIGHWAYS & INFRASTRUCTURE"
REDACTED,-7.99,14/01/2021,AMZ Just Beauty UK,ORDERED IN ERROR. REFUNDED TO ACCOUNT,MISCELLANEOUS AND SPECIALTY RETAIL STORES,CHILDREN & YOUNG PEOPLE
REDACTED,5.99,14/01/2021,NETFLIX.COM,Children's Home Expense - Activity,"CABLE, SATELLITE, OTHER PAY TELEVISION, RADIO SVCS",CHILDREN & YOUNG PEOPLE
REDACTED,11.66,14/01/2021,SCREWFIX DIR. LTD,LFT materials,"BUILDING MATERIALS, LUMBER STORES",FIRE & PUBLIC SAFETY
REDACTED,16.27,14/01/2021,MCDONALDS,Child in care - group activity,FAST FOOD RESTAURANTS,CHILDREN & YOUNG PEOPLE
REDACTED,19.48,14/01/2021,AMZNMKTPLACE AMAZON.CO,Paint by numbers XXXXX 2012612 020SL350,MISCELLANEOUS AND SPECIALTY RETAIL STORES,CHILDREN & YOUNG PEOPLE
REDACTED,47.00,14/01/2021,GEN REGISTER OFFICE,birth certificates,GOVERNMENT SERVICES-NOT ELSEWHERE CLASSIFIED,CHILDREN & YOUNG PEOPLE
REDACTED,157.99,14/01/2021,Amazon.co.uk MV4P68CD4,FLStudio Producer Edition for YP Laptop 086CJ206/1,DIRECT MARKETING-OTHER DIRECT MARKETERS/NOT ELSEW.,CHILDREN & YOUNG PEOPLE
REDACTED,32.90,14/01/2021,Amazon.co.uk MV9AX5CP4,1178440/1766S Setting up home items for client,DIRECT MARKETING-OTHER DIRECT MARKETERS/NOT ELSEW.,CHILDREN & YOUNG PEOPLE
REDACTED,89.96,14/01/2021,AMZNMktplace,1178440/1766S Setting up home items for client,MISCELLANEOUS AND SPECIALTY RETAIL STORES,CHILDREN & YOUNG PEOPLE
REDACTED,49.99,14/01/2021,ARGOS LTD,1222916/1773S Equipment for education for client,DISCOUNT STORES,CHILDREN & YOUNG PEOPLE
REDACTED,16.99,14/01/2021,AMZNMKTPLACE AMAZON.CO,2016809/1764S Setting up home item for client,MISCELLANEOUS AND SPECIALTY RETAIL STORES,CHILDREN & YOUNG PEOPLE
REDACTED,13.67,14/01/2021,AMZNMktplace,504136/1747S Setting up home item for client,MISCELLANEOUS AND SPECIALTY RETAIL STORES,CHILDREN & YOUNG PEOPLE
REDACTED,38.32,14/01/2021,AMZNMKTPLACE AMAZON.CO,504136/1747S Setting up home item for client,MISCELLANEOUS AND SPECIALTY RETAIL STORES,CHILDREN & YOUNG PEOPLE
REDACTED,64.99,14/01/2021,AMZNMktplace,504136/1747S Setting up home item for client,MISCELLANEOUS AND SPECIALTY RETAIL STORES,CHILDREN & YOUNG PEOPLE
REDACTED,79.80,14/01/2021,AMZNMktplace,Disposable Face Masks for Various UASC (20 packs),MISCELLANEOUS AND SPECIALTY RETAIL STORES,CHILDREN & YOUNG PEOPLE
REDACTED,60.00,14/01/2021,EB  EXTRA CARE HOUSING,XXXXX attendance at Extra Care Housing Workshp,BUSINESS SERVICES-NOT ELSEWHERE CLASSIFIED,ADULT & COMMUNITY SERVICES
REDACTED,14.16,14/01/2021,SCREWFIX DIRECT,sledge hammer,"BUILDING MATERIALS, LUMBER STORES",FIRE & PUBLIC SAFETY
REDACTED,6.34,14/01/2021,SCREWFIX DIRECT,Drill bits for Traffic Survey work,"BUILDING MATERIALS, LUMBER STORES","GROWTH, HIGHWAYS & INFRASTRUCTURE"
REDACTED,24.38,14/01/2021,SCREWFIX DIRECT,Drill bits for Traffic Survey work,"BUILDING MATERIALS, LUMBER STORES","GROWTH, HIGHWAYS & INFRASTRUCTURE"
REDACTED,75.00,14/01/2021,WWW.FASTCO.CO.UK,Thunderbolts for Traffic Survey tube installation,HARDWARE STORES,"GROWTH, HIGHWAYS & INFRASTRUCTURE"
REDACTED,14.00,14/01/2021,GEN REGISTER OFFICE,Death certificate,GOVERNMENT SERVICES-NOT ELSEWHERE CLASSIFIED,CORPORATE SERVICES
REDACTED,95.26,14/01/2021,WWW.RYMAN.CO.UK,Stationary unable to procure on P2P,"OFFICE, SCHOOL SUPPLY, AND STATIONERY STORES",FIRE & PUBLIC SAFETY
REDACTED,-126.91,14/01/2021,WWW.RYMAN.CO.UK,This transaction was cancelled,"OFFICE, SCHOOL SUPPLY, AND STATIONERY STORES",FIRE & PUBLIC SAFETY
REDACTED,349.00,15/01/2021,DREAMS LTD,"516N ID: 464258, mattress","EQUIP, FURNITURE, HOME FURNSHNGS STRS (EXCPT APPL)",CHILDREN & YOUNG PEOPLE
REDACTED,332.49,15/01/2021,WF  WAYFAIR 3498178454,"516N, ID: 464258, bed, coffee table","EQUIP, FURNITURE, HOME FURNSHNGS STRS (EXCPT APPL)",CHILDREN & YOUNG PEOPLE
REDACTED,25.28,15/01/2021,MailChimp,Ongoing subscription OBO Education & Learning Team,DIGITAL GOODS MULTI-CATEGORY,CHILDREN & YOUNG PEOPLE
REDACTED,6.66,15/01/2021,Amazon Prime MV1AQ8F64,Children's Home Expense - Activity,DIRECT MARKETING - CONTINUITY/SUBSCRIPTION MERCHANTS,CHILDREN & YOUNG PEOPLE
REDACTED,79.76,15/01/2021,AMZNMktplace,Arm covers and Shoe protectors for Coastal office,MISCELLANEOUS AND SPECIALTY RETAIL STORES,ADULT & COMMUNITY SERVICES
REDACTED,66.66,15/01/2021,Amazon.co.uk MV3KA2F44,Catering Equipment - Princes Street,DIRECT MARKETING-OTHER DIRECT MARKETERS/NOT ELSEW.,FIRE & PUBLIC SAFETY
REDACTED,314.44,15/01/2021,AMZNMKTPLACE AMAZON.CO,LFT - clinical waste bins,MISCELLANEOUS AND SPECIALTY RETAIL STORES,FIRE & PUBLIC SAFETY
REDACTED,18.60,15/01/2021,WM MORRISONS STORE,child in care - activity XXXXX,"GROCERY STORES, SUPERMARKETS",CHILDREN & YOUNG PEOPLE
REDACTED,29.99,15/01/2021,ARGOS LTD,child in care - Equipment,DISCOUNT STORES,CHILDREN & YOUNG PEOPLE
REDACTED,6.19,15/01/2021,MCDONALDS,child in care - group activity,FAST FOOD RESTAURANTS,CHILDREN & YOUNG PEOPLE
REDACTED,20.00,15/01/2021,PPOINT_ MORTON CONVENI,child in care - XXXXX isolating covid activity,"MISC FOOD STORE-CONVENIENCE,MRKT,SPLTY,VENDNG MACS",CHILDREN & YOUNG PEOPLE
REDACTED,110.73,15/01/2021,ASDA STORES LTD 5729,child in care - provisions,"GROCERY STORES, SUPERMARKETS",CHILDREN & YOUNG PEOPLE
REDACTED,157.32,15/01/2021,ALDI 776 147,Child in care - provisions,"GROCERY STORES, SUPERMARKETS",CHILDREN & YOUNG PEOPLE
REDACTED,166.66,15/01/2021,ARGOS LTD,Children in care - replacement fridge freezer,DISCOUNT STORES,CHILDREN & YOUNG PEOPLE
REDACTED,114.00,15/01/2021,ROYAL MAIL ONLINE SHOP,2nd class stamps for Woodbridge registrars,POSTAL SERVICES-GOVERNMENT ONLY,CORPORATE SERVICES
REDACTED,700.57,15/01/2021,FACEBK NXNAUYWNF2,Facebook Adverts,ADVERTISING SERVICES,CORPORATE SERVICES
REDACTED,40.00,15/01/2021,FACEBK  ZVREKYEQC2,Boosted Facebook post,ADVERTISING SERVICES,"GROWTH, HIGHWAYS & INFRASTRUCTURE"
REDACTED,137.72,15/01/2021,ALDI 65 776,children in care provisions,"GROCERY STORES, SUPERMARKETS",CHILDREN & YOUNG PEOPLE
REDACTED,58.69,15/01/2021,WWW.TAKEAWAY.JE,children in care - take away activity kids meeting,"EATING PLACES, RESTAURANTS",CHILDREN & YOUNG PEOPLE
REDACTED,64.00,15/01/2021,AMZNMktplace,1178440/1766S Setting up home allowance for client,MISCELLANEOUS AND SPECIALTY RETAIL STORES,CHILDREN & YOUNG PEOPLE
REDACTED,12.49,15/01/2021,AMZNMktplace,1178440/1766S Setting up home item for client,MISCELLANEOUS AND SPECIALTY RETAIL STORES,CHILDREN & YOUNG PEOPLE
REDACTED,13.67,15/01/2021,AMZNMktplace,1178440-1766S Setting up home item for client,MISCELLANEOUS AND SPECIALTY RETAIL STORES,CHILDREN & YOUNG PEOPLE
REDACTED,3.32,15/01/2021,AMZNMKTPLACE AMAZON.CO,2016809/1764S Setting up home item for client,MISCELLANEOUS AND SPECIALTY RETAIL STORES,CHILDREN & YOUNG PEOPLE
REDACTED,38.95,18/01/2021,AMZNMktplace,Amazon purchase to support SCC CISS Team manager,MISCELLANEOUS AND SPECIALTY RETAIL STORES,CHILDREN & YOUNG PEOPLE
REDACTED,22.00,18/01/2021,SMARTY SYMBOLS LLC,Software for CISS Service,"COMPUTERS, COMPUTER PERIPHERAL EQUIPMENT, SOFTWARE",CHILDREN & YOUNG PEOPLE
REDACTED,286.98,18/01/2021,AMZNMKTPLACE AMAZON.CO,289224 1024W SUHA,MISCELLANEOUS AND SPECIALTY RETAIL STORES,CHILDREN & YOUNG PEOPLE
REDACTED,299.57,18/01/2021,BYTEMARK HOSTING,One Suffolk Hosting - XXXXX,COMPUTER SOFTWARE STORES,CORPORATE SERVICES
REDACTED,87.06,18/01/2021,Amazon.co.uk MV0KX4444,2x Silent Night Radiators LAS ID 3020094,DIRECT MARKETING-OTHER DIRECT MARKETERS/NOT ELSEW.,ADULT & COMMUNITY SERVICES
REDACTED,8.33,18/01/2021,AMZN Digital,Children's Home Expense - game voucher,RECORD SHOPS,CHILDREN & YOUNG PEOPLE
REDACTED,8.32,18/01/2021,Dropbox,Dropbox upgrade for sharing exhibition files,COMPUTER NETWORK/INFORMATION SERVICES,"GROWTH, HIGHWAYS & INFRASTRUCTURE"
REDACTED,20.87,18/01/2021,PAYPAL  SCREWFIX,Spanner and gaffer tape for exhibition cases,"DURABLE GOODS, NOT ELSEWHERE CLASSIFIED","GROWTH, HIGHWAYS & INFRASTRUCTURE"
REDACTED,102.29,18/01/2021,WWW.ALZPRODUCTS.CO.UK,Bed Leaving Alarm for Customer XXXXX3518624,ORTHOPAEDIC GOODS - ARTIFICIAL LIMB SHOPS,ADULT & COMMUNITY SERVICES
REDACTED,222.34,18/01/2021,AMZNMktplace,"LFT Equipment - trays, pens, bins, timers",MISCELLANEOUS AND SPECIALTY RETAIL STORES,FIRE & PUBLIC SAFETY
REDACTED,22.00,18/01/2021,WWW.LGSS.CO.UK,086CR153/1 x birth certificates CIN,"COLLEGES, UNIV, PRO SCHOOLS, JUNIOR COLLEGES",CHILDREN & YOUNG PEOPLE
REDACTED,20.00,18/01/2021,PPOINT_ MORTON CONVENI,Child in care - XXXXX phone credit,"MISC FOOD STORE-CONVENIENCE,MRKT,SPLTY,VENDNG MACS",CHILDREN & YOUNG PEOPLE
REDACTED,6.66,18/01/2021,Amazon Prime MV32Z1ZC4,Child in care - subscription,DIRECT MARKETING - CONTINUITY/SUBSCRIPTION MERCHANTS,CHILDREN & YOUNG PEOPLE
REDACTED,79.66,18/01/2021,FACEBK PJKEEZJPF2,Facebook advertising,ADVERTISING SERVICES,CORPORATE SERVICES
REDACTED,85.85,18/01/2021,WWW.PRESERVATIONEQUIPM,Tyvek tags requested by XXXXX - decant budget,"PUBLIC WAREHOUSING-FARM, REFRIG GOODS, HHG STORAGE","GROWTH, HIGHWAYS & INFRASTRUCTURE"
REDACTED,48.00,18/01/2021,IPSWICH BOROUGH CO,Parking Permits for SC Staff,GOVERNMENT SERVICES-NOT ELSEWHERE CLASSIFIED,CHILDREN & YOUNG PEOPLE
REDACTED,29.97,18/01/2021,AMZNMktplace,XXXXX 2014737 020SL356 sport equipment,MISCELLANEOUS AND SPECIALTY RETAIL STORES,CHILDREN & YOUNG PEOPLE
REDACTED,97.73,18/01/2021,THE OUTDOORS COMPANY,3 pairs of gloves for Instuctors,SPORTING GOODS STORES,FIRE & PUBLIC SAFETY
REDACTED,12.73,18/01/2021,Amazon.co.uk MV9CK0NP4,Ink for printer for XXXXX,DIRECT MARKETING-OTHER DIRECT MARKETERS/NOT ELSEW.,FIRE & PUBLIC SAFETY
REDACTED,37.40,18/01/2021,Amazon.co.uk MV5MB8NI4,Urgent order of non-encrypted USB sticks for court,DIRECT MARKETING-OTHER DIRECT MARKETERS/NOT ELSEW.,FIRE & PUBLIC SAFETY
REDACTED,153.84,18/01/2021,AMZNMktplace,children in care amazon cups plates bowls,MISCELLANEOUS AND SPECIALTY RETAIL STORES,CHILDREN & YOUNG PEOPLE
REDACTED,14.99,18/01/2021,AMZN Digital,children in care amazon DVDs,RECORD SHOPS,CHILDREN & YOUNG PEOPLE
REDACTED,20.83,18/01/2021,AMZN Digital,Child in care - XXXXX birthday present,RECORD SHOPS,CHILDREN & YOUNG PEOPLE
REDACTED,23.32,18/01/2021,Amazon.co.uk MV8Q74ZL4,Child in care - XXXXX's birthday lego,DIRECT MARKETING-OTHER DIRECT MARKETERS/NOT ELSEW.,CHILDREN & YOUNG PEOPLE
REDACTED,16.98,18/01/2021,AMZNMKTPLACE AMAZON.CO,Children in care - sensory toys,MISCELLANEOUS AND SPECIALTY RETAIL STORES,CHILDREN & YOUNG PEOPLE
REDACTED,18.70,18/01/2021,AMZNMktplace,Children in care - sensory toys,MISCELLANEOUS AND SPECIALTY RETAIL STORES,CHILDREN & YOUNG PEOPLE
REDACTED,9.99,18/01/2021,AMZNMKTPLACE AMAZON.CO,1178440/1784S setting up home item for client,MISCELLANEOUS AND SPECIALTY RETAIL STORES,CHILDREN & YOUNG PEOPLE
REDACTED,93.73,18/01/2021,AMZNMKTPLACE AMAZON.CO,1178440/1784S setting up home item for client,MISCELLANEOUS AND SPECIALTY RETAIL STORES,CHILDREN & YOUNG PEOPLE
REDACTED,10.82,18/01/2021,AMZNMKTPLACE AMAZON.CO,1178440/1784S setting up home item for client,MISCELLANEOUS AND SPECIALTY RETAIL STORES,CHILDREN & YOUNG PEOPLE
REDACTED,13.49,18/01/2021,AMZNMKTPLACE AMAZON.CO,1178440/1784S setting up home item for client,MISCELLANEOUS AND SPECIALTY RETAIL STORES,CHILDREN & YOUNG PEOPLE
REDACTED,208.94,18/01/2021,ARGOS LTD,F&EXXXXX201221-01,DISCOUNT STORES,ADULT & COMMUNITY SERVICES
REDACTED,60.00,18/01/2021,CCS Avenue Taxis,Client travel,LIMOUSINES AND TAXICABS,CHILDREN & YOUNG PEOPLE
REDACTED,71.65,19/01/2021,SCREWFIX DIRECT,276648 1043W. Workwear,"BUILDING MATERIALS, LUMBER STORES",CHILDREN & YOUNG PEOPLE
REDACTED,114.00,19/01/2021,VIKING UK,Dictaphone for XXXXX/XXXXX,STATIONERY/OFFICE SUPPLIES/PRINTING & WRITING PAP.,"GROWTH, HIGHWAYS & INFRASTRUCTURE"
REDACTED,8.00,19/01/2021,BYTEMARK HOSTING,One Suffolk Hosting - XXXXX,COMPUTER SOFTWARE STORES,CORPORATE SERVICES
REDACTED,1023.32,19/01/2021,WWW.MONEYCLAIM.GOV,online money claim re (51972),GOVERNMENT SERVICES-NOT ELSEWHERE CLASSIFIED,CORPORATE SERVICES
REDACTED,29.16,19/01/2021,AMZNMktplace,Lockable Medication Box LAS ID 613729,MISCELLANEOUS AND SPECIALTY RETAIL STORES,ADULT & COMMUNITY SERVICES
REDACTED,250.00,19/01/2021,WWW.IPSEA.  REGA46YQZ4,SEN Law Conference SENDIASS,SCHOOLS & EDUCATIONAL SVC-NOT ELSEWHERE CLASSIFIED,CHILDREN & YOUNG PEOPLE
REDACTED,44.00,19/01/2021,GEN REGISTER OFFICE,"18/1, 4 x Birth Certs (BC0005,6,7 & BC0009)",GOVERNMENT SERVICES-NOT ELSEWHERE CLASSIFIED,CHILDREN & YOUNG PEOPLE
REDACTED,25.99,19/01/2021,BINS N BENCHES,Netting Fasteners,LAWN AND GARDEN SUPPLY STORES,"GROWTH, HIGHWAYS & INFRASTRUCTURE"
REDACTED,12.49,19/01/2021,AMZNMKTPLACE AMAZON.CO,1178440/1784S Setting up home item for client,MISCELLANEOUS AND SPECIALTY RETAIL STORES,CHILDREN & YOUNG PEOPLE
REDACTED,40.82,19/01/2021,AMZNMKTPLACE AMAZON.CO,1178440/1784S Setting up home items for client,MISCELLANEOUS AND SPECIALTY RETAIL STORES,CHILDREN & YOUNG PEOPLE
REDACTED,23.34,19/01/2021,ARGOS LTD,2002598/1794S Setting up home item for client,DISCOUNT STORES,CHILDREN & YOUNG PEOPLE
REDACTED,20.50,19/01/2021,PAYPAL  DENGYUMAOYI EB,2002598/624S Birthday allowance for client,VARIETY STORES,CHILDREN & YOUNG PEOPLE
REDACTED,7.99,19/01/2021,PAYPAL  YUSHUN01 EBAY,2002598/624S Birthday allowance for client,MISCELLANEOUS AND SPECIALTY RETAIL STORES,CHILDREN & YOUNG PEOPLE
REDACTED,6.79,19/01/2021,PAYPAL  RATH EBAY RATH,2002598/624S Birthday allowance for client,"CLOCK, JEWELRY, AND WATCH REPAIR SHOPS",CHILDREN & YOUNG PEOPLE
REDACTED,21.99,19/01/2021,eBay O 25-06426-30413,2002598/624S Birthday allowance for client,DEPARTMENT STORES,CHILDREN & YOUNG PEOPLE
REDACTED,127.46,19/01/2021,ARGOS LTD,2016407/1183S Setting up home item for client,DISCOUNT STORES,CHILDREN & YOUNG PEOPLE
REDACTED,13.46,19/01/2021,Amazon.co.uk MV7F74JQ4,Reward Charts for S/W XXXXX,DIRECT MARKETING-OTHER DIRECT MARKETERS/NOT ELSEW.,CHILDREN & YOUNG PEOPLE
REDACTED,15.16,19/01/2021,ATLASSIAN,Jira Software,COMPUTER SOFTWARE STORES,FIRE & PUBLIC SAFETY
REDACTED,45.50,19/01/2021,AJ TEK CORPORATION,WSUS Automated Maintenance - Single or Upstream,COMPUTER SOFTWARE STORES,FIRE & PUBLIC SAFETY
REDACTED,8.32,19/01/2021,AMZNMKTPLACE AMAZON.CO,New phone charge for XXXXX's mobile,MISCELLANEOUS AND SPECIALTY RETAIL STORES,"GROWTH, HIGHWAYS & INFRASTRUCTURE"
REDACTED,810.00,20/01/2021,UNIFORM EXPRESS,"Personal issue face coverings 

Uniform express","ALTERATIONS, MENDING, SEAMSTRESSES, TAILORS",FIRE & PUBLIC SAFETY
REDACTED,20.99,20/01/2021,ONE4ALL,"520N, ID: 1037801, exam gift card",DEPARTMENT STORES,CHILDREN & YOUNG PEOPLE
REDACTED,43.99,20/01/2021,PRETTYLITTLETHING.COM,1269904 744W Clothing,MEN'S AND WOMEN'S CLOTHING STORES,CHILDREN & YOUNG PEOPLE
REDACTED,149.16,20/01/2021,AO RETAIL LIMITED,265789 1045W Fridge Freezer,HOUSEHOLD APPLIANCE STORES,CHILDREN & YOUNG PEOPLE
REDACTED,152.18,20/01/2021,ARGOS LTD,265789 1045W SUHA,DISCOUNT STORES,CHILDREN & YOUNG PEOPLE
REDACTED,30.00,20/01/2021,ETL,6 Monthly service of Vaccuum Cleaner,DIRECT MARKETING-OTHER DIRECT MARKETERS/NOT ELSEW.,FIRE & PUBLIC SAFETY
REDACTED,15.80,20/01/2021,FIRST BUS - MOBILE,Chid in Care - XXXXX activity,BUS LINES,CHILDREN & YOUNG PEOPLE
REDACTED,15.80,20/01/2021,FIRST BUS - MOBILE,Child  in care - XXXXX activity,BUS LINES,CHILDREN & YOUNG PEOPLE
REDACTED,113.17,20/01/2021,AMZNMktplace,hard drive - design work,MISCELLANEOUS AND SPECIALTY RETAIL STORES,CORPORATE SERVICES
REDACTED,92.88,20/01/2021,AMZNMKTPLACE AMAZON.CO,children in care -  stuff for the rooms,MISCELLANEOUS AND SPECIALTY RETAIL STORES,CHILDREN & YOUNG PEOPLE
REDACTED,11.66,20/01/2021,AMZNMKTPLACE AMAZON.CO,1178440/1784S Setting up home item for client,MISCELLANEOUS AND SPECIALTY RETAIL STORES,CHILDREN & YOUNG PEOPLE
REDACTED,55.44,20/01/2021,AMZNMKTPLACE AMAZON.CO,1178440/1784S Setting up home item for client,MISCELLANEOUS AND SPECIALTY RETAIL STORES,CHILDREN & YOUNG PEOPLE
REDACTED,71.93,20/01/2021,AMZNMKTPLACE AMAZON.CO,1178440/1784S Setting up home items for client,MISCELLANEOUS AND SPECIALTY RETAIL STORES,CHILDREN & YOUNG PEOPLE
REDACTED,26.63,20/01/2021,PAYPAL  SANKESONGZH EB,2002598/624S Birthday allowance for client,MISCELLANEOUS AND SPECIALTY RETAIL STORES,CHILDREN & YOUNG PEOPLE
REDACTED,99.99,20/01/2021,AMZNMktplace,283990/1691S Setting up home item for client,MISCELLANEOUS AND SPECIALTY RETAIL STORES,CHILDREN & YOUNG PEOPLE
REDACTED,29.16,20/01/2021,ARGOS LTD,Tripod for HCP to use for VIG work,DISCOUNT STORES,CHILDREN & YOUNG PEOPLE
REDACTED,18.00,20/01/2021,TESCO STORE 3240,usb memory stick x2,"GROCERY STORES, SUPERMARKETS",FIRE & PUBLIC SAFETY
REDACTED,59.99,21/01/2021,WWW.SUERYDERSHOP.COM,"1798S, ID: 522235, cupboard","ORGANISATIONS, CHARITABLE AND SOCIAL SERVICES",CHILDREN & YOUNG PEOPLE
REDACTED,16.66,21/01/2021,Amazon.co.uk MV7DU90Y4,"1799S, ID: 1178440, teapot",DIRECT MARKETING-OTHER DIRECT MARKETERS/NOT ELSEW.,CHILDREN & YOUNG PEOPLE
REDACTED,93.94,21/01/2021,ARGOS LTD,"1800S, ID: 1178440, blender",DISCOUNT STORES,CHILDREN & YOUNG PEOPLE
REDACTED,28.94,21/01/2021,ARGOS LTD,"1801S, ID: 2006188, kettle",DISCOUNT STORES,CHILDREN & YOUNG PEOPLE
REDACTED,11.95,21/01/2021,ARGOS LTD,"523N, ID: 743095, ironing board",DISCOUNT STORES,CHILDREN & YOUNG PEOPLE
REDACTED,11.00,21/01/2021,MY.NORFOLK.GOV.UK,URGENT COPY OF BIRTH CERTIFICATE (62657),GOVERNMENT SERVICES-NOT ELSEWHERE CLASSIFIED,CORPORATE SERVICES
REDACTED,29.12,21/01/2021,WWW.SEAMARKNUNN.COM,New Aquascope for Princes St Station,"MARINAS, MARINE SERVICE/SUPPLIES",FIRE & PUBLIC SAFETY
REDACTED,-15.80,21/01/2021,FIRST BUS - MOBILE,child in care - XXXXX activity,BUS LINES,CHILDREN & YOUNG PEOPLE
REDACTED,18.50,21/01/2021,D J EVANS (BURY) LTD,BRE screws Cable Ties,"BUILDING MATERIALS, LUMBER STORES",FIRE & PUBLIC SAFETY
REDACTED,75.90,21/01/2021,AMZNMktplace,10 USB adaptors for team members,MISCELLANEOUS AND SPECIALTY RETAIL STORES,CHILDREN & YOUNG PEOPLE
REDACTED,9.78,21/01/2021,AMZNMktplace,2 packs of chinagraph pencils,MISCELLANEOUS AND SPECIALTY RETAIL STORES,FIRE & PUBLIC SAFETY
REDACTED,30.00,21/01/2021,TESCO GIFT CARD,Voucher for food for CIN,"GROCERY STORES, SUPERMARKETS",CHILDREN & YOUNG PEOPLE
REDACTED,80.00,21/01/2021,ONE4ALL,School Sexual Health Competition prizes,DEPARTMENT STORES,PUBLIC HEALTH
REDACTED,124.08,21/01/2021,MCCORQUODALE MIDLANDS,School Sexual Health Competition prizes,BOOK STORES,PUBLIC HEALTH
REDACTED,188.17,21/01/2021,ASDA  STORES 4218,children in care provisions,"GROCERY STORES, SUPERMARKETS",CHILDREN & YOUNG PEOPLE
REDACTED,95.08,21/01/2021,AMZNMktplace,Child in care - birthday pres topped up from child,MISCELLANEOUS AND SPECIALTY RETAIL STORES,CHILDREN & YOUNG PEOPLE
REDACTED,66.00,21/01/2021,POST OFFICE COUNTER,Stamps for neighbour notification letters,POSTAL SERVICES-GOVERNMENT ONLY,"GROWTH, HIGHWAYS & INFRASTRUCTURE"
REDACTED,145.00,22/01/2021,HAWK EXPRESS CABS,Collect YP from JPUH and return to the MEB.,LIMOUSINES AND TAXICABS,CHILDREN & YOUNG PEOPLE
REDACTED,140.00,22/01/2021,HAWK EXPRESS CABS,Return YP from the MEB to JPUH.,LIMOUSINES AND TAXICABS,CHILDREN & YOUNG PEOPLE
REDACTED,21.69,22/01/2021,ASDA,"524N, ID: 220733, gift card for food","GROCERY STORES, SUPERMARKETS",CHILDREN & YOUNG PEOPLE
REDACTED,28.00,22/01/2021,TYPEFORM S.L,Website form builder tool,"CONSULTING, MANAGEMENT AND PUBLIC RELATIONS SVCS",ADULT & COMMUNITY SERVICES
REDACTED,538.50,22/01/2021,AMZNMktplace,30 Keyboards for DFE Laptop Scheme,MISCELLANEOUS AND SPECIALTY RETAIL STORES,CHILDREN & YOUNG PEOPLE
REDACTED,420.00,22/01/2021,AMZNMktplace,4G dongles cards for DFE Laptop Scheme,MISCELLANEOUS AND SPECIALTY RETAIL STORES,CHILDREN & YOUNG PEOPLE
REDACTED,160.00,22/01/2021,Amazon.co.uk MV2VW11P4,Pay as you go SIM card for DFE Laptop scheme,DIRECT MARKETING-OTHER DIRECT MARKETERS/NOT ELSEW.,CHILDREN & YOUNG PEOPLE
REDACTED,7.25,22/01/2021,POST OFFICE COUNTER,"2 packages Hunters Returns, 1 letter to XXXXX",POSTAL SERVICES-GOVERNMENT ONLY,FIRE & PUBLIC SAFETY
REDACTED,83.95,22/01/2021,AMZNMktplace,printer SFF funded early help,MISCELLANEOUS AND SPECIALTY RETAIL STORES,CHILDREN & YOUNG PEOPLE
REDACTED,136.58,22/01/2021,ASDA STORES LTD 5729,child in care - provisions,"GROCERY STORES, SUPERMARKETS",CHILDREN & YOUNG PEOPLE
REDACTED,22.53,22/01/2021,ALDI 776 147,Child in care - Provisions,"GROCERY STORES, SUPERMARKETS",CHILDREN & YOUNG PEOPLE
REDACTED,230.66,22/01/2021,ALDI 776 147,child in care - provisions,"GROCERY STORES, SUPERMARKETS",CHILDREN & YOUNG PEOPLE
REDACTED,-17.43,22/01/2021,EB  WORKSHOP CAMBRIDGE,Refund for cancelled workshop,BUSINESS SERVICES-NOT ELSEWHERE CLASSIFIED,CHILDREN & YOUNG PEOPLE
REDACTED,65.94,22/01/2021,CITYSPRINT UK LIMITED,Courier - Cheaper to organise direct - G0282,"COURIER SVC-AIR & GROUND, FREIGHT FORWARDERS",FIRE & PUBLIC SAFETY
REDACTED,5.28,22/01/2021,FLICKR,Photography,OTHER SERVICES (NOT ELSEWHERE CLASSIFIED),CORPORATE SERVICES
REDACTED,150.44,22/01/2021,AMZNMktplace,Sensory Items Ropes Trust Funds. XXXXX Team,MISCELLANEOUS AND SPECIALTY RETAIL STORES,CHILDREN & YOUNG PEOPLE
REDACTED,17.35,22/01/2021,AMZNMKTPLACE AMAZON.CO,1178440/1784S Setting up home item for client,MISCELLANEOUS AND SPECIALTY RETAIL STORES,CHILDREN & YOUNG PEOPLE
REDACTED,14.00,22/01/2021,GEN REGISTER OFFICE,475369/1805S Birth cert for client for ID purposes,GOVERNMENT SERVICES-NOT ELSEWHERE CLASSIFIED,CHILDREN & YOUNG PEOPLE
REDACTED,2.32,22/01/2021,B&M 055 - STOWMARKET,Spray Bottles  Disinfectant wipes for staff toilet,SUNDRY GENERAL MERCHANDISE,CHILDREN & YOUNG PEOPLE
REDACTED,29.70,22/01/2021,QD STORES,Zip Loc Bags & Refuse sacks for PPE,DISCOUNT STORES,CHILDREN & YOUNG PEOPLE
REDACTED,21.98,22/01/2021,AMZNMktplace,Children in care - equip purc-safety mirrors,MISCELLANEOUS AND SPECIALTY RETAIL STORES,CHILDREN & YOUNG PEOPLE
REDACTED,73.67,25/01/2021,Trainline,For a YP to be collected from the South coast,PASSENGER RAILWAYS,CHILDREN & YOUNG PEOPLE
REDACTED,167.81,25/01/2021,AMZNMKTPLACE AMAZON.CO,"1800S, ID: 1178440, SUHA items",MISCELLANEOUS AND SPECIALTY RETAIL STORES,CHILDREN & YOUNG PEOPLE
REDACTED,43.68,25/01/2021,WWW.SAFESTORE.CO.UK,276648 1055W Storage,"PUBLIC WAREHOUSING-FARM, REFRIG GOODS, HHG STORAGE",CHILDREN & YOUNG PEOPLE
REDACTED,3.53,25/01/2021,MSFT   E0800DCUE0,O365 PAYG Sub - XXXXX,"COMPUTERS, COMPUTER PERIPHERAL EQUIPMENT, SOFTWARE",CORPORATE SERVICES
REDACTED,25.00,25/01/2021,WEST SUFFOLK COUNCIL,URGENT LLC1 SEARCH (64355),GOVERNMENT SERVICES-NOT ELSEWHERE CLASSIFIED,CORPORATE SERVICES
REDACTED,19.19,25/01/2021,MAILCHIMP    MONTHLY,Monthly eupdates subscription fee,DIRECT MARKETING - CONTINUITY/SUBSCRIPTION MERCHANTS,"GROWTH, HIGHWAYS & INFRASTRUCTURE"
REDACTED,480.00,25/01/2021,HART CARS,371160 1054W. Taxis,LIMOUSINES AND TAXICABS,CHILDREN & YOUNG PEOPLE
REDACTED,101.60,25/01/2021,JD SPORTS INTERNET,371160 1056W. Clothing,SPORTING GOODS STORES,CHILDREN & YOUNG PEOPLE
REDACTED,20.00,25/01/2021,JUST EAT.CO.UK LTD,Birthday for young persons birthday XXXXX,FAST FOOD RESTAURANTS,CHILDREN & YOUNG PEOPLE
REDACTED,32.10,25/01/2021,LAPTOP CHARGERS FACTOR,Laptop charger for young person Staying Close. XXXXX,MISCELLANEOUS AND SPECIALTY RETAIL STORES,CHILDREN & YOUNG PEOPLE
REDACTED,15.75,25/01/2021,Amazon.co.uk MV2XE3XP4,"""Mastering Social Work"" book for XXXXX",DIRECT MARKETING-OTHER DIRECT MARKETERS/NOT ELSEW.,CHILDREN & YOUNG PEOPLE
REDACTED,14.59,25/01/2021,AMZNMktplace,Metal file box for new foster carer.,MISCELLANEOUS AND SPECIALTY RETAIL STORES,CHILDREN & YOUNG PEOPLE
REDACTED,45.49,25/01/2021,ASDA SUPERSTORE,Children's Home Expense - Provisions,"GROCERY STORES, SUPERMARKETS",CHILDREN & YOUNG PEOPLE
REDACTED,23.73,25/01/2021,SCREWFIX DIRECT,3 x 5 litres De-icer for Yarmouth rd ramp,"BUILDING MATERIALS, LUMBER STORES",FIRE & PUBLIC SAFETY
REDACTED,83.94,25/01/2021,ARGOS LTD,Baby Monitor Customer ID3017324,DISCOUNT STORES,ADULT & COMMUNITY SERVICES
REDACTED,83.94,25/01/2021,ARGOS LTD,Bed Alarm for customer ID XXXXX3008392,DISCOUNT STORES,ADULT & COMMUNITY SERVICES
REDACTED,60.00,25/01/2021,THE SORREL HORSE,Adoption Intro accomm - reservation 8940002672,"EATING PLACES, RESTAURANTS",CHILDREN & YOUNG PEOPLE
REDACTED,4.00,25/01/2021,WEST SUFFOLK COUNCIL,"086CH174/1
extra refuse bags CIN",GOVERNMENT SERVICES-NOT ELSEWHERE CLASSIFIED,CHILDREN & YOUNG PEOPLE
REDACTED,25.50,25/01/2021,BIRMINGHAM REGISTER,"086LS221/8
Birth certificates CIC",GOVERNMENT SERVICES-NOT ELSEWHERE CLASSIFIED,CHILDREN & YOUNG PEOPLE
REDACTED,89.77,25/01/2021,B&M 420 - HS LOWESTOFT,Child in care - bedroom furnishings,SUNDRY GENERAL MERCHANDISE,CHILDREN & YOUNG PEOPLE
REDACTED,20.00,25/01/2021,ASDA STORES LTD 5729,child in care - bedroom items,"GROCERY STORES, SUPERMARKETS",CHILDREN & YOUNG PEOPLE
REDACTED,20.00,25/01/2021,JUST EAT.CO.UK LTD,child in care - food gift card,FAST FOOD RESTAURANTS,CHILDREN & YOUNG PEOPLE
REDACTED,7.25,25/01/2021,AMZNMKTPLACE AMAZON.CO,Child in care - Bulbs for XXXXX's room,MISCELLANEOUS AND SPECIALTY RETAIL STORES,CHILDREN & YOUNG PEOPLE
REDACTED,4.36,25/01/2021,FACEBK  EZQPX2TPC2,Boosted Facebook posts,ADVERTISING SERVICES,"GROWTH, HIGHWAYS & INFRASTRUCTURE"
REDACTED,60.00,25/01/2021,FACEBK  WCA2SYEQC2,Boosted Facebook posts,ADVERTISING SERVICES,"GROWTH, HIGHWAYS & INFRASTRUCTURE"
REDACTED,61.67,25/01/2021,WWW.PAPAJOHNS.CO.UK,children in care takeaway,"EATING PLACES, RESTAURANTS",CHILDREN & YOUNG PEOPLE
REDACTED,62.67,25/01/2021,Papa Johns,children in care takeaway,FAST FOOD RESTAURANTS,CHILDREN & YOUNG PEOPLE
REDACTED,-61.67,25/01/2021,WWW.PAPAJOHNS.CO.UK,children in care takeaway,"EATING PLACES, RESTAURANTS",CHILDREN & YOUNG PEOPLE
REDACTED,35.00,25/01/2021,EB  THE BIG DEBATE 202,XXXXX ticket to Norfolk Chamber Big Debate,BUSINESS SERVICES-NOT ELSEWHERE CLASSIFIED,"GROWTH, HIGHWAYS & INFRASTRUCTURE"
REDACTED,42.70,25/01/2021,IRCAS,1052674/1809S Rail fine for client,FINES,CHILDREN & YOUNG PEOPLE
REDACTED,199.99,25/01/2021,PAYPAL  PROMISINGTE EB,204230/1807S Setting up home item for client,"EQUIP, FURNITURE, HOME FURNSHNGS STRS (EXCPT APPL)",CHILDREN & YOUNG PEOPLE
REDACTED,45.00,25/01/2021,WWW.BEAVERBROOKS.CO.UK,372752/275S Birthday allowance for client,"CLOCK, JEWELRY, WATCH, AND SILVERWARE STORES",CHILDREN & YOUNG PEOPLE
REDACTED,4.37,25/01/2021,AMZNMktplace,372752/275S Birthday allowance for client,MISCELLANEOUS AND SPECIALTY RETAIL STORES,CHILDREN & YOUNG PEOPLE
REDACTED,6.66,25/01/2021,AMZNMktplace,372752/275S Birthday allowance for client,MISCELLANEOUS AND SPECIALTY RETAIL STORES,CHILDREN & YOUNG PEOPLE
REDACTED,14.15,25/01/2021,AMZNMktplace,372752/275S Birthday allowance for client,MISCELLANEOUS AND SPECIALTY RETAIL STORES,CHILDREN & YOUNG PEOPLE
REDACTED,130.00,25/01/2021,M & L TAXIS,client transport,LIMOUSINES AND TAXICABS,CHILDREN & YOUNG PEOPLE
REDACTED,11.00,25/01/2021,ESSEX COUNTY COUNCI EC,Death Certificate,GOVERNMENT SERVICES-NOT ELSEWHERE CLASSIFIED,CORPORATE SERVICES
REDACTED,9.27,25/01/2021,Amazon.co.uk MV1VD4GM4,stationary agreed by XXXXX,DIRECT MARKETING-OTHER DIRECT MARKETERS/NOT ELSEW.,CHILDREN & YOUNG PEOPLE
REDACTED,7.41,25/01/2021,Amazon.co.uk MV3743GJ4,stationary agreed by XXXXX,DIRECT MARKETING-OTHER DIRECT MARKETERS/NOT ELSEW.,CHILDREN & YOUNG PEOPLE
REDACTED,11.27,25/01/2021,Amazon.co.uk MV5U61XX4,stationary agreed by XXXXX,DIRECT MARKETING-OTHER DIRECT MARKETERS/NOT ELSEW.,CHILDREN & YOUNG PEOPLE
REDACTED,6.03,25/01/2021,Amazon.co.uk MV0UD2XX4,stationary agreed by XXXXX,DIRECT MARKETING-OTHER DIRECT MARKETERS/NOT ELSEW.,CHILDREN & YOUNG PEOPLE
REDACTED,688.46,26/01/2021,YPP LETTINGS  MANAGEME,238212 1059W . Uni. Bursary,REAL ESTATE AGENTS AND MANAGERS-RENTALS,CHILDREN & YOUNG PEOPLE
REDACTED,-174.94,26/01/2021,AMZ Afnhome,482836 1573S Bedroom Furniture refund.,MISCELLANEOUS AND SPECIALTY RETAIL STORES,CHILDREN & YOUNG PEOPLE
REDACTED,20.00,26/01/2021,DVLA DRIVER ONLINE,320737  To transfer cost to XXXXX's Savings,GOVERNMENT SERVICES-NOT ELSEWHERE CLASSIFIED,CHILDREN & YOUNG PEOPLE
REDACTED,9.16,26/01/2021,AMZNMktplace,Children's Home Expense - Clothing XXXXX,MISCELLANEOUS AND SPECIALTY RETAIL STORES,CHILDREN & YOUNG PEOPLE
REDACTED,98.71,26/01/2021,LIDL GB  STOWMARKET,Children's home expense - provisions,"GROCERY STORES, SUPERMARKETS",CHILDREN & YOUNG PEOPLE
REDACTED,28.44,26/01/2021,TESCO STORE 3240,Children's Home Expense - Provisions,"GROCERY STORES, SUPERMARKETS",CHILDREN & YOUNG PEOPLE
REDACTED,666.00,26/01/2021,Hotel on Booking.com,Adoption Introduction XXXXX 2022782 27 Jan-04 Feb 21,"LODGING-HOTELS,MOTELS,RESORTS-NOT CLASSIFIED",CHILDREN & YOUNG PEOPLE
REDACTED,-11.00,26/01/2021,GEN REGISTER OFFICE,"25/1, 1 x Birth Cert REFUNDED in full (BC0009)",GOVERNMENT SERVICES-NOT ELSEWHERE CLASSIFIED,CHILDREN & YOUNG PEOPLE
REDACTED,70.00,26/01/2021,GEN REGISTER OFFICE,"25/1, 2 x Birth Certs Priority Ord (BC0010 to 11)",GOVERNMENT SERVICES-NOT ELSEWHERE CLASSIFIED,CHILDREN & YOUNG PEOPLE
REDACTED,33.00,26/01/2021,GEN REGISTER OFFICE,"25/1, 3 x Birth Certs (BC0012 to 14)",GOVERNMENT SERVICES-NOT ELSEWHERE CLASSIFIED,CHILDREN & YOUNG PEOPLE
REDACTED,23.38,26/01/2021,Amazon.co.uk MV6G02B54,XXXXX 1257737 book and mood cards,DIRECT MARKETING-OTHER DIRECT MARKETERS/NOT ELSEW.,CHILDREN & YOUNG PEOPLE
REDACTED,75.00,26/01/2021,2MAA025303329 TD E-PMT,XXXXX 2016191 020SL366 Travel document,GOVERNMENT SERVICES-NOT ELSEWHERE CLASSIFIED,CHILDREN & YOUNG PEOPLE
REDACTED,6.66,26/01/2021,Amazon Prime MV59H6H54,children in care amazon subscription,DIRECT MARKETING - CONTINUITY/SUBSCRIPTION MERCHANTS,CHILDREN & YOUNG PEOPLE
REDACTED,33.98,26/01/2021,AMZNMktplace,children in care memory books x 2 amazon,MISCELLANEOUS AND SPECIALTY RETAIL STORES,CHILDREN & YOUNG PEOPLE
REDACTED,12.04,26/01/2021,AMZNMktplace,child in care - pillow scent to assist sleeping,MISCELLANEOUS AND SPECIALTY RETAIL STORES,CHILDREN & YOUNG PEOPLE
REDACTED,8.42,26/01/2021,THURLOW NUNN STANDEN L,Tying Wire/Tree Ties,HARDWARE STORES,"GROWTH, HIGHWAYS & INFRASTRUCTURE"
REDACTED,28.29,26/01/2021,ARGOS LTD,1208351/1816S Setting up home item for client,DISCOUNT STORES,CHILDREN & YOUNG PEOPLE
REDACTED,35.77,26/01/2021,ARGOS LTD,204230/1821S Setting up home item for client,DISCOUNT STORES,CHILDREN & YOUNG PEOPLE
REDACTED,169.16,26/01/2021,Amazon.co.uk MV1D735P4,518366/1284S Setting up home item for client,DIRECT MARKETING-OTHER DIRECT MARKETERS/NOT ELSEW.,CHILDREN & YOUNG PEOPLE
REDACTED,420.00,26/01/2021,AMZNMKTPLACE AMAZON.CO,10 Huawei Portable Wi Fi's for LAC,MISCELLANEOUS AND SPECIALTY RETAIL STORES,CHILDREN & YOUNG PEOPLE
REDACTED,359.56,26/01/2021,PAPERSTONE LIMITED,Lavenham Road F&E - mops and buckets,"OFFICE, SCHOOL SUPPLY, AND STATIONERY STORES",ADULT & COMMUNITY SERVICES
REDACTED,8.74,26/01/2021,AMZNMktplace,Gel mouse wrist pad rest for XXXXX,MISCELLANEOUS AND SPECIALTY RETAIL STORES,ADULT & COMMUNITY SERVICES
REDACTED,23.99,27/01/2021,ONE4ALL,"525N, ID: 220733, gift card",DEPARTMENT STORES,CHILDREN & YOUNG PEOPLE
REDACTED,20.00,27/01/2021,ONE4ALL,"526N, ID: 677173, gift card",DEPARTMENT STORES,CHILDREN & YOUNG PEOPLE
REDACTED,20.00,27/01/2021,ONE4ALL,"527N, ID: 244158, gift card",DEPARTMENT STORES,CHILDREN & YOUNG PEOPLE
REDACTED,38.94,27/01/2021,ARGOS LTD,"528N, ID: 743095, vacuum",DISCOUNT STORES,CHILDREN & YOUNG PEOPLE
REDACTED,34.00,27/01/2021,DVLA DRIVER ONLINE,"529N, ID: 389586, provisional licence",GOVERNMENT SERVICES-NOT ELSEWHERE CLASSIFIED,CHILDREN & YOUNG PEOPLE
REDACTED,23.95,27/01/2021,ARGOS LTD,"535N, ID: 743095, airer, tape measure",DISCOUNT STORES,CHILDREN & YOUNG PEOPLE
REDACTED,44.16,27/01/2021,SCREWFIX DIRECT,276648 1063W PPE equipment,"BUILDING MATERIALS, LUMBER STORES",CHILDREN & YOUNG PEOPLE
REDACTED,35.00,27/01/2021,WWW.NORFOLK.GOV.UK,URGENT COPY OF BIRTH CERTIFICATE (63294),GOVERNMENT SERVICES-NOT ELSEWHERE CLASSIFIED,CORPORATE SERVICES
REDACTED,53.41,27/01/2021,BOOHOO.COM,child in care - clothing XXXXX,MEN'S AND WOMEN'S CLOTHING STORES,CHILDREN & YOUNG PEOPLE
REDACTED,109.03,27/01/2021,LEFORT ENGINEER,Testing equip not able to purchase in UK.,"ARCHITECTURAL, ENGINEERING AND SURVEYING SERVICES",FIRE & PUBLIC SAFETY
REDACTED,14.00,27/01/2021,GEN REGISTER OFFICE,"25/1, 1 x Birth Cert REORDER (BC0009)",GOVERNMENT SERVICES-NOT ELSEWHERE CLASSIFIED,CHILDREN & YOUNG PEOPLE
REDACTED,22.00,27/01/2021,WWW.NORFOLK.GOV.UK,"26/1, 2 x copies Birth Cert (BC0015)",GOVERNMENT SERVICES-NOT ELSEWHERE CLASSIFIED,CHILDREN & YOUNG PEOPLE
REDACTED,30.00,27/01/2021,TESCO GIFT CARD,food,"GROCERY STORES, SUPERMARKETS",CHILDREN & YOUNG PEOPLE
REDACTED,5.28,27/01/2021,AMZNMKTPLACE AMAZON.CO,Protected stamp ink for legal work,MISCELLANEOUS AND SPECIALTY RETAIL STORES,FIRE & PUBLIC SAFETY
REDACTED,11.38,27/01/2021,AMZNMktplace,Error - to be refunded,MISCELLANEOUS AND SPECIALTY RETAIL STORES,"GROWTH, HIGHWAYS & INFRASTRUCTURE"
REDACTED,50.00,27/01/2021,HTTP://WWW.STOP-CSE.OR,NRG Membership for XXXXX and XXXXX,"ORGANISATIONS, CHARITABLE AND SOCIAL SERVICES",CHILDREN & YOUNG PEOPLE
REDACTED,45.00,27/01/2021,IRCAS,1223665/1831S Rail fine payment for client,FINES,CHILDREN & YOUNG PEOPLE
REDACTED,37.20,27/01/2021,IRCAS,1223665/1831S Rail fine payment for client,FINES,CHILDREN & YOUNG PEOPLE
REDACTED,76.90,27/01/2021,IRCAS,1223665/1831S Rail fine payment for client,FINES,CHILDREN & YOUNG PEOPLE
REDACTED,45.00,27/01/2021,IRCAS,1223665/1831S Rail fine payment for client,FINES,CHILDREN & YOUNG PEOPLE
REDACTED,55.00,27/01/2021,IRCAS,1223665/1831S Rail fine payment for client,FINES,CHILDREN & YOUNG PEOPLE
REDACTED,55.00,27/01/2021,IRCAS,1223665/1831S Rail fine payment for client,FINES,CHILDREN & YOUNG PEOPLE
REDACTED,78.30,27/01/2021,IRCAS,1223665/1831S Rail fine payment for client,FINES,CHILDREN & YOUNG PEOPLE
REDACTED,55.00,27/01/2021,IRCAS,1223665/1831S Rail fine payment for client,FINES,CHILDREN & YOUNG PEOPLE
REDACTED,24.13,27/01/2021,ARGOS LTD,1261275/1818S Setting up home item for client,DISCOUNT STORES,CHILDREN & YOUNG PEOPLE
REDACTED,100.00,27/01/2021,WWW.THEWORKS.CO.UK,1812S Craft items from donation for clients,DISCOUNT STORES,CHILDREN & YOUNG PEOPLE
REDACTED,39.51,27/01/2021,DOMINO'S PIZZA KES,Children in care - Takeaway meal,"EATING PLACES, RESTAURANTS",CHILDREN & YOUNG PEOPLE
REDACTED,40.11,28/01/2021,AMZNMKTPLACE AMAZON.CO,"534N, ID: 301462, bedding, light",MISCELLANEOUS AND SPECIALTY RETAIL STORES,CHILDREN & YOUNG PEOPLE
REDACTED,39.96,28/01/2021,AMZNMktplace,Step Ladder,MISCELLANEOUS AND SPECIALTY RETAIL STORES,FIRE & PUBLIC SAFETY
REDACTED,320.00,28/01/2021,EB  SEEK LISTEN TO AMP,SENDIASS Training x 4 places,BUSINESS SERVICES-NOT ELSEWHERE CLASSIFIED,CHILDREN & YOUNG PEOPLE
REDACTED,40.14,28/01/2021,Fiverr Limited,Video production,DEPARTMENT STORES,CORPORATE SERVICES
REDACTED,37.99,28/01/2021,SCREWFIX DIRECT,Boots XXXXX,"BUILDING MATERIALS, LUMBER STORES",FIRE & PUBLIC SAFETY
REDACTED,9.36,28/01/2021,FACEBK 57VKDXS272,Boosted Facebook posts,ADVERTISING SERVICES,"GROWTH, HIGHWAYS & INFRASTRUCTURE"
REDACTED,85.00,28/01/2021,WILKO.COM,Incinerator bins x 4,SUNDRY GENERAL MERCHANDISE,FIRE & PUBLIC SAFETY
REDACTED,48.98,28/01/2021,Amazon.co.uk MV3SL6QA4,Wireless presenter and fibreglass tape,DIRECT MARKETING-OTHER DIRECT MARKETERS/NOT ELSEW.,FIRE & PUBLIC SAFETY
REDACTED,16.17,28/01/2021,AMZNMktplace,webcam,MISCELLANEOUS AND SPECIALTY RETAIL STORES,CHILDREN & YOUNG PEOPLE
REDACTED,4.17,28/01/2021,AMZNMKTPLACE AMAZON.CO,Child in care - SIM card for XXXXX,MISCELLANEOUS AND SPECIALTY RETAIL STORES,CHILDREN & YOUNG PEOPLE
REDACTED,3.33,28/01/2021,WICKES IPSWICH,Paint,"BUILDING MATERIALS, LUMBER STORES","GROWTH, HIGHWAYS & INFRASTRUCTURE"
REDACTED,5.06,28/01/2021,SP   BRISTOL COMMS,Power Cable,COMPUTER SOFTWARE STORES,"GROWTH, HIGHWAYS & INFRASTRUCTURE"
REDACTED,6.22,28/01/2021,Amazon.co.uk MV9SG96N4,stationary agreed by XXXXX,DIRECT MARKETING-OTHER DIRECT MARKETERS/NOT ELSEW.,CHILDREN & YOUNG PEOPLE
REDACTED,49.17,28/01/2021,AMZNMktplace,Charity Funded Mattress,MISCELLANEOUS AND SPECIALTY RETAIL STORES,CHILDREN & YOUNG PEOPLE
REDACTED,7.00,28/01/2021,Amazon.co.uk MV12U5694,Children in Care - Medical equipment,DIRECT MARKETING-OTHER DIRECT MARKETERS/NOT ELSEW.,CHILDREN & YOUNG PEOPLE
REDACTED,101.96,29/01/2021,AMZNMktplace,5 x YP-Birthdays,MISCELLANEOUS AND SPECIALTY RETAIL STORES,CHILDREN & YOUNG PEOPLE
REDACTED,34.00,29/01/2021,DVLA DRIVER ONLINE,496060 1072W. Prov Driv Lic.,GOVERNMENT SERVICES-NOT ELSEWHERE CLASSIFIED,CHILDREN & YOUNG PEOPLE
REDACTED,91.40,29/01/2021,AMZNMktplace,Extension leads for sensory equipment,MISCELLANEOUS AND SPECIALTY RETAIL STORES,FIRE & PUBLIC SAFETY
REDACTED,45.00,29/01/2021,AMZN Digital,Children's Home Expense - Game voucher XXXXX,RECORD SHOPS,CHILDREN & YOUNG PEOPLE
REDACTED,4.68,29/01/2021,HOME BARGAINS,Staff LFT Equipment,HARDWARE STORES,FIRE & PUBLIC SAFETY
REDACTED,46.64,29/01/2021,SCREWFIX DIR LTD,Staff LFT Equipment,"BUILDING MATERIALS, LUMBER STORES",FIRE & PUBLIC SAFETY
REDACTED,120.00,29/01/2021,JD SPORTS INTERNET,child in care - clothing XXXXX,SPORTING GOODS STORES,CHILDREN & YOUNG PEOPLE
REDACTED,121.68,29/01/2021,ALDI 776 147,child in care - provisions,"GROCERY STORES, SUPERMARKETS",CHILDREN & YOUNG PEOPLE
REDACTED,15.01,29/01/2021,WM MORRISONS STORE,Child in care - provisions,"GROCERY STORES, SUPERMARKETS",CHILDREN & YOUNG PEOPLE
REDACTED,6.66,29/01/2021,Amazon Prime MV8A76D94,child in care - subscription,DIRECT MARKETING - CONTINUITY/SUBSCRIPTION MERCHANTS,CHILDREN & YOUNG PEOPLE
REDACTED,198.00,29/01/2021,ROYAL MAIL ONLINE SHOP,200 x Standard 2nd class stamps for Sudbury office,POSTAL SERVICES-GOVERNMENT ONLY,CORPORATE SERVICES
REDACTED,52.22,29/01/2021,CITYSPRINT UK LIMITED,Courier direct booking cheaper G0297 part payment,"COURIER SVC-AIR & GROUND, FREIGHT FORWARDERS",FIRE & PUBLIC SAFETY
REDACTED,12.34,29/01/2021,AMZNMktplace,Latex Gloves Outside Standard Supply,MISCELLANEOUS AND SPECIALTY RETAIL STORES,CHILDREN & YOUNG PEOPLE
REDACTED,95.82,29/01/2021,HAPPY BEDS,1191981/1837S Setting up home item for client,"EQUIP, FURNITURE, HOME FURNSHNGS STRS (EXCPT APPL)",CHILDREN & YOUNG PEOPLE
REDACTED,34.99,29/01/2021,easyHotel Ipswich,Client ACS B&B,"LODGING-HOTELS,MOTELS,RESORTS-NOT CLASSIFIED",CHILDREN & YOUNG PEOPLE
REDACTED,11.97,01/02/2021,FACEBK  MYFLXZJBW2,Foodsavvy facebook ad,ADVERTISING SERVICES,"GROWTH, HIGHWAYS & INFRASTRUCTURE"
REDACTED,11.00,01/02/2021,HERTFORDSHIRE COUNTY C,1038127 1082W. Copy B/Cert,SCHOOLS & EDUCATIONAL SVC-NOT ELSEWHERE CLASSIFIED,CHILDREN & YOUNG PEOPLE
REDACTED,62.25,01/02/2021,ASDA SUPERSTORE,Children's Home Expense - Provisions,"GROCERY STORES, SUPERMARKETS",CHILDREN & YOUNG PEOPLE
REDACTED,70.00,01/02/2021,PREMIER INN44031985,Emergency accommodation,PREMIER INN,CHILDREN & YOUNG PEOPLE
REDACTED,34.00,01/02/2021,ATLAS TAXIS,Emergency transport,LIMOUSINES AND TAXICABS,CHILDREN & YOUNG PEOPLE
REDACTED,68.00,01/02/2021,SQ  BRITANNIA TAXIS,Emergency transport,LIMOUSINES AND TAXICABS,CHILDREN & YOUNG PEOPLE
REDACTED,40.30,01/02/2021,PRIDE CARS TAXI,Emergency transport,LIMOUSINES AND TAXICABS,CHILDREN & YOUNG PEOPLE
REDACTED,25.10,01/02/2021,STAR CABS LIMITED,Emergency transport,LIMOUSINES AND TAXICABS,CHILDREN & YOUNG PEOPLE
REDACTED,-23.66,01/02/2021,AMZ Amazon.co.uk,Refund on LFT Equipment,MISCELLANEOUS AND SPECIALTY RETAIL STORES,FIRE & PUBLIC SAFETY
REDACTED,-23.66,01/02/2021,AMZ Amazon.co.uk,refund on LFT equipment,MISCELLANEOUS AND SPECIALTY RETAIL STORES,FIRE & PUBLIC SAFETY
REDACTED,-23.66,01/02/2021,AMZ Amazon.co.uk,refund on LFT equipment,MISCELLANEOUS AND SPECIALTY RETAIL STORES,FIRE & PUBLIC SAFETY
REDACTED,-23.66,01/02/2021,AMZ Amazon.co.uk,refund on LFT equipment,MISCELLANEOUS AND SPECIALTY RETAIL STORES,FIRE & PUBLIC SAFETY
REDACTED,-23.66,01/02/2021,AMZ Amazon.co.uk,refund on LFT equipment,MISCELLANEOUS AND SPECIALTY RETAIL STORES,FIRE & PUBLIC SAFETY
REDACTED,-23.66,01/02/2021,AMZ Amazon.co.uk,refund on LFT equipment,MISCELLANEOUS AND SPECIALTY RETAIL STORES,FIRE & PUBLIC SAFETY
REDACTED,-23.66,01/02/2021,AMZ Amazon.co.uk,refund on LFT equipment,MISCELLANEOUS AND SPECIALTY RETAIL STORES,FIRE & PUBLIC SAFETY
REDACTED,11.83,01/02/2021,HOME BARGAINS,Staff LFT Equipment,HARDWARE STORES,FIRE & PUBLIC SAFETY
REDACTED,-99.00,01/02/2021,ABRSM,Refund for exam cancelled by ABRSM,"SCHOOLS, ELEMENTARY AND SECONDARY",CHILDREN & YOUNG PEOPLE
REDACTED,99.50,01/02/2021,AMZNMktplace,Security for XXXXX,MISCELLANEOUS AND SPECIALTY RETAIL STORES,CHILDREN & YOUNG PEOPLE
REDACTED,20.89,01/02/2021,AMZNMKTPLACE AMAZON.CO,XXXXX 2038516 Quran and prayer mat 020SL369,MISCELLANEOUS AND SPECIALTY RETAIL STORES,CHILDREN & YOUNG PEOPLE
REDACTED,8.33,01/02/2021,AMZN Digital,Child in care - roblox gift card,RECORD SHOPS,CHILDREN & YOUNG PEOPLE
REDACTED,21.63,01/02/2021,ARGOS LTD,204230/1843S Setting up home item for client,DISCOUNT STORES,CHILDREN & YOUNG PEOPLE
REDACTED,84.15,01/02/2021,AMZNMktplace,367126/1698S Setting up home item for client,MISCELLANEOUS AND SPECIALTY RETAIL STORES,CHILDREN & YOUNG PEOPLE
REDACTED,83.95,01/02/2021,ARGOS LTD,"F&E XXXXX 201215-01
MATTRESS",DISCOUNT STORES,ADULT & COMMUNITY SERVICES
REDACTED,4.80,01/02/2021,POST OFFICE COUNTER,2nd x 5 stamps large letter,POSTAL SERVICES-GOVERNMENT ONLY,CHILDREN & YOUNG PEOPLE
REDACTED,240.00,02/02/2021,CHARTERED INSTITUTE OF,URGENT RENEWAL OF ANNUAL SUBSCRIPTION (XXXXX),"SCHOOLS, BUSINESS AND SECRETARIAL",CORPORATE SERVICES
REDACTED,364.00,02/02/2021,CHARTERED INSTITUTE OF,URGENT RENEWAL OF ANNUAL SUBSCRIPTION (XXXXX),"SCHOOLS, BUSINESS AND SECRETARIAL",CORPORATE SERVICES
REDACTED,204.00,02/02/2021,CHARTERED INSTITUTE OF,URGENT RENEWAL OF ANNUAL SUBSCRIPTION (XXXXX),"SCHOOLS, BUSINESS AND SECRETARIAL",CORPORATE SERVICES
REDACTED,364.00,02/02/2021,CHARTERED INSTITUTE OF,URGENT RENEWAL OF ANNUAL SUBSCRIPTION (XXXXX),"SCHOOLS, BUSINESS AND SECRETARIAL",CORPORATE SERVICES
REDACTED,260.00,02/02/2021,Amazon.co.uk MV1L04WC4,12 SIM cards for DFE Laptop Scheme,DIRECT MARKETING-OTHER DIRECT MARKETERS/NOT ELSEW.,CHILDREN & YOUNG PEOPLE
REDACTED,78.99,02/02/2021,SPORTSDIRECT.COM,Children's home expense - Clothing,SPORTING GOODS STORES,CHILDREN & YOUNG PEOPLE
REDACTED,114.57,02/02/2021,LIDL GB  STOWMARKET,Children's Home Expense - Provisions,"GROCERY STORES, SUPERMARKETS",CHILDREN & YOUNG PEOPLE
REDACTED,8.70,02/02/2021,TESCO STORE 3240,Children's Home Expense - Provisions,"GROCERY STORES, SUPERMARKETS",CHILDREN & YOUNG PEOPLE
REDACTED,172.04,02/02/2021,GOOGLE  ADS6087318024,YouTube - Suffolk Needs/ Supports You,ADVERTISING SERVICES,CORPORATE SERVICES
REDACTED,3.63,02/02/2021,CITYSPRINT UK LIMITED,Courier direct booking cheaper G0267 part payment,"COURIER SVC-AIR & GROUND, FREIGHT FORWARDERS",FIRE & PUBLIC SAFETY
REDACTED,700.00,02/02/2021,FACEBK A9WWGZJNF2,Facebook advertising,ADVERTISING SERVICES,CORPORATE SERVICES
REDACTED,18.53,02/02/2021,RAWLINSON AUTOMOTIVE L,OCCR XXXXX Wiper Blades,"AUTO & TRUCK DLRS-SALES,SVC, REPRS,PRTS, & LEASING",FIRE & PUBLIC SAFETY
REDACTED,15.17,02/02/2021,Amazon.co.uk MV8WZ6W04,XXXXX O18714 lockable box,DIRECT MARKETING-OTHER DIRECT MARKETERS/NOT ELSEW.,CHILDREN & YOUNG PEOPLE
REDACTED,19.99,02/02/2021,VICTORY HARDWARE,Pedal bin for Wattisham,HARDWARE STORES,FIRE & PUBLIC SAFETY
REDACTED,14.00,02/02/2021,CLOOK  - INV 346392,Website hosting package upgrade,"COMP PROGRAMING,DATA PRCSNG,INTGRTD SYS DSGN SRVS","GROWTH, HIGHWAYS & INFRASTRUCTURE"
REDACTED,30.00,02/02/2021,AMZN Digital,children in care amazon X box,RECORD SHOPS,CHILDREN & YOUNG PEOPLE
REDACTED,4.98,02/02/2021,AMZNMKTPLACE AMAZON.CO,Child in care - picture frame,MISCELLANEOUS AND SPECIALTY RETAIL STORES,CHILDREN & YOUNG PEOPLE
REDACTED,19.23,02/02/2021,AMZNMKTPLACE AMAZON.CO,Children in care - picture frame and tumblers,MISCELLANEOUS AND SPECIALTY RETAIL STORES,CHILDREN & YOUNG PEOPLE
REDACTED,5.75,02/02/2021,AMZNMktplace,PCMONITOR CONNECTOR,MISCELLANEOUS AND SPECIALTY RETAIL STORES,"GROWTH, HIGHWAYS & INFRASTRUCTURE"
REDACTED,15.80,02/02/2021,ARGOS LTD,1208351/1816S Setting up home item for client,DISCOUNT STORES,CHILDREN & YOUNG PEOPLE
REDACTED,-10.00,02/02/2021,ARGOS LTD,204230/1843S Setting up home item for client,DISCOUNT STORES,CHILDREN & YOUNG PEOPLE
REDACTED,25.00,02/02/2021,JD SPORTS INTERNET,243475/1362S Birthday allowance for client,SPORTING GOODS STORES,CHILDREN & YOUNG PEOPLE
REDACTED,81.12,02/02/2021,AMZNMktplace,14 books for HV and HCP to aid giving sleep advice,MISCELLANEOUS AND SPECIALTY RETAIL STORES,CHILDREN & YOUNG PEOPLE
REDACTED,24.99,03/02/2021,AMZNMktplace,"541N, ID: 505430, curtain pole",MISCELLANEOUS AND SPECIALTY RETAIL STORES,CHILDREN & YOUNG PEOPLE
REDACTED,11.27,03/02/2021,ROYAL MAIL GROUP LTD,Accounts files to auditor,POSTAL SERVICES-GOVERNMENT ONLY,"GROWTH, HIGHWAYS & INFRASTRUCTURE"
REDACTED,6.24,03/02/2021,AMZNMktplace,Children's Home expense - bed caster cups XXXXX,MISCELLANEOUS AND SPECIALTY RETAIL STORES,CHILDREN & YOUNG PEOPLE
REDACTED,55.20,03/02/2021,Dunelm,Children's Home expense - Rug XXXXX,"EQUIP, FURNITURE, HOME FURNSHNGS STRS (EXCPT APPL)",CHILDREN & YOUNG PEOPLE
REDACTED,796.00,03/02/2021,WWW.ORIGINALCOTTAGES.C,Adoption Introduction XXXXX 2020557 12 - 19 Feb 2021,TRAVEL AGENCIES AND TOUR OPERATORS,CHILDREN & YOUNG PEOPLE
REDACTED,115.50,03/02/2021,DART-CHARGE,child in care - Dartford tunnel fine,"BRIDGE AND ROAD FEES, TOLLS",CHILDREN & YOUNG PEOPLE
REDACTED,-1476.00,03/02/2021,L2E762300017J UKVI,Refund for L2E762300017JUKVI made on 16/11/2020,GOVERNMENT SERVICES-NOT ELSEWHERE CLASSIFIED,CORPORATE SERVICES
REDACTED,54.00,03/02/2021,HM PASSPORT OFFICE,Passport application for foster child.,GOVERNMENT SERVICES-NOT ELSEWHERE CLASSIFIED,CHILDREN & YOUNG PEOPLE
REDACTED,40.00,03/02/2021,Dunelm,2 X Pedal bins for clinical waste at WTC,"EQUIP, FURNITURE, HOME FURNSHNGS STRS (EXCPT APPL)",FIRE & PUBLIC SAFETY
REDACTED,30.00,03/02/2021,TESCO GIFT CARD,reunification groceries,"GROCERY STORES, SUPERMARKETS",CHILDREN & YOUNG PEOPLE
REDACTED,294.99,03/02/2021,IKEA LTD SHOP ONLINE,children in care furniture ikea,"EQUIP, FURNITURE, HOME FURNSHNGS STRS (EXCPT APPL)",CHILDREN & YOUNG PEOPLE
REDACTED,44.16,03/02/2021,SP   DAALS,Office furniture (XXXXX desk),COMPUTER SOFTWARE STORES,"GROWTH, HIGHWAYS & INFRASTRUCTURE"
REDACTED,25.00,03/02/2021,Amazon.co.uk MV1M08Y94,Pathfinder FLATS Programme Amazon Voucher,DIRECT MARKETING-OTHER DIRECT MARKETERS/NOT ELSEW.,CHILDREN & YOUNG PEOPLE
REDACTED,25.00,03/02/2021,Amazon.co.uk MV46E3YT4,Pathfinder FLATS Programme Amazon Voucher,DIRECT MARKETING-OTHER DIRECT MARKETERS/NOT ELSEW.,CHILDREN & YOUNG PEOPLE
REDACTED,25.00,03/02/2021,Amazon.co.uk MV5WC1YH4,Pathfinder FLATS Programme Amazon Voucher,DIRECT MARKETING-OTHER DIRECT MARKETERS/NOT ELSEW.,CHILDREN & YOUNG PEOPLE
REDACTED,25.00,03/02/2021,Amazon.co.uk MV7MJ1YR4,Pathfinder FLATS Programme Amazon Voucher,DIRECT MARKETING-OTHER DIRECT MARKETERS/NOT ELSEW.,CHILDREN & YOUNG PEOPLE
REDACTED,30.00,03/02/2021,JD SPORTS INTERNET,Pathfinder FLATS Programme JD Sports Voucher,SPORTING GOODS STORES,CHILDREN & YOUNG PEOPLE
REDACTED,30.00,03/02/2021,JD SPORTS INTERNET,Pathfinder FLATS Programme JD Sports Voucher,SPORTING GOODS STORES,CHILDREN & YOUNG PEOPLE
REDACTED,30.00,03/02/2021,JD SPORTS INTERNET,Pathfinder FLATS Programme JD Sports Voucher,SPORTING GOODS STORES,CHILDREN & YOUNG PEOPLE
REDACTED,-7.50,03/02/2021,GEN REGISTER OFFICE,Death Certificate,GOVERNMENT SERVICES-NOT ELSEWHERE CLASSIFIED,CORPORATE SERVICES
REDACTED,126.00,03/02/2021,BRITISH RED CROSS,First Aid Course - Contact Co-ordinator,"ORGANISATIONS, CHARITABLE AND SOCIAL SERVICES",CHILDREN & YOUNG PEOPLE
REDACTED,24.99,04/02/2021,ARGOS LTD,344637 1077W TV firestick,DISCOUNT STORES,CHILDREN & YOUNG PEOPLE
REDACTED,28.99,04/02/2021,LCN COM,Domain renewals SR-190667 XXXXX,COMPUTER NETWORK/INFORMATION SERVICES,CORPORATE SERVICES
REDACTED,173.92,04/02/2021,LCN COM,Domain renewals SR-190669 XXXXX,COMPUTER NETWORK/INFORMATION SERVICES,CORPORATE SERVICES
REDACTED,760.00,04/02/2021,CLS LAW SCHOOL LTD,CILEx Level 6 Unit 07 Family Law(XXXXX),"SCHOOLS, BUSINESS AND SECRETARIAL",CORPORATE SERVICES
REDACTED,236.26,04/02/2021,CLS LAW SCHOOL LTD,CILEx Level 6/Unit 23 Legal Research Skill(XXXXX,"SCHOOLS, BUSINESS AND SECRETARIAL",CORPORATE SERVICES
REDACTED,364.00,04/02/2021,CHARTERED INSTITUTE OF,URGENT RENEWAL OF ANNUAL SUBSCRIPTION (XXXXX),"SCHOOLS, BUSINESS AND SECRETARIAL",CORPORATE SERVICES
REDACTED,364.00,04/02/2021,CHARTERED INSTITUTE OF,URGENT RENEWAL OF ANNUAL SUBSCRIPTION (XXXXX),"SCHOOLS, BUSINESS AND SECRETARIAL",CORPORATE SERVICES
REDACTED,34.00,04/02/2021,DVLA DRIVER ONLINE,429801 1079W. Prov.Driv.Lic.,GOVERNMENT SERVICES-NOT ELSEWHERE CLASSIFIED,CHILDREN & YOUNG PEOPLE
REDACTED,7.99,04/02/2021,Amazon Prime MF8P52O44,Amazon Prime Subscription,DIRECT MARKETING - CONTINUITY/SUBSCRIPTION MERCHANTS,CHILDREN & YOUNG PEOPLE
REDACTED,8.00,04/02/2021,Dunelm,Children's home expense - mat,"EQUIP, FURNITURE, HOME FURNSHNGS STRS (EXCPT APPL)",CHILDREN & YOUNG PEOPLE
REDACTED,24.04,04/02/2021,AMZNMKTPLACE AMAZON.CO,2 bins for Contaminated waste transport,MISCELLANEOUS AND SPECIALTY RETAIL STORES,FIRE & PUBLIC SAFETY
REDACTED,15.82,04/02/2021,AMZNMktplace,Bungee cords to secure contaminated waste bins,MISCELLANEOUS AND SPECIALTY RETAIL STORES,FIRE & PUBLIC SAFETY
REDACTED,12.87,04/02/2021,WWW.SIMPLYPLASTICS.COM,Acrylic sheet cut to size for exhibition,INDUSTRIAL SUPPLIES NOT ELSEWHERE CLASSIFIED,"GROWTH, HIGHWAYS & INFRASTRUCTURE"
REDACTED,10.93,04/02/2021,PAYPAL  SCREWFIX,Mirror plates and screws for exhibition,"DURABLE GOODS, NOT ELSEWHERE CLASSIFIED","GROWTH, HIGHWAYS & INFRASTRUCTURE"
REDACTED,41.67,04/02/2021,WICKES BUILDING,painting equipment for pride exhibition,"BUILDING MATERIALS, LUMBER STORES","GROWTH, HIGHWAYS & INFRASTRUCTURE"
REDACTED,29.13,04/02/2021,VINYLWAREHO,Vinyl role for pride exhibition,SUNDRY HOUSE FURNISHING SPECIALTY SHOPS,"GROWTH, HIGHWAYS & INFRASTRUCTURE"
REDACTED,8.32,04/02/2021,AMZNMktplace,Child in care - Activity nail art hand,MISCELLANEOUS AND SPECIALTY RETAIL STORES,CHILDREN & YOUNG PEOPLE
REDACTED,34.00,04/02/2021,DVLA DRIVER ONLINE,provisional licence,GOVERNMENT SERVICES-NOT ELSEWHERE CLASSIFIED,CHILDREN & YOUNG PEOPLE
REDACTED,24.16,04/02/2021,CURRYS ONLINE,Switch for Emergency Bed - Contra'd with donation,ELECTRONIC SALES,CHILDREN & YOUNG PEOPLE
REDACTED,5.99,04/02/2021,AMZNMktplace,children in care car sauce holder amazon,MISCELLANEOUS AND SPECIALTY RETAIL STORES,CHILDREN & YOUNG PEOPLE
REDACTED,75.39,04/02/2021,Domino s Pizza,Pizza Order for FLATS Family Night in XXXXX 71266,"EATING PLACES, RESTAURANTS",CHILDREN & YOUNG PEOPLE
REDACTED,66.38,04/02/2021,Domino s Pizza,Pizza Order for FLATS Family Night in XXXXX 70500,"EATING PLACES, RESTAURANTS",CHILDREN & YOUNG PEOPLE
REDACTED,80.97,04/02/2021,WWW.PAPAJOHNS.CO.UK,Pizza Order for FLATS Family Night in XXXXX 66660,"EATING PLACES, RESTAURANTS",CHILDREN & YOUNG PEOPLE
REDACTED,13.57,04/02/2021,MailChimp,Subscription to Mailchimp,DIGITAL GOODS MULTI-CATEGORY,"GROWTH, HIGHWAYS & INFRASTRUCTURE"
REDACTED,12.49,04/02/2021,CURRYS ONLINE,New computer mouse,ELECTRONIC SALES,"GROWTH, HIGHWAYS & INFRASTRUCTURE"
REDACTED,150.00,04/02/2021,ARGOS LTD,Lavenham Road Curtain Poles,DISCOUNT STORES,ADULT & COMMUNITY SERVICES
REDACTED,24.44,04/02/2021,AMZNMKTPLACE AMAZON.CO,Equipment for XXXXX.,MISCELLANEOUS AND SPECIALTY RETAIL STORES,FIRE & PUBLIC SAFETY
REDACTED,14.21,04/02/2021,SIMPLEMDM,Prorated usage fees (1 devices added)     $18.79,COMPUTER SOFTWARE STORES,FIRE & PUBLIC SAFETY
REDACTED,34.00,05/02/2021,DVLA DRIVER ONLINE,"532N, ID: 389210, provisional driving licence",GOVERNMENT SERVICES-NOT ELSEWHERE CLASSIFIED,CHILDREN & YOUNG PEOPLE
REDACTED,200.00,05/02/2021,AGILYSIS LTD,1 organisation ticket for event that XXXXX,SCHOOLS & EDUCATIONAL SVC-NOT ELSEWHERE CLASSIFIED,"GROWTH, HIGHWAYS & INFRASTRUCTURE"
REDACTED,14.00,05/02/2021,GEN REGISTER OFFICE,URGENT COPY OF BIRTH CERTIFICATE (64763),GOVERNMENT SERVICES-NOT ELSEWHERE CLASSIFIED,CORPORATE SERVICES
REDACTED,192.00,05/02/2021,HART CARS,371160 1119W. Taxis,LIMOUSINES AND TAXICABS,CHILDREN & YOUNG PEOPLE
REDACTED,17.95,05/02/2021,MOJANG,Children's home expense - Reward XXXXX,DIGITAL GOODS GAMES,CHILDREN & YOUNG PEOPLE
REDACTED,21.66,05/02/2021,AMZNMktplace,Cable Cover,MISCELLANEOUS AND SPECIALTY RETAIL STORES,FIRE & PUBLIC SAFETY
REDACTED,38.37,05/02/2021,AMZNMktplace,broad band router SFF XXXXX,MISCELLANEOUS AND SPECIALTY RETAIL STORES,CHILDREN & YOUNG PEOPLE
REDACTED,206.31,05/02/2021,ALDI 776 147,Child in care - Provisions,"GROCERY STORES, SUPERMARKETS",CHILDREN & YOUNG PEOPLE
REDACTED,8.33,05/02/2021,AMZN Digital,Child in care - birthday present,RECORD SHOPS,CHILDREN & YOUNG PEOPLE
REDACTED,56.23,05/02/2021,AMZNMKTPLACE AMAZON.CO,Child in care - XXXXX's birthday presents,MISCELLANEOUS AND SPECIALTY RETAIL STORES,CHILDREN & YOUNG PEOPLE
REDACTED,215.00,05/02/2021,COUNTY COURT,Child Arrangement Order via family court,FINES,CHILDREN & YOUNG PEOPLE
REDACTED,45.23,05/02/2021,AMZNMktplace,Dishwasher detergents plus salt and rinse aid,MISCELLANEOUS AND SPECIALTY RETAIL STORES,FIRE & PUBLIC SAFETY
REDACTED,42.00,05/02/2021,FINNEYS,Meals for course students off site training,BAKERIES,FIRE & PUBLIC SAFETY
REDACTED,-19.99,05/02/2021,VICTORY HARDWARE,Refund for the purchase of pedal bin,HARDWARE STORES,FIRE & PUBLIC SAFETY
REDACTED,266.66,05/02/2021,PAYPAL  MODAPHONESL EB,Switch for Emergency Bed - Contra'd with donation,CAMERA AND PHOTOGRAPHIC SUPPLY STORES,CHILDREN & YOUNG PEOPLE
REDACTED,240.69,05/02/2021,ARGOS LTD,Switch for Emergency Bed - Contra'd with donation,DISCOUNT STORES,CHILDREN & YOUNG PEOPLE
REDACTED,-277.99,05/02/2021,TOBYDEALS,Switch for Emergency Bed - Contra'd with donation,ELECTRONIC SALES,CHILDREN & YOUNG PEOPLE
REDACTED,277.99,05/02/2021,TOBYDEALS,Switch for Emergency Bed - Contra'd with donation,ELECTRONIC SALES,CHILDREN & YOUNG PEOPLE
REDACTED,4.14,05/02/2021,REFRESHCARTRIDGES.COM,HDMI Cable,"COMPUTERS, COMPUTER PERIPHERAL EQUIPMENT, SOFTWARE","GROWTH, HIGHWAYS & INFRASTRUCTURE"
REDACTED,2.73,05/02/2021,MOONPIG,Leaving Card for Panel Member XXXXX,SUNDRY GENERAL MERCHANDISE,CHILDREN & YOUNG PEOPLE
REDACTED,200.00,05/02/2021,ONE4ALL,1861S vouchers bought for clients,DEPARTMENT STORES,CHILDREN & YOUNG PEOPLE
REDACTED,13.98,05/02/2021,AMZNMktplace,Harmonica for UASC XXXXX,MISCELLANEOUS AND SPECIALTY RETAIL STORES,CHILDREN & YOUNG PEOPLE
REDACTED,63.99,05/02/2021,JD SPORTS INTERNET,Child in Care - Trainers,SPORTING GOODS STORES,CHILDREN & YOUNG PEOPLE
REDACTED,14.17,05/02/2021,Amazon.co.uk MF6LK5L14,Children in care - office equipment,DIRECT MARKETING-OTHER DIRECT MARKETERS/NOT ELSEW.,CHILDREN & YOUNG PEOPLE
REDACTED,45.69,08/02/2021,MAILCHIMP    MONTHLY,AU Monthly mailchimp,DIRECT MARKETING - CONTINUITY/SUBSCRIPTION MERCHANTS,CHILDREN & YOUNG PEOPLE
REDACTED,157.50,08/02/2021,TVLICENSING.CO.UK,"555N, ID: 383942, TV licence","CONSULTING, MANAGEMENT AND PUBLIC RELATIONS SVCS",CHILDREN & YOUNG PEOPLE
REDACTED,4.99,08/02/2021,ARGOS LTD,517014 1086W Memory card 4 phone,DISCOUNT STORES,CHILDREN & YOUNG PEOPLE
REDACTED,1.30,08/02/2021,ASDA SUPERSTORE,Children's Home Expense - CIC,"GROCERY STORES, SUPERMARKETS",CHILDREN & YOUNG PEOPLE
REDACTED,1.30,08/02/2021,ASDA SUPERSTORE,Children's home expense - CIC,"GROCERY STORES, SUPERMARKETS",CHILDREN & YOUNG PEOPLE
REDACTED,.20,08/02/2021,ASDA SUPERSTORE,Children's Home expense - CIC,"GROCERY STORES, SUPERMARKETS",CHILDREN & YOUNG PEOPLE
REDACTED,3.09,08/02/2021,ASDA SUPERSTORE,Children's home expense - CIC,"GROCERY STORES, SUPERMARKETS",CHILDREN & YOUNG PEOPLE
REDACTED,2.54,08/02/2021,ASDA SUPERSTORE,Children's Home expense - CIC,"GROCERY STORES, SUPERMARKETS",CHILDREN & YOUNG PEOPLE
REDACTED,21.36,08/02/2021,ASDA SUPERSTORE,Children's home expense - provisions,"GROCERY STORES, SUPERMARKETS",CHILDREN & YOUNG PEOPLE
REDACTED,89.88,08/02/2021,LIDL GB  STOWMARKET,Children's home expense - provisions,"GROCERY STORES, SUPERMARKETS",CHILDREN & YOUNG PEOPLE
REDACTED,54.99,08/02/2021,AMZNMktplace,LFT Staff testing Equipment,MISCELLANEOUS AND SPECIALTY RETAIL STORES,FIRE & PUBLIC SAFETY
REDACTED,-113.00,08/02/2021,DART-CHARGE,Child in care - Darford Tunnel credit,"BRIDGE AND ROAD FEES, TOLLS",CHILDREN & YOUNG PEOPLE
REDACTED,28.78,08/02/2021,AMZNMKTPLACE AMAZON.CO,Child in care Birthday children clothes not vatabl,MISCELLANEOUS AND SPECIALTY RETAIL STORES,CHILDREN & YOUNG PEOPLE
REDACTED,90.00,08/02/2021,FACEBK  DTLU7ZNPC2,Boosted Facebook posts,ADVERTISING SERVICES,"GROWTH, HIGHWAYS & INFRASTRUCTURE"
REDACTED,50.10,08/02/2021,TRAVIS PERKINS,Aggregate for repair of road at WTC,"BUILDING MATERIALS, LUMBER STORES",FIRE & PUBLIC SAFETY
REDACTED,74.80,08/02/2021,PRESS GANG,laundry collection and delivery,"CLEANING, GARMENT, AND LAUNDRY SERVICES",FIRE & PUBLIC SAFETY
REDACTED,416.51,08/02/2021,THE OUTDOORS COMPANY,Purchase of gloves for training instructors,SPORTING GOODS STORES,FIRE & PUBLIC SAFETY
REDACTED,15.00,08/02/2021,AMZN Digital,children in care amazon x box,RECORD SHOPS,CHILDREN & YOUNG PEOPLE
REDACTED,76.63,08/02/2021,ALDI 65 776,children in care provisions,"GROCERY STORES, SUPERMARKETS",CHILDREN & YOUNG PEOPLE
REDACTED,8.33,08/02/2021,AMZN Digital,Child in care - Birthday gift card,RECORD SHOPS,CHILDREN & YOUNG PEOPLE
REDACTED,51.95,08/02/2021,Dunelm,Children in care - roller blind no VAT receipt,"EQUIP, FURNITURE, HOME FURNSHNGS STRS (EXCPT APPL)",CHILDREN & YOUNG PEOPLE
REDACTED,23.00,08/02/2021,Amazon.co.uk MF95O8ZZ4,1191981/1864S Birthday allowance for client,DIRECT MARKETING-OTHER DIRECT MARKETERS/NOT ELSEW.,CHILDREN & YOUNG PEOPLE
REDACTED,10.00,08/02/2021,Amazon.co.uk MF8Y72ZI4,1246585/1865S Birthday allowance for client,DIRECT MARKETING-OTHER DIRECT MARKETERS/NOT ELSEW.,CHILDREN & YOUNG PEOPLE
REDACTED,199.99,08/02/2021,AMZNMKTPLACE AMAZON.CO,398205/1867S Setting up home allowance for client,MISCELLANEOUS AND SPECIALTY RETAIL STORES,CHILDREN & YOUNG PEOPLE
REDACTED,14.65,08/02/2021,AMZNMKTPLACE AMAZON.CO,398205/1867S Setting up home items for client,MISCELLANEOUS AND SPECIALTY RETAIL STORES,CHILDREN & YOUNG PEOPLE
REDACTED,12.50,08/02/2021,AMZNMKTPLACE AMAZON.CO,398205/1867S Setting up home items for client,MISCELLANEOUS AND SPECIALTY RETAIL STORES,CHILDREN & YOUNG PEOPLE
REDACTED,220.00,08/02/2021,ARGOS LTD,Order No: 6422216393 Lavenham Curtains Collect,DISCOUNT STORES,ADULT & COMMUNITY SERVICES
REDACTED,27.91,08/02/2021,AMZNMktplace,Headphones for XXXXX,MISCELLANEOUS AND SPECIALTY RETAIL STORES,"GROWTH, HIGHWAYS & INFRASTRUCTURE"
REDACTED,132.00,08/02/2021,POST OFFICE COUNTER,Stamps for Barnham Neighbour Notifications,POSTAL SERVICES-GOVERNMENT ONLY,"GROWTH, HIGHWAYS & INFRASTRUCTURE"
REDACTED,10.00,09/02/2021,Amazon.co.uk MF5OT6EG4,1189142 1036W. Birthday,DIRECT MARKETING-OTHER DIRECT MARKETERS/NOT ELSEW.,CHILDREN & YOUNG PEOPLE
REDACTED,31.20,09/02/2021,NOMINET UK,Domain renewals SR-186841 XXXXX,"CONSULTING, MANAGEMENT AND PUBLIC RELATIONS SVCS",CORPORATE SERVICES
REDACTED,3.20,09/02/2021,POST OFFICE COUNTER,Postage to Hunters,POSTAL SERVICES-GOVERNMENT ONLY,FIRE & PUBLIC SAFETY
REDACTED,3.16,09/02/2021,D & L STANTON LTD,Milk,"MISC FOOD STORE-CONVENIENCE,MRKT,SPLTY,VENDNG MACS",CHILDREN & YOUNG PEOPLE
REDACTED,11.25,09/02/2021,AMZNMktplace,Wrist rest for Team Manager (XXXXX),MISCELLANEOUS AND SPECIALTY RETAIL STORES,ADULT & COMMUNITY SERVICES
REDACTED,781.87,09/02/2021,TWEET BINDER,twitter advertising,COMPUTER NETWORK/INFORMATION SERVICES,CORPORATE SERVICES
REDACTED,49.97,09/02/2021,CURRYS ONLINE,Power packs (AML),ELECTRONIC SALES,"GROWTH, HIGHWAYS & INFRASTRUCTURE"
REDACTED,10.00,09/02/2021,MCDONALDS 1560,children in care 1 to 1,"EATING PLACES, RESTAURANTS",CHILDREN & YOUNG PEOPLE
REDACTED,156.37,09/02/2021,ASDA  STORES 4218,children in care clothing,"GROCERY STORES, SUPERMARKETS",CHILDREN & YOUNG PEOPLE
REDACTED,23.00,09/02/2021,Amazon.co.uk MF3ZR20L4,1065392/1874S Birthday allowance for client,DIRECT MARKETING-OTHER DIRECT MARKETERS/NOT ELSEW.,CHILDREN & YOUNG PEOPLE
REDACTED,64.99,09/02/2021,AMZNMKTPLACE AMAZON.CO,1214195/1848S Equipment for client education,MISCELLANEOUS AND SPECIALTY RETAIL STORES,CHILDREN & YOUNG PEOPLE
REDACTED,24.14,09/02/2021,AMZNMKTPLACE AMAZON.CO,398205/1867S Setting up home items for client,MISCELLANEOUS AND SPECIALTY RETAIL STORES,CHILDREN & YOUNG PEOPLE
REDACTED,683.99,09/02/2021,COOLMED LIMITED,Medicine Fridge for Lavenham Place,DENTAL/LAB/MED/OPHTHALMIC HOSP EQUIP & SUPPLIES,ADULT & COMMUNITY SERVICES
REDACTED,279.98,09/02/2021,DNH GODADDY.COM EUROPE,renewal,COMPUTER NETWORK/INFORMATION SERVICES,FIRE & PUBLIC SAFETY
REDACTED,29.99,10/02/2021,AMZNMktplace,Purchase of screen for CISS Team,MISCELLANEOUS AND SPECIALTY RETAIL STORES,CHILDREN & YOUNG PEOPLE
REDACTED,29.98,10/02/2021,SPORTSDIRECT.COM,"557N, ID: 302023, trainers",SPORTING GOODS STORES,CHILDREN & YOUNG PEOPLE
REDACTED,42.00,10/02/2021,WWW.JA.NET,SSL cert renewals SR-192143 XXXXX,"ORGANISATIONS, MEMBERSHIP-NOT ELSEWHERE CLASSIFIED",CORPORATE SERVICES
REDACTED,11.00,10/02/2021,MY.NORFOLK.GOV.UK,URGENT COPY OF BIRTH CERTIFICATE (62409),GOVERNMENT SERVICES-NOT ELSEWHERE CLASSIFIED,CORPORATE SERVICES
REDACTED,19.00,10/02/2021,AMZNMKTPLACE AMAZON.CO,Laptop Charger for DFE Laptop Scheme,MISCELLANEOUS AND SPECIALTY RETAIL STORES,CHILDREN & YOUNG PEOPLE
REDACTED,19.00,10/02/2021,AMZNMKTPLACE AMAZON.CO,Laptop Charger for DFE Laptop Scheme,MISCELLANEOUS AND SPECIALTY RETAIL STORES,CHILDREN & YOUNG PEOPLE
REDACTED,19.00,10/02/2021,AMZNMKTPLACE AMAZON.CO,Laptop Charger for DFE Laptop Scheme,MISCELLANEOUS AND SPECIALTY RETAIL STORES,CHILDREN & YOUNG PEOPLE
REDACTED,19.00,10/02/2021,AMZNMKTPLACE AMAZON.CO,Laptop Charger for DFE Laptop Scheme,MISCELLANEOUS AND SPECIALTY RETAIL STORES,CHILDREN & YOUNG PEOPLE
REDACTED,60.00,10/02/2021,CFOA-NFCC,On line NFCC conference,"ORGANISATIONS, CHARITABLE AND SOCIAL SERVICES",FIRE & PUBLIC SAFETY
REDACTED,22.00,10/02/2021,WWW.CORAM.ORG.UK,Purchase of leaflets If your child is being adopte,"ORGANISATIONS, CHARITABLE AND SOCIAL SERVICES",CHILDREN & YOUNG PEOPLE
REDACTED,1.50,10/02/2021,ROYAL MAIL CHARGES,Child in care - postage underpaid on post,POSTAL SERVICES-GOVERNMENT ONLY,CHILDREN & YOUNG PEOPLE
REDACTED,20.00,10/02/2021,AMZN Digital,child in care - Xbox live credit,RECORD SHOPS,CHILDREN & YOUNG PEOPLE
REDACTED,50.00,10/02/2021,PAYPAL  CAS,Volunteer training requested by XXXXX for XXXXX,"ORGANISATIONS, CHARITABLE AND SOCIAL SERVICES","GROWTH, HIGHWAYS & INFRASTRUCTURE"
REDACTED,50.00,10/02/2021,PAYPAL  CAS,Volunteer training requested by XXXXX for XXXXX,"ORGANISATIONS, CHARITABLE AND SOCIAL SERVICES","GROWTH, HIGHWAYS & INFRASTRUCTURE"
REDACTED,163.80,10/02/2021,INNOTEC SUPPLIES (UK),Power Clean,CHEMICALS/ALLIED PRODUCTS NOT ELSEWHERE CLASSIFIED,FIRE & PUBLIC SAFETY
REDACTED,30.00,10/02/2021,TESCO GIFT CARD,evoucher for reunification,"GROCERY STORES, SUPERMARKETS",CHILDREN & YOUNG PEOPLE
REDACTED,30.00,10/02/2021,RAILCARD,Rail pass,PASSENGER RAILWAYS,CHILDREN & YOUNG PEOPLE
REDACTED,-72.50,10/02/2021,ASDA  STORES 4218,children in care clothing refd for previous purch,"GROCERY STORES, SUPERMARKETS",CHILDREN & YOUNG PEOPLE
REDACTED,3.84,10/02/2021,ASDA  STORES 4218,children in care provisions,"GROCERY STORES, SUPERMARKETS",CHILDREN & YOUNG PEOPLE
REDACTED,49.99,10/02/2021,SPORTSDIRECT.COM,475369/1258S Clothing allowance for client,SPORTING GOODS STORES,CHILDREN & YOUNG PEOPLE
REDACTED,26.75,10/02/2021,POST OFFICE COUNTER,Registered post to send laptop,POSTAL SERVICES-GOVERNMENT ONLY,"GROWTH, HIGHWAYS & INFRASTRUCTURE"
REDACTED,370.00,11/02/2021,IKEA LTD SHOP ONLINE,"563N, ID: 281703, furniture","EQUIP, FURNITURE, HOME FURNSHNGS STRS (EXCPT APPL)",CHILDREN & YOUNG PEOPLE
REDACTED,34.00,11/02/2021,DVLA DRIVER ONLINE,237853 1091W. Prov.Driv.Lic.,GOVERNMENT SERVICES-NOT ELSEWHERE CLASSIFIED,CHILDREN & YOUNG PEOPLE
REDACTED,323.43,11/02/2021,AMZNMKTPLACE AMAZON.CO,365423 1090W SUHA,MISCELLANEOUS AND SPECIALTY RETAIL STORES,CHILDREN & YOUNG PEOPLE
REDACTED,5.99,11/02/2021,NETFLIX.COM,Children's Home Expense - Activity,"CABLE, SATELLITE, OTHER PAY TELEVISION, RADIO SVCS",CHILDREN & YOUNG PEOPLE
REDACTED,76.88,11/02/2021,ASDA SUPERSTORE,Children's Home Expense - provisions,"GROCERY STORES, SUPERMARKETS",CHILDREN & YOUNG PEOPLE
REDACTED,25.00,11/02/2021,VODAFONE LTD,"086LS229/5
data pack to up for CIC",TELECOM INCL PREPAID/RECURRING PHONE SVCS,CHILDREN & YOUNG PEOPLE
REDACTED,500.00,11/02/2021,GOOGLE  ADS6087318024,YouTube Suffolk NYSY CAMSRechargeOut,ADVERTISING SERVICES,CORPORATE SERVICES
REDACTED,37.00,11/02/2021,DVSA,Theory Haz test booked for driver training,GOVERNMENT SERVICES-NOT ELSEWHERE CLASSIFIED,FIRE & PUBLIC SAFETY
REDACTED,56.21,11/02/2021,AMZNMktplace,Children in care - kitchen equipment,MISCELLANEOUS AND SPECIALTY RETAIL STORES,CHILDREN & YOUNG PEOPLE
REDACTED,11.99,11/02/2021,ZOOM.US 888-799-9666,BEEA Zoom subscription,TELECOM INCL PREPAID/RECURRING PHONE SVCS,"GROWTH, HIGHWAYS & INFRASTRUCTURE"
REDACTED,172.48,11/02/2021,AMZNMktplace,1052029/1884S Setting up home item for client,MISCELLANEOUS AND SPECIALTY RETAIL STORES,CHILDREN & YOUNG PEOPLE
REDACTED,199.99,11/02/2021,JD SPORTS INTERNET,482406/1888S Clothing allowance for client,SPORTING GOODS STORES,CHILDREN & YOUNG PEOPLE
REDACTED,14.00,11/02/2021,GEN REGISTER OFFICE,Death Certificate,GOVERNMENT SERVICES-NOT ELSEWHERE CLASSIFIED,CORPORATE SERVICES
REDACTED,21.66,11/02/2021,AMZNMKTPLACE AMAZON.CO,Storage boxes for children's centre move,MISCELLANEOUS AND SPECIALTY RETAIL STORES,CHILDREN & YOUNG PEOPLE
REDACTED,158.33,12/02/2021,IKEA LTD SHOP ONLINE,"563N, ID: 281703, wardrobe","EQUIP, FURNITURE, HOME FURNSHNGS STRS (EXCPT APPL)",CHILDREN & YOUNG PEOPLE
REDACTED,15.00,12/02/2021,CITIZENCARD,240408 1093W Citizenship Card,"ORGANISATIONS, MEMBERSHIP-NOT ELSEWHERE CLASSIFIED",CHILDREN & YOUNG PEOPLE
REDACTED,29.40,12/02/2021,A1 CARS SUFFOLK LTD,515610 1105W Taxi,LIMOUSINES AND TAXICABS,CHILDREN & YOUNG PEOPLE
REDACTED,7.00,12/02/2021,1 AND 1 IONOS LTD,Monthly web hosting fee,COMPUTER NETWORK/INFORMATION SERVICES,CHILDREN & YOUNG PEOPLE
REDACTED,89.96,12/02/2021,ARGOS LTD,496060 1094W. Equipment,DISCOUNT STORES,CHILDREN & YOUNG PEOPLE
REDACTED,20.82,12/02/2021,Amazon.co.uk MF3VI0X04,LFT Staff Testing Equipment,DIRECT MARKETING-OTHER DIRECT MARKETERS/NOT ELSEW.,FIRE & PUBLIC SAFETY
REDACTED,23.66,12/02/2021,Amazon.co.uk MF6K15XZ4,Staff LFT Testing Equipment,DIRECT MARKETING-OTHER DIRECT MARKETERS/NOT ELSEW.,FIRE & PUBLIC SAFETY
REDACTED,651.34,12/02/2021,AMZNMktplace,Staff LFT Testing Equipment,MISCELLANEOUS AND SPECIALTY RETAIL STORES,FIRE & PUBLIC SAFETY
REDACTED,16.78,12/02/2021,AMZNMktplace,086LS144/21 power bank for CIC,MISCELLANEOUS AND SPECIALTY RETAIL STORES,CHILDREN & YOUNG PEOPLE
REDACTED,11.00,12/02/2021,BRADFORD MET COUNCIL,"086LS202/5
birth certificate CIC",GOVERNMENT SERVICES-NOT ELSEWHERE CLASSIFIED,CHILDREN & YOUNG PEOPLE
REDACTED,19.81,12/02/2021,ALDI 776 147,child in care - provisions,"GROCERY STORES, SUPERMARKETS",CHILDREN & YOUNG PEOPLE
REDACTED,135.91,12/02/2021,ALDI 776 147,Child in care - Provisions,"GROCERY STORES, SUPERMARKETS",CHILDREN & YOUNG PEOPLE
REDACTED,10.00,12/02/2021,AMZN Digital,Child in care - xbox live credit,RECORD SHOPS,CHILDREN & YOUNG PEOPLE
REDACTED,16.64,12/02/2021,Amazon.co.uk MF9TA1XM4,Child in care - board game for XXXXX at cottage,DIRECT MARKETING-OTHER DIRECT MARKETERS/NOT ELSEW.,CHILDREN & YOUNG PEOPLE
REDACTED,700.00,12/02/2021,FACEBK ZK7NLZENF2,Facebook advertising,ADVERTISING SERVICES,CORPORATE SERVICES
REDACTED,31.99,12/02/2021,AMZNMKTPLACE AMAZON.CO,Headset for XXXXX,MISCELLANEOUS AND SPECIALTY RETAIL STORES,CHILDREN & YOUNG PEOPLE
REDACTED,31.99,12/02/2021,AMZNMktplace,Headset for XXXXX,MISCELLANEOUS AND SPECIALTY RETAIL STORES,CHILDREN & YOUNG PEOPLE
REDACTED,23.64,12/02/2021,F2 MEDICAL SUPPLIES LT,Medical supplies for Suffolk COVID testing centres,DENTAL/LAB/MED/OPHTHALMIC HOSP EQUIP & SUPPLIES,PUBLIC HEALTH
REDACTED,26.52,12/02/2021,B&M 405 - WESTERN WAY,children in care items for new child,SUNDRY GENERAL MERCHANDISE,CHILDREN & YOUNG PEOPLE
REDACTED,9.83,12/02/2021,ASDA  STORES 4218,children in care items for new child,"GROCERY STORES, SUPERMARKETS",CHILDREN & YOUNG PEOPLE
REDACTED,19.76,12/02/2021,THE RANGE,children in care items for new child,DEPARTMENT STORES,CHILDREN & YOUNG PEOPLE
REDACTED,36.66,12/02/2021,THE RANGE,children in care items for new child,DEPARTMENT STORES,CHILDREN & YOUNG PEOPLE
REDACTED,10.00,12/02/2021,AMZN Digital,children in care X box amazon,RECORD SHOPS,CHILDREN & YOUNG PEOPLE
REDACTED,25.82,12/02/2021,AMZNMKTPLACE AMAZON.CO,324665/1797S Equipment for client for sport,MISCELLANEOUS AND SPECIALTY RETAIL STORES,CHILDREN & YOUNG PEOPLE
REDACTED,129.60,12/02/2021,DIGITAL ID,Magicard ink for ID card printer,"COMPUTERS, COMPUTER PERIPHERAL EQUIPMENT, SOFTWARE",FIRE & PUBLIC SAFETY
REDACTED,5.99,12/02/2021,NETFLIX.COM,Children in Care - Netflix streaming service,"CABLE, SATELLITE, OTHER PAY TELEVISION, RADIO SVCS",CHILDREN & YOUNG PEOPLE
REDACTED,47.40,15/02/2021,SAFETY BUYER  PRODUCTS,fire assembly point sign and stickers,CONSTRUCTION MATERIALS NOT ELSEWHERE CLASSIFIED,FIRE & PUBLIC SAFETY
REDACTED,184.00,15/02/2021,"WWW,EASTSUFFOLK.GOV.UK","565N, ID: 748236, Rent arrears",GOVERNMENT SERVICES-NOT ELSEWHERE CLASSIFIED,CHILDREN & YOUNG PEOPLE
REDACTED,5.00,15/02/2021,WWW.SECURE-PAYMENT-SER,407969 1106W Email a Prisoner,"COMP PROGRAMING,DATA PRCSNG,INTGRTD SYS DSGN SRVS",CHILDREN & YOUNG PEOPLE
REDACTED,46.57,15/02/2021,AMZNMktplace,578298 1099W Maternity items,MISCELLANEOUS AND SPECIALTY RETAIL STORES,CHILDREN & YOUNG PEOPLE
REDACTED,99.99,15/02/2021,SPORTSDIRECT.COM,318495 1098W. Equipment,SPORTING GOODS STORES,CHILDREN & YOUNG PEOPLE
REDACTED,22.64,15/02/2021,AMZNMKTPLACE AMAZON.CO,Room Thermostats x 4 LTS,MISCELLANEOUS AND SPECIALTY RETAIL STORES,FIRE & PUBLIC SAFETY
REDACTED,12.26,15/02/2021,AMZNMKTPLACE AMAZON.CO,Social distancing floor stickers - LTS,MISCELLANEOUS AND SPECIALTY RETAIL STORES,FIRE & PUBLIC SAFETY
REDACTED,24.99,15/02/2021,MailChimp,Mailchimp subscription for Leaving Care,DIGITAL GOODS MULTI-CATEGORY,CHILDREN & YOUNG PEOPLE
REDACTED,6.66,15/02/2021,Amazon Prime MF4EU0H04,Children's Home Expense - Activity,DIRECT MARKETING - CONTINUITY/SUBSCRIPTION MERCHANTS,CHILDREN & YOUNG PEOPLE
REDACTED,33.02,15/02/2021,LIDL GB  STOWMARKET,Children's home expense - provisions,"GROCERY STORES, SUPERMARKETS",CHILDREN & YOUNG PEOPLE
REDACTED,24.29,15/02/2021,Amazon.co.uk MF83H5HT4,Two books for Archives on Tour research,DIRECT MARKETING-OTHER DIRECT MARKETERS/NOT ELSEW.,"GROWTH, HIGHWAYS & INFRASTRUCTURE"
REDACTED,57.08,15/02/2021,AMZNMKTPLACE AMAZON.CO,LFT staff testing equipment,MISCELLANEOUS AND SPECIALTY RETAIL STORES,FIRE & PUBLIC SAFETY
REDACTED,79.10,15/02/2021,AMZNMKTPLACE AMAZON.CO,LFT Staff Testing Equipment,MISCELLANEOUS AND SPECIALTY RETAIL STORES,FIRE & PUBLIC SAFETY
REDACTED,34.47,15/02/2021,AMZNMKTPLACE AMAZON.CO,LFT Staff testing equipment,MISCELLANEOUS AND SPECIALTY RETAIL STORES,FIRE & PUBLIC SAFETY
REDACTED,52.23,15/02/2021,AMZNMktplace,LFT Staff Testing Equipment,MISCELLANEOUS AND SPECIALTY RETAIL STORES,FIRE & PUBLIC SAFETY
REDACTED,27.50,15/02/2021,AMZNMKTPLACE AMAZON.CO,Staff LFT Testing Equipment,MISCELLANEOUS AND SPECIALTY RETAIL STORES,FIRE & PUBLIC SAFETY
REDACTED,2.00,15/02/2021,WEST SUFFOLK COUNCIL,086CH174/1 extra refuse bags CIN,GOVERNMENT SERVICES-NOT ELSEWHERE CLASSIFIED,CHILDREN & YOUNG PEOPLE
REDACTED,20.69,15/02/2021,Amazon.co.uk MF3C715Y4,"086LS236/1
books for freedom programme CIC",DIRECT MARKETING-OTHER DIRECT MARKETERS/NOT ELSEW.,CHILDREN & YOUNG PEOPLE
REDACTED,73.14,15/02/2021,AMZNMktplace,Child in Care - XXXXX Birthday,MISCELLANEOUS AND SPECIALTY RETAIL STORES,CHILDREN & YOUNG PEOPLE
REDACTED,9.99,15/02/2021,AMZNMktplace,Children in care - usb cable,MISCELLANEOUS AND SPECIALTY RETAIL STORES,CHILDREN & YOUNG PEOPLE
REDACTED,86.67,15/02/2021,AMZNMKTPLACE AMAZON.CO,Replacement printer during lockdown,MISCELLANEOUS AND SPECIALTY RETAIL STORES,CORPORATE SERVICES
REDACTED,86.67,15/02/2021,AMZNMKTPLACE AMAZON.CO,Replacement printer during lockdown,MISCELLANEOUS AND SPECIALTY RETAIL STORES,CORPORATE SERVICES
REDACTED,222.56,15/02/2021,ARCHANT MAG SUBS,EADT subscription,SUNDRY PUBLISHING AND PRINTING,CORPORATE SERVICES
REDACTED,135.20,15/02/2021,ARCHANT MAG SUBS,Ipswich Star Subscription,SUNDRY PUBLISHING AND PRINTING,CORPORATE SERVICES
REDACTED,128.79,15/02/2021,PANKS PUMPS,4 inch tank valves,"AUTOMOTIVE PARTS, ACCESSORIES STORES",FIRE & PUBLIC SAFETY
REDACTED,312.54,15/02/2021,IPSWICH VOLKSWAGEN,AY17 WKS Service,"AUTO & TRUCK DLRS-SALES,SVC, REPRS,PRTS, & LEASING",FIRE & PUBLIC SAFETY
REDACTED,72.00,15/02/2021,IPSWICH BOROUGH CO,Parking permits from Ips boro x 6 XXXXX team,GOVERNMENT SERVICES-NOT ELSEWHERE CLASSIFIED,CHILDREN & YOUNG PEOPLE
REDACTED,76.10,15/02/2021,AMZNMktplace,7 boxes of disposable masks 020SL384,MISCELLANEOUS AND SPECIALTY RETAIL STORES,CHILDREN & YOUNG PEOPLE
REDACTED,2.40,15/02/2021,FACEBK VCDMX2B272,Boosted Facebook post,ADVERTISING SERVICES,"GROWTH, HIGHWAYS & INFRASTRUCTURE"
REDACTED,24.98,15/02/2021,CURRYS ONLINE,Power packs (AML),ELECTRONIC SALES,"GROWTH, HIGHWAYS & INFRASTRUCTURE"
REDACTED,11.00,15/02/2021,GEN REGISTER OFFICE,Birth certificate,GOVERNMENT SERVICES-NOT ELSEWHERE CLASSIFIED,CHILDREN & YOUNG PEOPLE
REDACTED,-249.27,15/02/2021,PAYPAL  PHOENIXLAND EB,Emergency Bed - Credit for Console,MISCELLANEOUS AND SPECIALTY RETAIL STORES,CHILDREN & YOUNG PEOPLE
REDACTED,249.27,15/02/2021,PAYPAL  PHOENIXLAND EB,Emergency Bed - Switch console (credited),MISCELLANEOUS AND SPECIALTY RETAIL STORES,CHILDREN & YOUNG PEOPLE
REDACTED,200.00,15/02/2021,Buyatab - Aldi,Local Assistance Welfare Fund,"GIFT, CARD, NOVELTY AND SOUVENIR SHOPS",PUBLIC HEALTH
REDACTED,200.00,15/02/2021,Buyatab - Aldi,Local Assistance Welfare Fund,"GIFT, CARD, NOVELTY AND SOUVENIR SHOPS",PUBLIC HEALTH
REDACTED,200.00,15/02/2021,Buyatab - Aldi,Local Assistance Welfare Fund,"GIFT, CARD, NOVELTY AND SOUVENIR SHOPS",PUBLIC HEALTH
REDACTED,200.00,15/02/2021,Buyatab - Aldi,Local Welfare Assistance Scheme,"GIFT, CARD, NOVELTY AND SOUVENIR SHOPS",PUBLIC HEALTH
REDACTED,200.00,15/02/2021,Buyatab - Aldi,Local Welfare Assistance Scheme,"GIFT, CARD, NOVELTY AND SOUVENIR SHOPS",PUBLIC HEALTH
REDACTED,200.00,15/02/2021,Buyatab - Aldi,Local Welfare Assistance Scheme,"GIFT, CARD, NOVELTY AND SOUVENIR SHOPS",PUBLIC HEALTH
REDACTED,200.00,15/02/2021,Buyatab - Aldi,Local Welfare Assistance Scheme,"GIFT, CARD, NOVELTY AND SOUVENIR SHOPS",PUBLIC HEALTH
REDACTED,200.00,15/02/2021,Buyatab - Aldi,Local Welfare Assistance Scheme,"GIFT, CARD, NOVELTY AND SOUVENIR SHOPS",PUBLIC HEALTH
REDACTED,200.00,15/02/2021,Buyatab - Aldi,Local Welfare Assistance Scheme,"GIFT, CARD, NOVELTY AND SOUVENIR SHOPS",PUBLIC HEALTH
REDACTED,69.49,15/02/2021,eBay O 01-06570-84147,Stationery for the COVID testing sites,DEPARTMENT STORES,PUBLIC HEALTH
REDACTED,3.49,15/02/2021,Prime Video MF59C95D4,children in care amazon video,RECORD SHOPS,CHILDREN & YOUNG PEOPLE
REDACTED,28.00,15/02/2021,ARGOS LTD,children in care items for new child,DISCOUNT STORES,CHILDREN & YOUNG PEOPLE
REDACTED,14.99,15/02/2021,AMZNMktplace,children in care wellington boots amazon,MISCELLANEOUS AND SPECIALTY RETAIL STORES,CHILDREN & YOUNG PEOPLE
REDACTED,8.33,15/02/2021,AMZN Digital,Child in care - XXXXX paying with pocket money,RECORD SHOPS,CHILDREN & YOUNG PEOPLE
REDACTED,-15.54,15/02/2021,SITEGROUND HOSTING,Website domain hosting refund,BUSINESS SERVICES-NOT ELSEWHERE CLASSIFIED,"GROWTH, HIGHWAYS & INFRASTRUCTURE"
REDACTED,23.00,15/02/2021,Amazon.co.uk MF9LU0MO4,1121325/1885S Birthday allowance for client,DIRECT MARKETING-OTHER DIRECT MARKETERS/NOT ELSEW.,CHILDREN & YOUNG PEOPLE
REDACTED,24.36,15/02/2021,AMZNMktplace,Books Kinship Carer XXXXX Understanding LAC & ToxicXXXXX,MISCELLANEOUS AND SPECIALTY RETAIL STORES,CHILDREN & YOUNG PEOPLE
REDACTED,27.33,15/02/2021,AMZNMktplace,Enforcement Book for XXXXX,MISCELLANEOUS AND SPECIALTY RETAIL STORES,"GROWTH, HIGHWAYS & INFRASTRUCTURE"
REDACTED,7.49,15/02/2021,AMZNMKTPLACE AMAZON.CO,Laminator pouches for XXXXX,MISCELLANEOUS AND SPECIALTY RETAIL STORES,"GROWTH, HIGHWAYS & INFRASTRUCTURE"
REDACTED,10.00,15/02/2021,VESTA VODAFONE,Mobile Phone Top Up Voucher for Vulnerable Parent,TELECOM INCL PREPAID/RECURRING PHONE SVCS,CHILDREN & YOUNG PEOPLE
REDACTED,.96,15/02/2021,POST OFFICE COUNTER,2nd class large letter stamp x 1,POSTAL SERVICES-GOVERNMENT ONLY,CHILDREN & YOUNG PEOPLE
REDACTED,27.02,16/02/2021,WWW.SAFESTORE.CO.UK,276648 1109W Storage,"PUBLIC WAREHOUSING-FARM, REFRIG GOODS, HHG STORAGE",CHILDREN & YOUNG PEOPLE
REDACTED,349.00,16/02/2021,WEST SUFFOLK COUNCIL,URGENT LLC SEARCH (53518),GOVERNMENT SERVICES-NOT ELSEWHERE CLASSIFIED,CORPORATE SERVICES
REDACTED,503.88,16/02/2021,AMZNMktplace,12 4G dongles cards for DFE Laptop Scheme,MISCELLANEOUS AND SPECIALTY RETAIL STORES,CHILDREN & YOUNG PEOPLE
REDACTED,300.00,16/02/2021,Amazon.co.uk MF4O52QW4,12 SIM cards for DFE Laptop Scheme,DIRECT MARKETING-OTHER DIRECT MARKETERS/NOT ELSEW.,CHILDREN & YOUNG PEOPLE
REDACTED,132.32,16/02/2021,FACEBK N8PG62KPF2,Facebook advertising,ADVERTISING SERVICES,CORPORATE SERVICES
REDACTED,200.00,16/02/2021,www.anyvan.com,Van removal for service user,"FREIGHT CARRIER,TRUCKING-LCL/LNG DIST, MVG/STORAGE",CHILDREN & YOUNG PEOPLE
REDACTED,28.00,16/02/2021,www.anyvan.com,Van removal for service user,"FREIGHT CARRIER,TRUCKING-LCL/LNG DIST, MVG/STORAGE",CHILDREN & YOUNG PEOPLE
REDACTED,41.62,16/02/2021,ARGOS LTD,XXXXX 2035189 Mobile phone 020SL387,DISCOUNT STORES,CHILDREN & YOUNG PEOPLE
REDACTED,30.00,16/02/2021,TESCO GIFT CARD,evoucher for reunification,"GROCERY STORES, SUPERMARKETS",CHILDREN & YOUNG PEOPLE
REDACTED,23.00,16/02/2021,Amazon.co.uk MF8TK1QC4,1220575/1896S Birthday allowance for client,DIRECT MARKETING-OTHER DIRECT MARKETERS/NOT ELSEW.,CHILDREN & YOUNG PEOPLE
REDACTED,211.67,16/02/2021,AO RETAIL LIMITED,398205/1908S Setting up home allowance for client,HOUSEHOLD APPLIANCE STORES,CHILDREN & YOUNG PEOPLE
REDACTED,148.00,16/02/2021,DVSA,Hazard and Theory Tests,GOVERNMENT SERVICES-NOT ELSEWHERE CLASSIFIED,FIRE & PUBLIC SAFETY
REDACTED,107.88,17/02/2021,CANVA  02968-7829908,AU yearly subscription,PHOTOGRAPHIC STUDIOS,CHILDREN & YOUNG PEOPLE
REDACTED,21.57,17/02/2021,SMARTY SYMBOLS LLC,Ciss monthly commercial membership,"COMPUTERS, COMPUTER PERIPHERAL EQUIPMENT, SOFTWARE",CHILDREN & YOUNG PEOPLE
REDACTED,120.82,17/02/2021,CURRYS ONLINE,"570N, ID: 318837, TV",ELECTRONIC SALES,CHILDREN & YOUNG PEOPLE
REDACTED,453.98,17/02/2021,SP   LAURA JAMES HOME,1056742 1112W Double bed & mattress,"EQUIP, FURNITURE, HOME FURNSHNGS STRS (EXCPT APPL)",CHILDREN & YOUNG PEOPLE
REDACTED,23.31,17/02/2021,SP   LAURA JAMES HOME,1056742 1114W Bookcase,"EQUIP, FURNITURE, HOME FURNSHNGS STRS (EXCPT APPL)",CHILDREN & YOUNG PEOPLE
REDACTED,20.98,17/02/2021,AMZNMKTPLACE AMAZON.CO,1269904 1110W Birthday,MISCELLANEOUS AND SPECIALTY RETAIL STORES,CHILDREN & YOUNG PEOPLE
REDACTED,306.95,17/02/2021,BYTEMARK HOSTING,One Suffolk Hosting XXXXX,COMPUTER SOFTWARE STORES,CORPORATE SERVICES
REDACTED,524.40,17/02/2021,GEODESYS,"environmental, chancel, water searches(53518)","UTLTS-ELCTRC, GAS, HEATING OIL, SANITARY, WATER",CORPORATE SERVICES
REDACTED,15.00,17/02/2021,Amazon.co.uk MF2NQ1614,Amazon Gift Vouchers,DIRECT MARKETING-OTHER DIRECT MARKETERS/NOT ELSEW.,CHILDREN & YOUNG PEOPLE
REDACTED,15.00,17/02/2021,Amazon.co.uk MF2O206O4,Amazon Gift Vouchers to staff in recognition,DIRECT MARKETING-OTHER DIRECT MARKETERS/NOT ELSEW.,CHILDREN & YOUNG PEOPLE
REDACTED,23.98,17/02/2021,SPORTSDIRECT.COM,521712 77W. Birthday,SPORTING GOODS STORES,CHILDREN & YOUNG PEOPLE
REDACTED,252.00,17/02/2021,WWW.CORAM.ORG.UK,ADM training funded by WFD,"ORGANISATIONS, CHARITABLE AND SOCIAL SERVICES",CHILDREN & YOUNG PEOPLE
REDACTED,126.00,17/02/2021,WWW.CORAM.ORG.UK,ADM training funded by WFD.,"ORGANISATIONS, CHARITABLE AND SOCIAL SERVICES",CHILDREN & YOUNG PEOPLE
REDACTED,252.00,17/02/2021,WWW.CORAM.ORG.UK,ADM Training funded by WFD.,"ORGANISATIONS, CHARITABLE AND SOCIAL SERVICES",CHILDREN & YOUNG PEOPLE
REDACTED,12.03,17/02/2021,AMZNMktplace,Children's home expense - activity,MISCELLANEOUS AND SPECIALTY RETAIL STORES,CHILDREN & YOUNG PEOPLE
REDACTED,12.39,17/02/2021,B&M 055 - STOWMARKET,children's home expense - equipment,SUNDRY GENERAL MERCHANDISE,CHILDREN & YOUNG PEOPLE
REDACTED,8.80,17/02/2021,ASDA SUPERSTORE,Children's Home Expense - equipment & clothing,"GROCERY STORES, SUPERMARKETS",CHILDREN & YOUNG PEOPLE
REDACTED,124.22,17/02/2021,ASDA SUPERSTORE,Children's home expense - provisions,"GROCERY STORES, SUPERMARKETS",CHILDREN & YOUNG PEOPLE
REDACTED,8.32,17/02/2021,Dropbox,dropbox premium for exhibition file sharing,COMPUTER NETWORK/INFORMATION SERVICES,"GROWTH, HIGHWAYS & INFRASTRUCTURE"
REDACTED,299.17,17/02/2021,CURRYS ONLINE,Cooker ID 3019745 XXXXX,ELECTRONIC SALES,ADULT & COMMUNITY SERVICES
REDACTED,10.21,17/02/2021,MCDONALDS,child in care - activity XXXXX XXXXX,FAST FOOD RESTAURANTS,CHILDREN & YOUNG PEOPLE
REDACTED,6.66,17/02/2021,Amazon Prime MF15K8DU4,Child in care - subscription prime,DIRECT MARKETING - CONTINUITY/SUBSCRIPTION MERCHANTS,CHILDREN & YOUNG PEOPLE
REDACTED,29.16,17/02/2021,AMZNMKTPLACE AMAZON.CO,Laptop Stand for XXXXX at Brandon CC,MISCELLANEOUS AND SPECIALTY RETAIL STORES,CHILDREN & YOUNG PEOPLE
REDACTED,207.00,17/02/2021,Dunelm,Bedding & various items Forge Funds. Central XXXXX,"EQUIP, FURNITURE, HOME FURNSHNGS STRS (EXCPT APPL)",CHILDREN & YOUNG PEOPLE
REDACTED,18.98,17/02/2021,AMZNMKTPLACE AMAZON.CO,Wall Planner Forge Funds Central XXXXX,MISCELLANEOUS AND SPECIALTY RETAIL STORES,CHILDREN & YOUNG PEOPLE
REDACTED,20.00,17/02/2021,JD SPORTS INTERNET,1189663/1912S Birthday allowance for client,SPORTING GOODS STORES,CHILDREN & YOUNG PEOPLE
REDACTED,19.99,17/02/2021,AMZNMktplace,380077/1905S Setting up home item for client,MISCELLANEOUS AND SPECIALTY RETAIL STORES,CHILDREN & YOUNG PEOPLE
REDACTED,44.12,17/02/2021,Amazon.co.uk MF6ZV2D14,398205/1910S Setting up home item for client,DIRECT MARKETING-OTHER DIRECT MARKETERS/NOT ELSEW.,CHILDREN & YOUNG PEOPLE
REDACTED,110.00,17/02/2021,ARGOS LTD,Chest of Drawers for Kinship Carer XXXXX,DISCOUNT STORES,CHILDREN & YOUNG PEOPLE
REDACTED,445.95,17/02/2021,ARGOS LTD,Double Bed & Mattress Kinship Carer XXXXX,DISCOUNT STORES,CHILDREN & YOUNG PEOPLE
REDACTED,15.17,17/02/2021,Amazon.co.uk MF9O726W4,Lock Box for Kinship Carer XXXXX (£10.18+£4.99pp),DIRECT MARKETING-OTHER DIRECT MARKETERS/NOT ELSEW.,CHILDREN & YOUNG PEOPLE
REDACTED,145.83,17/02/2021,Dunelm,Floor Rugs for Brooks House contact centre.,"EQUIP, FURNITURE, HOME FURNSHNGS STRS (EXCPT APPL)",CHILDREN & YOUNG PEOPLE
REDACTED,1.67,17/02/2021,B&M 055 - STOWMARKET,2 x C batteries for door gard,SUNDRY GENERAL MERCHANDISE,CHILDREN & YOUNG PEOPLE
REDACTED,50.95,18/02/2021,ASDA GEORGE COM LEEDS,"572N, ID: 1054954, SUHA bathroom items","GROCERY STORES, SUPERMARKETS",CHILDREN & YOUNG PEOPLE
REDACTED,44.92,18/02/2021,ARGOS LTD,300215 1117W  Mobile,DISCOUNT STORES,CHILDREN & YOUNG PEOPLE
REDACTED,75.00,18/02/2021,SCREWFIX DIRECT,Sliding Mitre Saw for fixing of grab rails,"BUILDING MATERIALS, LUMBER STORES",ADULT & COMMUNITY SERVICES
REDACTED,98.97,18/02/2021,LCN COM,Domain names SR-193540 XXXXX,COMPUTER NETWORK/INFORMATION SERVICES,CORPORATE SERVICES
REDACTED,126.95,18/02/2021,LCN COM,Domain names SR-193575 XXXXX,COMPUTER NETWORK/INFORMATION SERVICES,CORPORATE SERVICES
REDACTED,14.50,18/02/2021,SOUTHEND BOROUGH COUNC,496060. 1130W B Cert,GOVERNMENT SERVICES-NOT ELSEWHERE CLASSIFIED,CHILDREN & YOUNG PEOPLE
REDACTED,35.77,18/02/2021,eBay O 01-06597-70029,Droplet Hydration System ID XXXXX 109558,DEPARTMENT STORES,ADULT & COMMUNITY SERVICES
REDACTED,40.00,18/02/2021,ARGOS LTD,Habitat Desk for staff member XXXXX,DISCOUNT STORES,ADULT & COMMUNITY SERVICES
REDACTED,22.00,18/02/2021,WWW.LGSS.CO.UK,birth certificate 086LS141/11,"COLLEGES, UNIV, PRO SCHOOLS, JUNIOR COLLEGES",CHILDREN & YOUNG PEOPLE
REDACTED,61.66,18/02/2021,Amazon.co.uk MF9S94DL4,tablet for cic 086LS228/1,DIRECT MARKETING-OTHER DIRECT MARKETERS/NOT ELSEW.,CHILDREN & YOUNG PEOPLE
REDACTED,61.67,18/02/2021,ARGOS LTD,Child in care - equipment games room,DISCOUNT STORES,CHILDREN & YOUNG PEOPLE
REDACTED,145.42,18/02/2021,B&M 420 - HS LOWESTOFT,Child in care - furnishings,SUNDRY GENERAL MERCHANDISE,CHILDREN & YOUNG PEOPLE
REDACTED,984.96,18/02/2021,ARGOS LTD,Child in care - Games room,DISCOUNT STORES,CHILDREN & YOUNG PEOPLE
REDACTED,20.00,18/02/2021,AMZN Digital,child in care - XXXXX activity,RECORD SHOPS,CHILDREN & YOUNG PEOPLE
REDACTED,29.13,18/02/2021,AMZNMKTPLACE AMAZON.CO,Child in care - XXXXX activity,MISCELLANEOUS AND SPECIALTY RETAIL STORES,CHILDREN & YOUNG PEOPLE
REDACTED,208.32,18/02/2021,ARGOS LTD,Child in care - TV The Green,DISCOUNT STORES,CHILDREN & YOUNG PEOPLE
REDACTED,500.00,18/02/2021,GOOGLE  ADS6087318024,YouTube Suffolk NYSY CAMSRechargeOut,ADVERTISING SERVICES,CORPORATE SERVICES
REDACTED,-18.24,18/02/2021,ROYAL MAIL ONLINE SHOP,refund from Royal Mail,POSTAL SERVICES-GOVERNMENT ONLY,CORPORATE SERVICES
REDACTED,166.80,18/02/2021,SP   SPARTANSKN,secure clothing,"CONSULTING, MANAGEMENT AND PUBLIC RELATIONS SVCS",CHILDREN & YOUNG PEOPLE
REDACTED,7.99,18/02/2021,BLACKWELL UK LTD,XXXXX id 288290 - All about families,"OFFICE, SCHOOL SUPPLY, AND STATIONERY STORES",CHILDREN & YOUNG PEOPLE
REDACTED,20.00,18/02/2021,Dunelm,Charity Funding The Forge,"EQUIP, FURNITURE, HOME FURNSHNGS STRS (EXCPT APPL)",CHILDREN & YOUNG PEOPLE
REDACTED,64.80,18/02/2021,F2 MEDICAL SUPPLIES LT,COVID testing equipment,DENTAL/LAB/MED/OPHTHALMIC HOSP EQUIP & SUPPLIES,PUBLIC HEALTH
REDACTED,10.82,18/02/2021,AMZNMktplace,380077/1905S Setting up home item for client,MISCELLANEOUS AND SPECIALTY RETAIL STORES,CHILDREN & YOUNG PEOPLE
REDACTED,11.77,18/02/2021,Amazon.co.uk MF0NH2DQ4,398205/1910S Setting up home item for client,DIRECT MARKETING-OTHER DIRECT MARKETERS/NOT ELSEW.,CHILDREN & YOUNG PEOPLE
REDACTED,65.98,18/02/2021,Amazon.co.uk MF7HA8D74,Printer cartridges,DIRECT MARKETING-OTHER DIRECT MARKETERS/NOT ELSEW.,"GROWTH, HIGHWAYS & INFRASTRUCTURE"
REDACTED,129.35,18/02/2021,AMZNMktplace,Laptop protection bags for OCCR team,MISCELLANEOUS AND SPECIALTY RETAIL STORES,FIRE & PUBLIC SAFETY
REDACTED,34.35,18/02/2021,Amazon.co.uk MF9GW4S24,Printer ink for XXXXX,DIRECT MARKETING-OTHER DIRECT MARKETERS/NOT ELSEW.,"GROWTH, HIGHWAYS & INFRASTRUCTURE"
REDACTED,66.00,18/02/2021,POST OFFICE COUNTER,Stamps for BSE School Neighbour Notifications,POSTAL SERVICES-GOVERNMENT ONLY,"GROWTH, HIGHWAYS & INFRASTRUCTURE"
REDACTED,32.75,19/02/2021,APOSTILLE SERVICES,"376N, ID: 440814, Deed Poll change of name","CONSULTING, MANAGEMENT AND PUBLIC RELATIONS SVCS",CHILDREN & YOUNG PEOPLE
REDACTED,84.99,19/02/2021,Foot Locker Europe.com,"573N, ID: 333722, Trainers",SHOE STORES,CHILDREN & YOUNG PEOPLE
REDACTED,25.00,19/02/2021,NI NUMBER APP - AG LTD,1038700. 1128W,"CONSULTING, MANAGEMENT AND PUBLIC RELATIONS SVCS",CHILDREN & YOUNG PEOPLE
REDACTED,84.00,19/02/2021,WWW.JA.NET,Domain names SR-193955 XXXXX,"ORGANISATIONS, MEMBERSHIP-NOT ELSEWHERE CLASSIFIED",CORPORATE SERVICES
REDACTED,270.00,19/02/2021,MBL SEMINARS,GDPR in Education course 23/2-XXXXX,SCHOOLS & EDUCATIONAL SVC-NOT ELSEWHERE CLASSIFIED,CORPORATE SERVICES
REDACTED,1245.00,19/02/2021,Amazon.co.uk MF1O162R4,Vouchers for use by Inclusion Team staff,DIRECT MARKETING-OTHER DIRECT MARKETERS/NOT ELSEW.,CHILDREN & YOUNG PEOPLE
REDACTED,181.00,19/02/2021,www.taxicode.com,450927. Travel,TRAVEL AGENCIES AND TOUR OPERATORS,CHILDREN & YOUNG PEOPLE
REDACTED,70.75,19/02/2021,AMZNMktplace,Floor stickers for Lateral Flow test sites,MISCELLANEOUS AND SPECIALTY RETAIL STORES,FIRE & PUBLIC SAFETY
REDACTED,35.79,19/02/2021,AMZNMktplace,Step ladder,MISCELLANEOUS AND SPECIALTY RETAIL STORES,FIRE & PUBLIC SAFETY
REDACTED,21.32,19/02/2021,AMZNMktplace,Children's home expense - Reward,MISCELLANEOUS AND SPECIALTY RETAIL STORES,CHILDREN & YOUNG PEOPLE
REDACTED,12.03,19/02/2021,AMZNMKTPLACE AMAZON.CO,Children's Home Expense - Reward XXXXX,MISCELLANEOUS AND SPECIALTY RETAIL STORES,CHILDREN & YOUNG PEOPLE
REDACTED,45.75,19/02/2021,STATIONERY OFFICE BOOK,Emergency Action Code Cards,BOOK STORES,FIRE & PUBLIC SAFETY
REDACTED,31.93,19/02/2021,ASDA STORES LTD 5729,child in care - provisions,"GROCERY STORES, SUPERMARKETS",CHILDREN & YOUNG PEOPLE
REDACTED,85.60,19/02/2021,ALDI 776 147,child in care - provisions,"GROCERY STORES, SUPERMARKETS",CHILDREN & YOUNG PEOPLE
REDACTED,24.99,19/02/2021,BLACKWELL UK LTD,XXXXX 531190 Supporting mental health book,"OFFICE, SCHOOL SUPPLY, AND STATIONERY STORES",CHILDREN & YOUNG PEOPLE
REDACTED,110.00,19/02/2021,B&Q DIRECT,Charity Funding The Forge.,HOME SUPPLY WAREHOUSE STORES,CHILDREN & YOUNG PEOPLE
REDACTED,175.00,19/02/2021,WWW.APEA.ORG.UK,APEA Subscription,"ORGANISATIONS, MEMBERSHIP-NOT ELSEWHERE CLASSIFIED",FIRE & PUBLIC SAFETY
REDACTED,13.98,19/02/2021,Amazon.co.uk MF6CX4KC4,Children in care - cook book for the home nil vat,DIRECT MARKETING-OTHER DIRECT MARKETERS/NOT ELSEW.,CHILDREN & YOUNG PEOPLE
REDACTED,7.91,19/02/2021,AMZNMktplace,522235/1916S Setting up home item for client,MISCELLANEOUS AND SPECIALTY RETAIL STORES,CHILDREN & YOUNG PEOPLE
REDACTED,9.99,19/02/2021,AMZNMktplace,522235/1916S Setting up home item for client,MISCELLANEOUS AND SPECIALTY RETAIL STORES,CHILDREN & YOUNG PEOPLE
REDACTED,24.45,19/02/2021,AMZNMktplace,Laminator and pouches for XXXXX at home,MISCELLANEOUS AND SPECIALTY RETAIL STORES,"GROWTH, HIGHWAYS & INFRASTRUCTURE"
REDACTED,44.95,22/02/2021,ARGOS LTD,1157099 1120W Tablet,DISCOUNT STORES,CHILDREN & YOUNG PEOPLE
REDACTED,28.00,22/02/2021,TYPEFORM S.L,Website form builder tool,"CONSULTING, MANAGEMENT AND PUBLIC RELATIONS SVCS",ADULT & COMMUNITY SERVICES
REDACTED,96.60,22/02/2021,PARTRIDGE & PRINT,6 x Safer Caring books,SCHOOLS & EDUCATIONAL SVC-NOT ELSEWHERE CLASSIFIED,CHILDREN & YOUNG PEOPLE
REDACTED,20.97,22/02/2021,ASDA SUPERSTORE,children's home expense - provisions,"GROCERY STORES, SUPERMARKETS",CHILDREN & YOUNG PEOPLE
REDACTED,29.95,22/02/2021,DOMINO'S PIZZA,children's home expense - take away night,"EATING PLACES, RESTAURANTS",CHILDREN & YOUNG PEOPLE
REDACTED,3.34,22/02/2021,SUPERDRUG STORES PLC,children's home expense - toiletries,"DRUG STORES, PHARMACIES",CHILDREN & YOUNG PEOPLE
REDACTED,115.29,22/02/2021,AMZNMktplace,Tassia PU Faux Leather  Folder x6 for CSV's,MISCELLANEOUS AND SPECIALTY RETAIL STORES,FIRE & PUBLIC SAFETY
REDACTED,7.47,22/02/2021,B&M 420 - HS LOWESTOFT,child in care - bedroom equipment,SUNDRY GENERAL MERCHANDISE,CHILDREN & YOUNG PEOPLE
REDACTED,7.48,22/02/2021,ASDA STORES LTD 5729,child in care - food provisions,"GROCERY STORES, SUPERMARKETS",CHILDREN & YOUNG PEOPLE
REDACTED,16.45,22/02/2021,ASDA STORES LTD 5729,Child in care - food provisions,"GROCERY STORES, SUPERMARKETS",CHILDREN & YOUNG PEOPLE
REDACTED,26.16,22/02/2021,ALDI 776 147,child in care - food provisions,"GROCERY STORES, SUPERMARKETS",CHILDREN & YOUNG PEOPLE
REDACTED,9.76,22/02/2021,ALDI 776 147,Child in care - food provisions,"GROCERY STORES, SUPERMARKETS",CHILDREN & YOUNG PEOPLE
REDACTED,35.83,22/02/2021,WM MORRISONS STORE,child in care - Kitchen equipment,"GROCERY STORES, SUPERMARKETS",CHILDREN & YOUNG PEOPLE
REDACTED,21.63,22/02/2021,B&M 420 - HS LOWESTOFT,Child in care - kitchen equipment,SUNDRY GENERAL MERCHANDISE,CHILDREN & YOUNG PEOPLE
REDACTED,5.16,22/02/2021,FLICKR,Photo account,OTHER SERVICES (NOT ELSEWHERE CLASSIFIED),CORPORATE SERVICES
REDACTED,17.91,22/02/2021,Amazon.co.uk MF2LX1RY4,headset XXXXX,DIRECT MARKETING-OTHER DIRECT MARKETERS/NOT ELSEW.,CHILDREN & YOUNG PEOPLE
REDACTED,20.89,22/02/2021,AMZNMKTPLACE AMAZON.CO,XXXXX 2039564 Prayer mat & Quran 020SL394,MISCELLANEOUS AND SPECIALTY RETAIL STORES,CHILDREN & YOUNG PEOPLE
REDACTED,24.99,22/02/2021,BLACKWELL UK LTD,XXXXX 298788 Supporting mental health book,"OFFICE, SCHOOL SUPPLY, AND STATIONERY STORES",CHILDREN & YOUNG PEOPLE
REDACTED,125.00,22/02/2021,FACEBK  JMDQB27QC2,Boosted Facebook post,ADVERTISING SERVICES,"GROWTH, HIGHWAYS & INFRASTRUCTURE"
REDACTED,20.00,22/02/2021,AMZN Digital,children in care amazon x box,RECORD SHOPS,CHILDREN & YOUNG PEOPLE
REDACTED,128.46,22/02/2021,TESCO STORE 2166,children in care provisions,"GROCERY STORES, SUPERMARKETS",CHILDREN & YOUNG PEOPLE
REDACTED,2.49,22/02/2021,AMZNMktplace,children in care thank you notes amazon,MISCELLANEOUS AND SPECIALTY RETAIL STORES,CHILDREN & YOUNG PEOPLE
REDACTED,116.66,22/02/2021,ARGOS LTD,Child in care - TV for XXXXX's room,DISCOUNT STORES,CHILDREN & YOUNG PEOPLE
REDACTED,2.92,22/02/2021,WWW.JDWILLIAMS.CO.UK,1054995/1852S Setting up home item for client,DEPARTMENT STORES,CHILDREN & YOUNG PEOPLE
REDACTED,224.17,22/02/2021,WWW.JDWILLIAMS.CO.UK,1054995/1852S Setting up home item for client,DEPARTMENT STORES,CHILDREN & YOUNG PEOPLE
REDACTED,33.33,22/02/2021,Klarna  siksilk com,2019867/1058S Clothing allowance for client,FAMILY CLOTHING STORES,CHILDREN & YOUNG PEOPLE
REDACTED,36.00,22/02/2021,www.asos.com,2019867/1058S Clothing allowance for client,FAMILY CLOTHING STORES,CHILDREN & YOUNG PEOPLE
REDACTED,68.50,22/02/2021,SP   GRIND CITY LONDON,472619/1919S Birthday allowance for client,MEN'S AND WOMEN'S CLOTHING STORES,CHILDREN & YOUNG PEOPLE
REDACTED,21.49,22/02/2021,BOOHOO.COM,472619/1919S Birthday allowance for client,MEN'S AND WOMEN'S CLOTHING STORES,CHILDREN & YOUNG PEOPLE
REDACTED,311.95,22/02/2021,ARGOS LTD,Bunk Beds and Mattress for Foster Carer XXXXX,DISCOUNT STORES,CHILDREN & YOUNG PEOPLE
REDACTED,46.70,22/02/2021,AMZNMktplace,Key Safe for Capel Community Church- CC Outreach,MISCELLANEOUS AND SPECIALTY RETAIL STORES,CHILDREN & YOUNG PEOPLE
REDACTED,15.00,22/02/2021,ARGOS LTD,Lavenham Road 1 x Curtain pole,DISCOUNT STORES,ADULT & COMMUNITY SERVICES
REDACTED,183.00,22/02/2021,THE CEDARS HOTEL MOTO,Client ACS B&B,"LODGING-HOTELS,MOTELS,RESORTS-NOT CLASSIFIED",CHILDREN & YOUNG PEOPLE
REDACTED,183.00,22/02/2021,THE CEDARS HOTEL MOTO,Client ACS B&B,"LODGING-HOTELS,MOTELS,RESORTS-NOT CLASSIFIED",CHILDREN & YOUNG PEOPLE
REDACTED,70.00,22/02/2021,CabCard Services UK,Client Transport,LIMOUSINES AND TAXICABS,CHILDREN & YOUNG PEOPLE
REDACTED,31.60,22/02/2021,TRAVELODGE GB0000,CYP Client B&B,TRAVELODGE,CHILDREN & YOUNG PEOPLE
REDACTED,35.99,23/02/2021,AMZNMktplace,1064849 1137W,MISCELLANEOUS AND SPECIALTY RETAIL STORES,CHILDREN & YOUNG PEOPLE
REDACTED,14.98,23/02/2021,AMZNMktplace,496060 1122W,MISCELLANEOUS AND SPECIALTY RETAIL STORES,CHILDREN & YOUNG PEOPLE
REDACTED,18.77,23/02/2021,MAILCHIMP    MONTHLY,mailchimp e update mailout,DIRECT MARKETING - CONTINUITY/SUBSCRIPTION MERCHANTS,"GROWTH, HIGHWAYS & INFRASTRUCTURE"
REDACTED,10.00,23/02/2021,HMCTS-SUFFOLK024,1064849 Fine. 1136W,FINES,CHILDREN & YOUNG PEOPLE
REDACTED,839.80,23/02/2021,AMZNMktplace,Huawei mobile wi-fi devices for DFE laptop scheme,MISCELLANEOUS AND SPECIALTY RETAIL STORES,CHILDREN & YOUNG PEOPLE
REDACTED,180.00,23/02/2021,EB  HEALTHY BLADDERS A,Attendance at enuresis training event,BUSINESS SERVICES-NOT ELSEWHERE CLASSIFIED,CHILDREN & YOUNG PEOPLE
REDACTED,180.00,23/02/2021,EB  HEALTHY BLADDERS A,attendance at enuresis training event,BUSINESS SERVICES-NOT ELSEWHERE CLASSIFIED,CHILDREN & YOUNG PEOPLE
REDACTED,90.00,23/02/2021,EB  HEALTHY BLADDERS A,attendance at enuresis training event,BUSINESS SERVICES-NOT ELSEWHERE CLASSIFIED,CHILDREN & YOUNG PEOPLE
REDACTED,89.88,23/02/2021,TESCO STORE 3240,Children's home expense- provisions,"GROCERY STORES, SUPERMARKETS",CHILDREN & YOUNG PEOPLE
REDACTED,92.52,23/02/2021,AMZNMktplace,Tassia PU Faux Leather Folders for CSV's,MISCELLANEOUS AND SPECIALTY RETAIL STORES,FIRE & PUBLIC SAFETY
REDACTED,12.13,23/02/2021,MCDONALDS,Child in care - activity,FAST FOOD RESTAURANTS,CHILDREN & YOUNG PEOPLE
REDACTED,29.16,23/02/2021,Amazon.co.uk MF3PD3YL4,child in care - XXXXX activity,DIRECT MARKETING-OTHER DIRECT MARKETERS/NOT ELSEW.,CHILDREN & YOUNG PEOPLE
REDACTED,15.42,23/02/2021,B&M 420 - HS LOWESTOFT,Child in care - XXXXX activity,SUNDRY GENERAL MERCHANDISE,CHILDREN & YOUNG PEOPLE
REDACTED,288.00,23/02/2021,SP SERVICES UK LTD,DF/416 iPAD SP1 Training Pads,"HEALTH PRACTITIONERS, MEDICAL SRVCS-NOT ELSEWHERE",FIRE & PUBLIC SAFETY
REDACTED,40.79,23/02/2021,MEDTREE,Prestan Face Shield Lung Bags (Pack of 50),MISCELLANEOUS AND SPECIALTY RETAIL STORES,FIRE & PUBLIC SAFETY
REDACTED,398.35,23/02/2021,WWW.QUALSAFE.COM,Wound-FX® Tourniquet and Wound Packing Trainer,SCHOOLS & EDUCATIONAL SVC-NOT ELSEWHERE CLASSIFIED,FIRE & PUBLIC SAFETY
REDACTED,-11.38,23/02/2021,FASTER PAYMENT RECEIVED- THANK YOU,Refund - Error correction,,"GROWTH, HIGHWAYS & INFRASTRUCTURE"
REDACTED,166.95,23/02/2021,MOSS BROS,1256546/1134S Clothing for school for client,MEN'S AND BOY'S CLOTHING AND ACCESSORIES STORES,CHILDREN & YOUNG PEOPLE
REDACTED,-14.65,23/02/2021,AMZNMKTPLACE AMAZON.CO,398205/1867S Setting up home items for client,MISCELLANEOUS AND SPECIALTY RETAIL STORES,CHILDREN & YOUNG PEOPLE
REDACTED,181.95,23/02/2021,www.asos.com,398234/749S Clothing allowance for client,FAMILY CLOTHING STORES,CHILDREN & YOUNG PEOPLE
REDACTED,90.10,23/02/2021,WWW.ROMWE.COM,527167/1467S Clothing allowance for client,WOMEN'S READY-TO-WEAR STORES,CHILDREN & YOUNG PEOPLE
REDACTED,35.75,24/02/2021,HORSE REQUISITES NEWMA,"577N, ID: 360810, safety boots, gloves","SPORTS APPAREL, RIDING APPAREL STORES",CHILDREN & YOUNG PEOPLE
REDACTED,20.99,24/02/2021,ONE4ALL,"579N, ID: 508359, gift card",DEPARTMENT STORES,CHILDREN & YOUNG PEOPLE
REDACTED,20.99,24/02/2021,ONE4ALL,"580N, ID 284428, gift card",DEPARTMENT STORES,CHILDREN & YOUNG PEOPLE
REDACTED,43.98,24/02/2021,VERY,"582N, ID: 1054954, slow cooker",DIRECT MARKETING - CATALOGUE MERCHANTS,CHILDREN & YOUNG PEOPLE
REDACTED,100.43,24/02/2021,AMZNMktplace,515610 1147W,MISCELLANEOUS AND SPECIALTY RETAIL STORES,CHILDREN & YOUNG PEOPLE
REDACTED,4.21,24/02/2021,MSFT  <E0800DNQGQ>,O365 PAYG Subs - XXXXX,"COMPUTERS, COMPUTER PERIPHERAL EQUIPMENT, SOFTWARE",CORPORATE SERVICES
REDACTED,6.00,24/02/2021,TESCO STORE 2877,4 prs shoelaces for prevention / stock,"GROCERY STORES, SUPERMARKETS",FIRE & PUBLIC SAFETY
REDACTED,41.70,24/02/2021,WEL MEDICAL LIMITED ON,starter kits Supplier not on Oracle needed quickly,"HEALTH PRACTITIONERS, MEDICAL SRVCS-NOT ELSEWHERE",FIRE & PUBLIC SAFETY
REDACTED,18.00,24/02/2021,Dunelm,child in care - equipment bedroom XXXXX,"EQUIP, FURNITURE, HOME FURNSHNGS STRS (EXCPT APPL)",CHILDREN & YOUNG PEOPLE
REDACTED,388.44,24/02/2021,BOOKERECOMM,child in care - food provisions,CATERERS,CHILDREN & YOUNG PEOPLE
REDACTED,30.00,24/02/2021,Amazon.co.uk MM0N36OI4,Vouchers for young people interviewing FSPs,DIRECT MARKETING-OTHER DIRECT MARKETERS/NOT ELSEW.,CHILDREN & YOUNG PEOPLE
REDACTED,49.93,24/02/2021,ARGOS LTD,2 x stairgate bought for service user,DISCOUNT STORES,CHILDREN & YOUNG PEOPLE
REDACTED,22.00,24/02/2021,GEN REGISTER OFFICE,23/2 BC0017 & BC0018 at £11 each,GOVERNMENT SERVICES-NOT ELSEWHERE CLASSIFIED,CHILDREN & YOUNG PEOPLE
REDACTED,73.00,24/02/2021,GEN REGISTER OFFICE,23/2 BC0021 x 2 Priority Order £38 each,GOVERNMENT SERVICES-NOT ELSEWHERE CLASSIFIED,CHILDREN & YOUNG PEOPLE
REDACTED,23.26,24/02/2021,FACEBK  JTUFLZNPC2,Boosted Facebook post,ADVERTISING SERVICES,"GROWTH, HIGHWAYS & INFRASTRUCTURE"
REDACTED,9.99,24/02/2021,AMZNMktplace,Phone to telescope adapter,MISCELLANEOUS AND SPECIALTY RETAIL STORES,"GROWTH, HIGHWAYS & INFRASTRUCTURE"
REDACTED,95.69,24/02/2021,www.bizay.co.uk,Redshank postcard printing,"QUICK COPY, REPRODUCTION AND BLUEPRINTING SERVICES","GROWTH, HIGHWAYS & INFRASTRUCTURE"
REDACTED,30.00,24/02/2021,TESCO GIFT CARD,reunification food,"GROCERY STORES, SUPERMARKETS",CHILDREN & YOUNG PEOPLE
REDACTED,24.00,24/02/2021,IPSWICH BOROUGH CO,2 car park permits for the team,GOVERNMENT SERVICES-NOT ELSEWHERE CLASSIFIED,CHILDREN & YOUNG PEOPLE
REDACTED,5.00,24/02/2021,WWW.SECURE-PAYMENT-SER,262779/1939S Email service for client,"COMP PROGRAMING,DATA PRCSNG,INTGRTD SYS DSGN SRVS",CHILDREN & YOUNG PEOPLE
REDACTED,19.87,24/02/2021,AMZNMKTPLACE AMAZON.CO,289224/1925S Setting up home items for client,MISCELLANEOUS AND SPECIALTY RETAIL STORES,CHILDREN & YOUNG PEOPLE
REDACTED,79.20,24/02/2021,PAYPAL  ANDY221170 EBA,316614/1940S Birthday allowance for client,MISCELLANEOUS AND SPECIALTY RETAIL STORES,CHILDREN & YOUNG PEOPLE
REDACTED,34.00,24/02/2021,PAYPAL  PAULWHITEHE EB,316614/1940S Birthday allowance for client,MISCELLANEOUS AND SPECIALTY RETAIL STORES,CHILDREN & YOUNG PEOPLE
REDACTED,19.16,24/02/2021,AMZNMktplace,IT equipment for XXXXX.,MISCELLANEOUS AND SPECIALTY RETAIL STORES,FIRE & PUBLIC SAFETY
REDACTED,64.57,24/02/2021,Amazon.co.uk MM1UD1FZ4,IT equipment for XXXXX.,DIRECT MARKETING-OTHER DIRECT MARKETERS/NOT ELSEW.,FIRE & PUBLIC SAFETY
REDACTED,327.00,24/02/2021,THE CEDARS HOTEL,Hotel accommodation re XXXXX,"LODGING-HOTELS,MOTELS,RESORTS-NOT CLASSIFIED",ADULT & COMMUNITY SERVICES
REDACTED,55.99,24/02/2021,JD SPORTS INTERNET,Child in Care - Clothing/trainers,SPORTING GOODS STORES,CHILDREN & YOUNG PEOPLE
REDACTED,-138.99,25/02/2021,WF  WAYFAIR 3498178454,"516N, ID: 464258, coffee table refund","EQUIP, FURNITURE, HOME FURNSHNGS STRS (EXCPT APPL)",CHILDREN & YOUNG PEOPLE
REDACTED,10.99,25/02/2021,ONE4ALL,"584N, ID: 1260985, gift card",DEPARTMENT STORES,CHILDREN & YOUNG PEOPLE
REDACTED,23.00,25/02/2021,DISCLOSURE AND BARRING,"585N, ID: 532688, DBS check",GOVERNMENT SERVICES-NOT ELSEWHERE CLASSIFIED,CHILDREN & YOUNG PEOPLE
REDACTED,50.40,25/02/2021,Shein.com,1269904 1110W,MEN'S AND WOMEN'S CLOTHING STORES,CHILDREN & YOUNG PEOPLE
REDACTED,29.95,25/02/2021,PAYPAL  CERTIFICATE,515610 1146W,BUSINESS SERVICES-NOT ELSEWHERE CLASSIFIED,CHILDREN & YOUNG PEOPLE
REDACTED,26.80,25/02/2021,WWW.MIDSUFFOLK.GOV.UK,URGENT LLC1 SEARCH (64375),GOVERNMENT SERVICES-NOT ELSEWHERE CLASSIFIED,CORPORATE SERVICES
REDACTED,25.00,25/02/2021,WEST SUFFOLK COUNCIL,URGENT LLC1 SEARCH (64375),GOVERNMENT SERVICES-NOT ELSEWHERE CLASSIFIED,CORPORATE SERVICES
REDACTED,26.80,25/02/2021,WWW.MIDSUFFOLK.GOV.UK,URGENT LLC1 SEARCH (64375) REFUNDED BELOW,GOVERNMENT SERVICES-NOT ELSEWHERE CLASSIFIED,CORPORATE SERVICES
REDACTED,18.99,25/02/2021,AMZNMKTPLACE AMAZON.CO,Headset for new starter.,MISCELLANEOUS AND SPECIALTY RETAIL STORES,CHILDREN & YOUNG PEOPLE
REDACTED,252.00,25/02/2021,WWW.CORAM.ORG.UK,Training for ADMs funded by WFD,"ORGANISATIONS, CHARITABLE AND SOCIAL SERVICES",CHILDREN & YOUNG PEOPLE
REDACTED,75.00,25/02/2021,PAYPAL  LIAMMQ EBAY LI,LEGO dots bulk for archives for families session,MISCELLANEOUS AND SPECIALTY RETAIL STORES,"GROWTH, HIGHWAYS & INFRASTRUCTURE"
REDACTED,49.25,25/02/2021,TRAVELODGE GB0000,Adoption Introduction XXXXX & XXXXX 2010878 - 26.02.2021,TRAVELODGE,CHILDREN & YOUNG PEOPLE
REDACTED,16.99,25/02/2021,TESCO ONLINE,mobile phone/top up 086LS231/9,MISCELLANEOUS AND SPECIALTY RETAIL STORES,CHILDREN & YOUNG PEOPLE
REDACTED,16.66,25/02/2021,AMZN Digital,Child in care - Roblox gift card,RECORD SHOPS,CHILDREN & YOUNG PEOPLE
REDACTED,700.00,25/02/2021,FACEBK V9NR32PNF2,Facebook advertising,ADVERTISING SERVICES,CORPORATE SERVICES
REDACTED,7.00,25/02/2021,TIMPSON LTD,key cut for service use,MISCELLANEOUS AND SPECIALTY RETAIL STORES,CHILDREN & YOUNG PEOPLE
REDACTED,267.50,25/02/2021,DVLA VEHICLE TAX,Car tax for pool vehicle,TAX PAYMENTS,FIRE & PUBLIC SAFETY
REDACTED,2.49,25/02/2021,AMZNMKTPLACE AMAZON.CO,Children in care Amazon thankyou cards,MISCELLANEOUS AND SPECIALTY RETAIL STORES,CHILDREN & YOUNG PEOPLE
REDACTED,39.99,25/02/2021,JD SPORTS INTERNET,children in care trainers,SPORTING GOODS STORES,CHILDREN & YOUNG PEOPLE
REDACTED,74.33,25/02/2021,WWW.PAPAJOHNS.CO.UK,Pizza Order for FLATS Programme,"EATING PLACES, RESTAURANTS",CHILDREN & YOUNG PEOPLE
REDACTED,67.94,25/02/2021,Domino s Pizza,Pizza Order for XXXXX 70500,"EATING PLACES, RESTAURANTS",CHILDREN & YOUNG PEOPLE
REDACTED,75.39,25/02/2021,Domino s Pizza,Pizza Order for XXXXX 66660,"EATING PLACES, RESTAURANTS",CHILDREN & YOUNG PEOPLE
REDACTED,176.00,25/02/2021,WWW.THEWORKS.CO.UK,1812S Equipment for clients from donation,DISCOUNT STORES,CHILDREN & YOUNG PEOPLE
REDACTED,27.77,25/02/2021,AMZNMktplace,398205/1924S Setting up home items for client,MISCELLANEOUS AND SPECIALTY RETAIL STORES,CHILDREN & YOUNG PEOPLE
REDACTED,14.35,25/02/2021,AMZNMktplace,398205/1924S Setting up home items for client,MISCELLANEOUS AND SPECIALTY RETAIL STORES,CHILDREN & YOUNG PEOPLE
REDACTED,349.00,25/02/2021,RSPB SALES LTD,Telescope for estuary monitoring,"ORGANISATIONS, CHARITABLE AND SOCIAL SERVICES","GROWTH, HIGHWAYS & INFRASTRUCTURE"
REDACTED,383.08,25/02/2021,OIL NRG LIMITED,Heating oil for customer XXXXX 3008677,PETROLEUM AND PETROLEUM PRODUCTS,ADULT & COMMUNITY SERVICES
REDACTED,34.00,26/02/2021,DVLA DRIVER ONLINE,"533N, ID: 358829, provisional licence",GOVERNMENT SERVICES-NOT ELSEWHERE CLASSIFIED,CHILDREN & YOUNG PEOPLE
REDACTED,34.00,26/02/2021,DVLA DRIVER ONLINE,"536N, ID: 485183, provisional licence",GOVERNMENT SERVICES-NOT ELSEWHERE CLASSIFIED,CHILDREN & YOUNG PEOPLE
REDACTED,14.00,26/02/2021,GEN REGISTER OFFICE,"587N, ID: 358829, birth certificate",GOVERNMENT SERVICES-NOT ELSEWHERE CLASSIFIED,CHILDREN & YOUNG PEOPLE
REDACTED,14.00,26/02/2021,GEN REGISTER OFFICE,"590N, ID: 485183, birth certificate",GOVERNMENT SERVICES-NOT ELSEWHERE CLASSIFIED,CHILDREN & YOUNG PEOPLE
REDACTED,8.99,26/02/2021,DEEDPOLLS ONLINE,"591N, ID: 358829, Deed poll",PROFESSIONAL SERVICES - NOT ELSEWHERE CLASSIFIED,CHILDREN & YOUNG PEOPLE
REDACTED,-26.80,26/02/2021,MID SUFFOLK DISTRICT C,REFUND OF URGENT LLC1 SEARCH (64375),GOVERNMENT SERVICES-NOT ELSEWHERE CLASSIFIED,CORPORATE SERVICES
REDACTED,36.80,26/02/2021,WWW.MIDSUFFOLK.GOV.UK,URGENT LLC1 SEARCH (64375),GOVERNMENT SERVICES-NOT ELSEWHERE CLASSIFIED,CORPORATE SERVICES
REDACTED,25.00,26/02/2021,WEST SUFFOLK COUNCIL,URGENT LLC1 SEARCH (64375),GOVERNMENT SERVICES-NOT ELSEWHERE CLASSIFIED,CORPORATE SERVICES
REDACTED,25.00,26/02/2021,WEST SUFFOLK COUNCIL,URGENT LLC1 SEARCH (64375),GOVERNMENT SERVICES-NOT ELSEWHERE CLASSIFIED,CORPORATE SERVICES
REDACTED,11.27,26/02/2021,ROYAL MAIL GROUP LTD,Audit files returned to me,POSTAL SERVICES-GOVERNMENT ONLY,"GROWTH, HIGHWAYS & INFRASTRUCTURE"
REDACTED,80.50,26/02/2021,HM PASSPORT OFFICE,320737 1151W,GOVERNMENT SERVICES-NOT ELSEWHERE CLASSIFIED,CHILDREN & YOUNG PEOPLE
REDACTED,77.00,26/02/2021,INTERFLORA BRITISH UNI,Condolence flowers - District,FLORISTS,FIRE & PUBLIC SAFETY
REDACTED,87.00,26/02/2021,INTERFLORA BRITISH UNI,Condolence flowers - Service,FLORISTS,FIRE & PUBLIC SAFETY
REDACTED,363.15,26/02/2021,AMZNMKTPLACE AMAZON.CO,extraction tube racks,MISCELLANEOUS AND SPECIALTY RETAIL STORES,FIRE & PUBLIC SAFETY
REDACTED,55.50,26/02/2021,WWW.CORAM.ORG.UK,Training for ADMs funded by WFD,"ORGANISATIONS, CHARITABLE AND SOCIAL SERVICES",CHILDREN & YOUNG PEOPLE
REDACTED,17.89,26/02/2021,Amazon.co.uk MM9T32Z14,pencil pots and pencil for exhibition interactive,DIRECT MARKETING-OTHER DIRECT MARKETERS/NOT ELSEW.,"GROWTH, HIGHWAYS & INFRASTRUCTURE"
REDACTED,.99,26/02/2021,MCDONALDS,child in care - activity,FAST FOOD RESTAURANTS,CHILDREN & YOUNG PEOPLE
REDACTED,42.72,26/02/2021,ASDA STORES LTD 5729,child in care - clothing toiletries activity XXXXX,"GROCERY STORES, SUPERMARKETS",CHILDREN & YOUNG PEOPLE
REDACTED,123.47,26/02/2021,ASDA STORES LTD 5729,child in care - food provisions,"GROCERY STORES, SUPERMARKETS",CHILDREN & YOUNG PEOPLE
REDACTED,7.06,26/02/2021,THE RANGE,"child in care - toiletries , activity, XXXXX",DEPARTMENT STORES,CHILDREN & YOUNG PEOPLE
REDACTED,19.99,26/02/2021,WWW.INFORMA.COM,Book for SENDIASS team,SUNDRY PUBLISHING AND PRINTING,CHILDREN & YOUNG PEOPLE
REDACTED,24.98,26/02/2021,AMZNMKTPLACE AMAZON.CO,Heavy duty sampling bags unable to source internal,MISCELLANEOUS AND SPECIALTY RETAIL STORES,FIRE & PUBLIC SAFETY
REDACTED,8.34,26/02/2021,ORWELL TRUCKS LTD,Fuse Box Terminals,AUTOMOTIVE SERVICE SHOPS,FIRE & PUBLIC SAFETY
REDACTED,22.00,26/02/2021,MY.NORFOLK.GOV.UK,2 x birth certificate requested,GOVERNMENT SERVICES-NOT ELSEWHERE CLASSIFIED,CHILDREN & YOUNG PEOPLE
REDACTED,14.89,26/02/2021,AMZNMktplace,XXXXX 2030914 Prayer mat 020SL401,MISCELLANEOUS AND SPECIALTY RETAIL STORES,CHILDREN & YOUNG PEOPLE
REDACTED,18.39,26/02/2021,AMZNMKTPLACE AMAZON.CO,2 X lock and twist containers,MISCELLANEOUS AND SPECIALTY RETAIL STORES,FIRE & PUBLIC SAFETY
REDACTED,49.13,26/02/2021,WWW.FIRST-RESCUE.CO.UK,PAD SP1 AED Training Pads,SCHOOLS & EDUCATIONAL SVC-NOT ELSEWHERE CLASSIFIED,FIRE & PUBLIC SAFETY
REDACTED,89.98,26/02/2021,WWW.PCWB.COM,small fridge for the classroom,COMPUTER SOFTWARE STORES,FIRE & PUBLIC SAFETY
REDACTED,249.70,26/02/2021,PAYPAL  INCENTIVEPL,Innovative Resources cards for the team,VARIETY STORES,CHILDREN & YOUNG PEOPLE
REDACTED,4.99,26/02/2021,AMZNMktplace,children in care amazon game,MISCELLANEOUS AND SPECIALTY RETAIL STORES,CHILDREN & YOUNG PEOPLE
REDACTED,6.66,26/02/2021,Amazon Prime MM9Y95ZB4,children in care amazon subscription,DIRECT MARKETING - CONTINUITY/SUBSCRIPTION MERCHANTS,CHILDREN & YOUNG PEOPLE
REDACTED,15.00,26/02/2021,AMZN Digital,children in care amazon x box,RECORD SHOPS,CHILDREN & YOUNG PEOPLE
REDACTED,46.83,26/02/2021,SPORTSDIRECT.COM,children in care sports wear,SPORTING GOODS STORES,CHILDREN & YOUNG PEOPLE
REDACTED,13.33,26/02/2021,SPORTSDIRECT.COM,children in care trainers,SPORTING GOODS STORES,CHILDREN & YOUNG PEOPLE
REDACTED,36.73,26/02/2021,AMZNMKTPLACE AMAZON.CO,"Keyboard, Mouse stand etc. (XXXXX)",MISCELLANEOUS AND SPECIALTY RETAIL STORES,"GROWTH, HIGHWAYS & INFRASTRUCTURE"
REDACTED,33.32,26/02/2021,AMZNMKTPLACE AMAZON.CO,ROW - EMERGENCY Plotter paper (to be recovered),MISCELLANEOUS AND SPECIALTY RETAIL STORES,"GROWTH, HIGHWAYS & INFRASTRUCTURE"
REDACTED,22.65,26/02/2021,AMZNMKTPLACE AMAZON.CO,289224/1925S Setting up home items for client,MISCELLANEOUS AND SPECIALTY RETAIL STORES,CHILDREN & YOUNG PEOPLE
REDACTED,174.00,01/03/2021,Dunelm,"589N, ID: 1059164, SUHA items","EQUIP, FURNITURE, HOME FURNSHNGS STRS (EXCPT APPL)",CHILDREN & YOUNG PEOPLE
REDACTED,-7.50,01/03/2021,GEN REGISTER OFFICE,PART REFUND OF BIRTH CERTIFICATE FEE (64763),GOVERNMENT SERVICES-NOT ELSEWHERE CLASSIFIED,CORPORATE SERVICES
REDACTED,-1245.00,01/03/2021,AMZ Amazon.co.uk,Vouchers - XXXXX,DIRECT MARKETING-OTHER DIRECT MARKETERS/NOT ELSEW.,CHILDREN & YOUNG PEOPLE
REDACTED,67.33,01/03/2021,FACEBK  UGJM73BCW2,facebook food savvy ads,ADVERTISING SERVICES,"GROWTH, HIGHWAYS & INFRASTRUCTURE"
REDACTED,75.00,01/03/2021,PARKDEAN RESORTS H,Children's home expense - CIC holiday,CAMPGROUNDS AND TRAILER PARKS,CHILDREN & YOUNG PEOPLE
REDACTED,75.00,01/03/2021,PARKDEAN RESORTS H,Children's home expense - CIC holiday,CAMPGROUNDS AND TRAILER PARKS,CHILDREN & YOUNG PEOPLE
REDACTED,25.92,01/03/2021,AMZNMKTPLACE AMAZON.CO,Children's home expense - first aid,MISCELLANEOUS AND SPECIALTY RETAIL STORES,CHILDREN & YOUNG PEOPLE
REDACTED,58.74,01/03/2021,TESCO STORE 3240,Children's home expense - Provisions,"GROCERY STORES, SUPERMARKETS",CHILDREN & YOUNG PEOPLE
REDACTED,150.00,01/03/2021,Shopfitting Warehouse,10 x black metal grids for Bury Archives,OFFICE AND COMMERCIAL FURNITURE,"GROWTH, HIGHWAYS & INFRASTRUCTURE"
REDACTED,50.22,01/03/2021,TESCO-STORES 2502,child in care - food provisions,"GROCERY STORES, SUPERMARKETS",CHILDREN & YOUNG PEOPLE
REDACTED,12.08,01/03/2021,WM MORRISONS STORE,child in care - food provisions,"GROCERY STORES, SUPERMARKETS",CHILDREN & YOUNG PEOPLE
REDACTED,.91,01/03/2021,PPOINT_ MORTON CONVENI,child in care - food provisions,"MISC FOOD STORE-CONVENIENCE,MRKT,SPLTY,VENDNG MACS",CHILDREN & YOUNG PEOPLE
REDACTED,17.27,01/03/2021,ASDA STORES LTD 5729,child in care - food provisions,"GROCERY STORES, SUPERMARKETS",CHILDREN & YOUNG PEOPLE
REDACTED,6.66,01/03/2021,Amazon Prime MM8T57TA4,child in care - subscription,DIRECT MARKETING - CONTINUITY/SUBSCRIPTION MERCHANTS,CHILDREN & YOUNG PEOPLE
REDACTED,100.00,01/03/2021,EB  SUPPORTING ADULT S,Eventbrite training,BUSINESS SERVICES-NOT ELSEWHERE CLASSIFIED,CHILDREN & YOUNG PEOPLE
REDACTED,-288.00,01/03/2021,SP SERVICES UK LTD,DF/416 iPAD SP1 Training Pads REFUND,"HEALTH PRACTITIONERS, MEDICAL SRVCS-NOT ELSEWHERE",FIRE & PUBLIC SAFETY
REDACTED,10.79,01/03/2021,AMZNMKTPLACE AMAZON.CO,children in care amazon cash tin,MISCELLANEOUS AND SPECIALTY RETAIL STORES,CHILDREN & YOUNG PEOPLE
REDACTED,20.82,01/03/2021,ARGOS LTD,children in care birthday present,DISCOUNT STORES,CHILDREN & YOUNG PEOPLE
REDACTED,-20.82,01/03/2021,ARGOS LTD,children in care birthday present refund,DISCOUNT STORES,CHILDREN & YOUNG PEOPLE
REDACTED,95.82,01/03/2021,Foot Locker Europe.com,children in care children shoes/trainers,SHOE STORES,CHILDREN & YOUNG PEOPLE
REDACTED,7.50,01/03/2021,SAINSBURYS SACAT0411,children in care clothes,"GROCERY STORES, SUPERMARKETS",CHILDREN & YOUNG PEOPLE
REDACTED,57.08,01/03/2021,ASDA  STORES 4218,children in care clothing,"GROCERY STORES, SUPERMARKETS",CHILDREN & YOUNG PEOPLE
REDACTED,26.25,01/03/2021,TESCO STORE 2166,children in care clothing,"GROCERY STORES, SUPERMARKETS",CHILDREN & YOUNG PEOPLE
REDACTED,99.99,01/03/2021,MUSIC MAGPIE,children in care IPOD child's birthday present,ELECTRONIC SALES,CHILDREN & YOUNG PEOPLE
REDACTED,24.99,01/03/2021,ARGOS LTD,children in care jewellery present,DISCOUNT STORES,CHILDREN & YOUNG PEOPLE
REDACTED,88.69,01/03/2021,ASDA  STORES 4218,children in care provisions,"GROCERY STORES, SUPERMARKETS",CHILDREN & YOUNG PEOPLE
REDACTED,29.56,01/03/2021,ASDA  STORES 4218,children in care provisions,"GROCERY STORES, SUPERMARKETS",CHILDREN & YOUNG PEOPLE
REDACTED,8.30,01/03/2021,TESCO STORE 2166,children in care provisions,"GROCERY STORES, SUPERMARKETS",CHILDREN & YOUNG PEOPLE
REDACTED,6.66,01/03/2021,Amazon Prime MM7S99N54,Children in care - Amazon Prime delivery charge,DIRECT MARKETING - CONTINUITY/SUBSCRIPTION MERCHANTS,CHILDREN & YOUNG PEOPLE
REDACTED,13.45,01/03/2021,Amazon.co.uk MM0HL7NS4,Children in care-Equip purch/crockery,DIRECT MARKETING-OTHER DIRECT MARKETERS/NOT ELSEW.,CHILDREN & YOUNG PEOPLE
REDACTED,16.66,01/03/2021,AMZNMktplace,Children in care-Equip purch/crockery,MISCELLANEOUS AND SPECIALTY RETAIL STORES,CHILDREN & YOUNG PEOPLE
REDACTED,11.66,01/03/2021,AMZNMktplace,Children in care-Equip purch/crockery,MISCELLANEOUS AND SPECIALTY RETAIL STORES,CHILDREN & YOUNG PEOPLE
REDACTED,1.20,02/03/2021,ASDA SUPERSTORE,Children's home expense - greeting card,"GROCERY STORES, SUPERMARKETS",CHILDREN & YOUNG PEOPLE
REDACTED,95.35,02/03/2021,ASDA SUPERSTORE,Children's home expense - Provisions & cleaning,"GROCERY STORES, SUPERMARKETS",CHILDREN & YOUNG PEOPLE
REDACTED,3.95,02/03/2021,D & L STANTON LTD,Milk,"MISC FOOD STORE-CONVENIENCE,MRKT,SPLTY,VENDNG MACS",CHILDREN & YOUNG PEOPLE
REDACTED,13.84,02/03/2021,PARCELCOMPARE,Courier costs - cheaper to arrange directly,PROFESSIONAL SERVICES - NOT ELSEWHERE CLASSIFIED,FIRE & PUBLIC SAFETY
REDACTED,128.60,02/03/2021,EASYLINK UK,"Customer:  XXXXX321581
Partial refund received below",DIRECT MARKETING-OTHER DIRECT MARKETERS/NOT ELSEW.,ADULT & COMMUNITY SERVICES
REDACTED,36.99,02/03/2021,SPORTSDIRECT.COM,clothing for child,SPORTING GOODS STORES,CHILDREN & YOUNG PEOPLE
REDACTED,12.99,02/03/2021,Amazon.co.uk MM4AZ6064,XXXXX 2040234 Quran - 020SL402,DIRECT MARKETING-OTHER DIRECT MARKETERS/NOT ELSEW.,CHILDREN & YOUNG PEOPLE
REDACTED,92.49,02/03/2021,RSPB SALES LTD,Tripod,"ORGANISATIONS, CHARITABLE AND SOCIAL SERVICES","GROWTH, HIGHWAYS & INFRASTRUCTURE"
REDACTED,14.00,02/03/2021,CLOOK  - INV 348876,Clook web hosting upgrade,"COMP PROGRAMING,DATA PRCSNG,INTGRTD SYS DSGN SRVS","GROWTH, HIGHWAYS & INFRASTRUCTURE"
REDACTED,54.99,02/03/2021,Pandora Jewellery UK L,children in care birthday present for child,"CLOCK, JEWELRY, WATCH, AND SILVERWARE STORES",CHILDREN & YOUNG PEOPLE
REDACTED,49.99,02/03/2021,JD SPORTS INTERNET,children in care clothing/shoes,SPORTING GOODS STORES,CHILDREN & YOUNG PEOPLE
REDACTED,9.14,02/03/2021,ZOOM.US 888-799-9666,BEE Zoom subscription,TELECOM INCL PREPAID/RECURRING PHONE SVCS,"GROWTH, HIGHWAYS & INFRASTRUCTURE"
REDACTED,29.82,02/03/2021,BRITISH HARDWOODS,oak battens,"EQUIP, FURNITURE, HOME FURNSHNGS STRS (EXCPT APPL)","GROWTH, HIGHWAYS & INFRASTRUCTURE"
REDACTED,20.82,02/03/2021,AMZNMKTPLACE AMAZON.CO,Headphones for XXXXX,MISCELLANEOUS AND SPECIALTY RETAIL STORES,CHILDREN & YOUNG PEOPLE
REDACTED,74.99,02/03/2021,AMZNMktplace,1178440/1766S Setting up home item for client,MISCELLANEOUS AND SPECIALTY RETAIL STORES,CHILDREN & YOUNG PEOPLE
REDACTED,40.00,02/03/2021,HMCTS-SUFFOLK024,1215557/650S Fine for client,FINES,CHILDREN & YOUNG PEOPLE
REDACTED,72.95,02/03/2021,Yours Clothing,365653/1348S Clothing allowance for client,MEN'S AND WOMEN'S CLOTHING STORES,CHILDREN & YOUNG PEOPLE
REDACTED,3.84,02/03/2021,POST OFFICE COUNTER,4 x Large 2nd Stamps,POSTAL SERVICES-GOVERNMENT ONLY,CHILDREN & YOUNG PEOPLE
REDACTED,13.98,03/03/2021,Amazon.co.uk MM76G5PY4,Expense Details not known.,DIRECT MARKETING-OTHER DIRECT MARKETERS/NOT ELSEW.,CHILDREN & YOUNG PEOPLE
REDACTED,750.00,03/03/2021,Amazon.co.uk MM28V4114,XXXXX - Vouchers,DIRECT MARKETING-OTHER DIRECT MARKETERS/NOT ELSEW.,CHILDREN & YOUNG PEOPLE
REDACTED,495.00,03/03/2021,Amazon.co.uk MM6JU01X4,XXXXX - Vouchers,DIRECT MARKETING-OTHER DIRECT MARKETERS/NOT ELSEW.,CHILDREN & YOUNG PEOPLE
REDACTED,163.59,03/03/2021,SMITH BROS TIMBER,District XXXXX training equipment,"BUILDING MATERIALS, LUMBER STORES",FIRE & PUBLIC SAFETY
REDACTED,55.00,03/03/2021,Allpay  THE RIVERSIDE,SERVICE CHARGES FOR YP XXXXX,"ORGANISATIONS, CHARITABLE AND SOCIAL SERVICES",CHILDREN & YOUNG PEOPLE
REDACTED,75.96,03/03/2021,AMZNMktplace,Skype headsets for new starters and office spares.,MISCELLANEOUS AND SPECIALTY RETAIL STORES,CHILDREN & YOUNG PEOPLE
REDACTED,33.33,03/03/2021,SPORTSDIRECT.COM,Children's home expense - Trainers XXXXX,SPORTING GOODS STORES,CHILDREN & YOUNG PEOPLE
REDACTED,6.68,03/03/2021,PAYPAL  ROYAL MAIL,Royal Mail Postage for pride book purchase,BUSINESS SERVICES-NOT ELSEWHERE CLASSIFIED,"GROWTH, HIGHWAYS & INFRASTRUCTURE"
REDACTED,17.48,03/03/2021,AMZNMktplace,XXXXX - Sudbury small keyboard,MISCELLANEOUS AND SPECIALTY RETAIL STORES,ADULT & COMMUNITY SERVICES
REDACTED,11.35,03/03/2021,BLACKWELL UK LTD,XXXXX 288290 - Talking about feelings book,"OFFICE, SCHOOL SUPPLY, AND STATIONERY STORES",CHILDREN & YOUNG PEOPLE
REDACTED,37.00,03/03/2021,DVSA,Theory test driver training,GOVERNMENT SERVICES-NOT ELSEWHERE CLASSIFIED,FIRE & PUBLIC SAFETY
REDACTED,30.00,03/03/2021,TESCO GIFT CARD,reunification food,"GROCERY STORES, SUPERMARKETS",CHILDREN & YOUNG PEOPLE
REDACTED,6.65,03/03/2021,TOOLSTATION LTD,Door handle for front door at Martlesham stores,"BUILDING MATERIALS, LUMBER STORES",FIRE & PUBLIC SAFETY
REDACTED,34.16,03/03/2021,SCREWFIX DIRECT,10 x line marking paint (spray),"BUILDING MATERIALS, LUMBER STORES",FIRE & PUBLIC SAFETY
REDACTED,55.20,03/03/2021,DIRECT 365ONLINE LTD,"3, 20LChemical Spill Kits For traffic Survey",BUSINESS SERVICES-NOT ELSEWHERE CLASSIFIED,"GROWTH, HIGHWAYS & INFRASTRUCTURE"
REDACTED,18.30,03/03/2021,SCREWFIX DIRECT,4 cans of WD40 Contact Cleaner for Traffic Survey,"BUILDING MATERIALS, LUMBER STORES","GROWTH, HIGHWAYS & INFRASTRUCTURE"
REDACTED,22.22,03/03/2021,AJ TEK CORPORATION,WSUS Auto Maint - Downstream-Spam Filters/Domain b,COMPUTER SOFTWARE STORES,FIRE & PUBLIC SAFETY
REDACTED,4.94,03/03/2021,Trainline,Child in Care - Train fare,PASSENGER RAILWAYS,CHILDREN & YOUNG PEOPLE
REDACTED,190.80,04/03/2021,Barriers Direct,Tensabarrier  for CSV x 3,SUNDRY GENERAL MERCHANDISE,FIRE & PUBLIC SAFETY
REDACTED,54.65,04/03/2021,Shein.com,"549N, ID: 459498, clothing",MEN'S AND WOMEN'S CLOTHING STORES,CHILDREN & YOUNG PEOPLE
REDACTED,244.97,04/03/2021,ARGOS LTD,515610.1160W,DISCOUNT STORES,CHILDREN & YOUNG PEOPLE
REDACTED,152.80,04/03/2021,WWW.MIDSUFFOLK.GOV.UK,URGENT LLC SEARCH (60850),GOVERNMENT SERVICES-NOT ELSEWHERE CLASSIFIED,CORPORATE SERVICES
REDACTED,6.66,04/03/2021,Amazon Prime MM1LP7GD4,Amazon Prime,DIRECT MARKETING - CONTINUITY/SUBSCRIPTION MERCHANTS,CHILDREN & YOUNG PEOPLE
REDACTED,32.85,04/03/2021,www.asos.com,Children's home expense - Clothing XXXXX,FAMILY CLOTHING STORES,CHILDREN & YOUNG PEOPLE
REDACTED,3.00,04/03/2021,PAYPAL  ROYAL MAIL,Royal mail postage for pride book purchase,BUSINESS SERVICES-NOT ELSEWHERE CLASSIFIED,"GROWTH, HIGHWAYS & INFRASTRUCTURE"
REDACTED,300.00,04/03/2021,FLAGSHIP HOUSING GROUP,rent deposit cin 086CH186/1,PROFESSIONAL SERVICES - NOT ELSEWHERE CLASSIFIED,CHILDREN & YOUNG PEOPLE
REDACTED,14.08,04/03/2021,AMZNMKTPLACE AMAZON.CO,child in care - activity,MISCELLANEOUS AND SPECIALTY RETAIL STORES,CHILDREN & YOUNG PEOPLE
REDACTED,9.92,04/03/2021,Amazon.co.uk MM5U39XX4,Children in care - Table tennis activity,DIRECT MARKETING-OTHER DIRECT MARKETERS/NOT ELSEW.,CHILDREN & YOUNG PEOPLE
REDACTED,52.50,04/03/2021,AUSTENKNAPMANCO.UK,Metal pins,"BUILDING MATERIALS, LUMBER STORES","GROWTH, HIGHWAYS & INFRASTRUCTURE"
REDACTED,9.99,04/03/2021,AMZNMKTPLACE AMAZON.CO,"Latex/Rubber Free Gloves, non standard order",MISCELLANEOUS AND SPECIALTY RETAIL STORES,CHILDREN & YOUNG PEOPLE
REDACTED,59.94,04/03/2021,WWW.192.COM,COVID locating missing people,ADVERTISING SERVICES,PUBLIC HEALTH
REDACTED,26.95,04/03/2021,TOOLSTATION UK,WD40,HARDWARE STORES,"GROWTH, HIGHWAYS & INFRASTRUCTURE"
REDACTED,193.77,04/03/2021,Shein.com,312353/616S Clothing allowance for client,MEN'S AND WOMEN'S CLOTHING STORES,CHILDREN & YOUNG PEOPLE
REDACTED,17.89,04/03/2021,AMZNMKTPLACE AMAZON.CO,460597/1966S Setting up home items for client,MISCELLANEOUS AND SPECIALTY RETAIL STORES,CHILDREN & YOUNG PEOPLE
REDACTED,17.00,04/03/2021,AMZNMKTPLACE AMAZON.CO,460597/1966S Setting up home items for client,MISCELLANEOUS AND SPECIALTY RETAIL STORES,CHILDREN & YOUNG PEOPLE
REDACTED,9.99,04/03/2021,AMZNMKTPLACE AMAZON.CO,460597/1966S Setting up home items for client,MISCELLANEOUS AND SPECIALTY RETAIL STORES,CHILDREN & YOUNG PEOPLE
REDACTED,13.28,04/03/2021,MailChimp,Mailchimp subscription,DIGITAL GOODS MULTI-CATEGORY,"GROWTH, HIGHWAYS & INFRASTRUCTURE"
REDACTED,206.95,04/03/2021,ARGOS LTD,F&E XXXXX - Bed Frame,DISCOUNT STORES,ADULT & COMMUNITY SERVICES
REDACTED,8.32,04/03/2021,Amazon.co.uk MM6UR1XE4,Envelopes for XXXXX at home,DIRECT MARKETING-OTHER DIRECT MARKETERS/NOT ELSEW.,"GROWTH, HIGHWAYS & INFRASTRUCTURE"
REDACTED,58.29,05/03/2021,AMZNMKTPLACE AMAZON.CO,797655 1165W,MISCELLANEOUS AND SPECIALTY RETAIL STORES,CHILDREN & YOUNG PEOPLE
REDACTED,79.99,05/03/2021,FOOTASYLUM PLC,371160 1167W.,MEN'S AND WOMEN'S CLOTHING STORES,CHILDREN & YOUNG PEOPLE
REDACTED,18.98,05/03/2021,AMZNMktplace,children's home expense - clothes,MISCELLANEOUS AND SPECIALTY RETAIL STORES,CHILDREN & YOUNG PEOPLE
REDACTED,11.74,05/03/2021,AMZNMKTPLACE AMAZON.CO,children's home expense - Clothes,MISCELLANEOUS AND SPECIALTY RETAIL STORES,CHILDREN & YOUNG PEOPLE
REDACTED,399.16,05/03/2021,WWW.PCWB.COM,Cooker Customer XXXXX 1211875,COMPUTER SOFTWARE STORES,ADULT & COMMUNITY SERVICES
REDACTED,44.98,05/03/2021,Amazon.co.uk MM6TA1VE4,Echo 5 Stay in Touch Digital Equipment Customer XXXXX,DIRECT MARKETING-OTHER DIRECT MARKETERS/NOT ELSEW.,ADULT & COMMUNITY SERVICES
REDACTED,53.16,05/03/2021,AMZNMKTPLACE AMAZON.CO,child in care - art activity,MISCELLANEOUS AND SPECIALTY RETAIL STORES,CHILDREN & YOUNG PEOPLE
REDACTED,115.79,05/03/2021,ARGOS LTD,child in care - bedroom furniture,DISCOUNT STORES,CHILDREN & YOUNG PEOPLE
REDACTED,196.26,05/03/2021,ALDI 776 147,child in care - food provisions,"GROCERY STORES, SUPERMARKETS",CHILDREN & YOUNG PEOPLE
REDACTED,700.00,05/03/2021,FACEBK 5QB2J2TNF2,Facebook advertising,ADVERTISING SERVICES,CORPORATE SERVICES
REDACTED,54.00,05/03/2021,HM PASSPORT OFFICE,Passport application,GOVERNMENT SERVICES-NOT ELSEWHERE CLASSIFIED,CHILDREN & YOUNG PEOPLE
REDACTED,23.94,05/03/2021,Amazon.co.uk MM6NZ0VY4,headset and post for XXXXX,DIRECT MARKETING-OTHER DIRECT MARKETERS/NOT ELSEW.,CHILDREN & YOUNG PEOPLE
REDACTED,35.36,05/03/2021,UK DP - NAME CHANGE,312353/1982S Deed Poll service for client,BUSINESS SERVICES-NOT ELSEWHERE CLASSIFIED,CHILDREN & YOUNG PEOPLE
REDACTED,174.17,05/03/2021,STUDIO ONE FRAMES LTD,"AONB Awards, Printing and Framing","COMMERCIAL ART, GRAPHICS, PHOTOGRAPHY","GROWTH, HIGHWAYS & INFRASTRUCTURE"
REDACTED,12.68,05/03/2021,SIMPLEMDM,usage fees prorated,COMPUTER SOFTWARE STORES,FIRE & PUBLIC SAFETY
REDACTED,4.62,05/03/2021,POST OFFICE COUNTER,7 x Large 2nd Stamps,POSTAL SERVICES-GOVERNMENT ONLY,CHILDREN & YOUNG PEOPLE
REDACTED,58.66,08/03/2021,MAILCHIMP    MONTHLY,AU Monthly mailchimp,DIRECT MARKETING - CONTINUITY/SUBSCRIPTION MERCHANTS,CHILDREN & YOUNG PEOPLE
REDACTED,53.96,08/03/2021,AMZNMktplace,515610 1175W,MISCELLANEOUS AND SPECIALTY RETAIL STORES,CHILDREN & YOUNG PEOPLE
REDACTED,144.95,08/03/2021,ARGOS LTD,256787 1169W.,DISCOUNT STORES,CHILDREN & YOUNG PEOPLE
REDACTED,12.49,08/03/2021,ARGOS LTD,483782. 1170W,DISCOUNT STORES,CHILDREN & YOUNG PEOPLE
REDACTED,451.80,08/03/2021,MEDICAL WORLD LIMI,Medical trays for lateral flow test sites,"DOCTORS, (NOT ELSEWHERE CLASSIFIED)",FIRE & PUBLIC SAFETY
REDACTED,9.59,08/03/2021,B&M 055 - STOWMARKET,children's home expense - duvet XXXXX,SUNDRY GENERAL MERCHANDISE,CHILDREN & YOUNG PEOPLE
REDACTED,57.42,08/03/2021,LIDL GB  STOWMARKET,children's home expense - provisions,"GROCERY STORES, SUPERMARKETS",CHILDREN & YOUNG PEOPLE
REDACTED,3.10,08/03/2021,TESCO STORE 3240,children's home expense - provisions,"GROCERY STORES, SUPERMARKETS",CHILDREN & YOUNG PEOPLE
REDACTED,5.82,08/03/2021,AMZNMKTPLACE AMAZON.CO,children's home expense - wall hooks,MISCELLANEOUS AND SPECIALTY RETAIL STORES,CHILDREN & YOUNG PEOPLE
REDACTED,69.87,08/03/2021,SP   DIVE MANCHESTER,3 SWR Gloves No other supplier has stock now,"ASSOCIATIONS - CIVIC, SOCIAL AND FRATERNAL",FIRE & PUBLIC SAFETY
REDACTED,6.84,08/03/2021,AMZNMktplace,child in care -,MISCELLANEOUS AND SPECIALTY RETAIL STORES,CHILDREN & YOUNG PEOPLE
REDACTED,3.98,08/03/2021,KFC LOWESTOFT,child in care - activity,FAST FOOD RESTAURANTS,CHILDREN & YOUNG PEOPLE
REDACTED,17.14,08/03/2021,KFC LOWESTOFT,child in care - activity,FAST FOOD RESTAURANTS,CHILDREN & YOUNG PEOPLE
REDACTED,50.00,08/03/2021,AMZN Digital,child in care - activity XXXXX,RECORD SHOPS,CHILDREN & YOUNG PEOPLE
REDACTED,15.00,08/03/2021,AMZN Digital,Child in care - activity XXXXX,RECORD SHOPS,CHILDREN & YOUNG PEOPLE
REDACTED,45.04,08/03/2021,B&M 420 - HS LOWESTOFT,child in care - cleaning supplies,SUNDRY GENERAL MERCHANDISE,CHILDREN & YOUNG PEOPLE
REDACTED,6.00,08/03/2021,B&M 420 - HS LOWESTOFT,child in care - food provisions,SUNDRY GENERAL MERCHANDISE,CHILDREN & YOUNG PEOPLE
REDACTED,4.00,08/03/2021,WM MORRISONS STORE,Child in care - food provisions,"GROCERY STORES, SUPERMARKETS",CHILDREN & YOUNG PEOPLE
REDACTED,1.25,08/03/2021,ONE STOP 0843,child in care - provisions,"GROCERY STORES, SUPERMARKETS",CHILDREN & YOUNG PEOPLE
REDACTED,20.00,08/03/2021,Amazon.co.uk MM7404ME4,Voucher for young person's NEET interview,DIRECT MARKETING-OTHER DIRECT MARKETERS/NOT ELSEW.,CHILDREN & YOUNG PEOPLE
REDACTED,79.38,08/03/2021,Fiverr Limited,voiceover for video,DEPARTMENT STORES,CORPORATE SERVICES
REDACTED,262.70,08/03/2021,WWW.GARDENTRACTORSPARE,LPP Spares,MISC/AUTO/AIRCRAFT/FARM EQUIP NOT ELSEWHERE CLASS,FIRE & PUBLIC SAFETY
REDACTED,2.91,08/03/2021,Prime Video MM3KR68K4,looked after children amazon dvd,RECORD SHOPS,CHILDREN & YOUNG PEOPLE
REDACTED,24.16,08/03/2021,AMZNMKTPLACE AMAZON.CO,Keyboard & mouse,MISCELLANEOUS AND SPECIALTY RETAIL STORES,"GROWTH, HIGHWAYS & INFRASTRUCTURE"
REDACTED,300.00,08/03/2021,ONE4ALL,1984S Equipment for clients - rewards,DEPARTMENT STORES,CHILDREN & YOUNG PEOPLE
REDACTED,147.96,08/03/2021,HTTP //IGW-TRAEFIK.INT,475369/1258S Clothing allowance for client,MEN'S AND WOMEN'S CLOTHING STORES,CHILDREN & YOUNG PEOPLE
REDACTED,158.32,08/03/2021,AMZNMktplace,Hoover for customer,MISCELLANEOUS AND SPECIALTY RETAIL STORES,ADULT & COMMUNITY SERVICES
REDACTED,4.50,09/03/2021,WWW.MIB.ORG.UK,ONLINE SEARCH RE CAR INSURANCE (56072),PROFESSIONAL SERVICES - NOT ELSEWHERE CLASSIFIED,CORPORATE SERVICES
REDACTED,80.50,09/03/2021,HM PASSPORT OFFICE,478953 1176W,GOVERNMENT SERVICES-NOT ELSEWHERE CLASSIFIED,CHILDREN & YOUNG PEOPLE
REDACTED,114.07,09/03/2021,ASDA SUPERSTORE,children's home expense - provisions,"GROCERY STORES, SUPERMARKETS",CHILDREN & YOUNG PEOPLE
REDACTED,780.33,09/03/2021,TWEET BINDER,advertising,COMPUTER NETWORK/INFORMATION SERVICES,CORPORATE SERVICES
REDACTED,92.50,09/03/2021,MITCHELLS GARAGE LTD,AX15 DWF Rear Lamp fault,"AUTO & TRUCK DLRS-SALES,SVC, REPRS,PRTS, & LEASING",FIRE & PUBLIC SAFETY
REDACTED,22.00,09/03/2021,GEN REGISTER OFFICE,8/3 Birth certs x 2 BC0019 & BC0020 at £11 each,GOVERNMENT SERVICES-NOT ELSEWHERE CLASSIFIED,CHILDREN & YOUNG PEOPLE
REDACTED,4.78,09/03/2021,AMZNMktplace,Faceplate for wall single socket,MISCELLANEOUS AND SPECIALTY RETAIL STORES,FIRE & PUBLIC SAFETY
REDACTED,29.64,09/03/2021,AMZNMKTPLACE AMAZON.CO,Universal scented cleasing wipes extra large,MISCELLANEOUS AND SPECIALTY RETAIL STORES,FIRE & PUBLIC SAFETY
REDACTED,-25.60,09/03/2021,SPORTSDIRECT.COM,children in care shoes clothing/shoes refund,SPORTING GOODS STORES,CHILDREN & YOUNG PEOPLE
REDACTED,10.00,09/03/2021,AMZN Digital,children in care x box amazon,RECORD SHOPS,CHILDREN & YOUNG PEOPLE
REDACTED,8.33,09/03/2021,AMZN Digital,Child in care - Gift card for child,RECORD SHOPS,CHILDREN & YOUNG PEOPLE
REDACTED,10.00,09/03/2021,JD SPORTS INTERNET,1258672/1992S Birthday allowance for client,SPORTING GOODS STORES,CHILDREN & YOUNG PEOPLE
REDACTED,13.24,09/03/2021,AMZNMktplace,VIG Video camera bag,MISCELLANEOUS AND SPECIALTY RETAIL STORES,CHILDREN & YOUNG PEOPLE
REDACTED,-3.05,09/03/2021,Trainline,Child in care - train fare refund,PASSENGER RAILWAYS,CHILDREN & YOUNG PEOPLE
REDACTED,39.43,10/03/2021,Shein.com,"595N, ID: 391937, clothing",MEN'S AND WOMEN'S CLOTHING STORES,CHILDREN & YOUNG PEOPLE
REDACTED,25.99,10/03/2021,NEW LOOK INTERNET,"595N, ID: 391937, clothing",WOMEN'S READY-TO-WEAR STORES,CHILDREN & YOUNG PEOPLE
REDACTED,10.99,10/03/2021,ONE4ALL,"609N, ID: 354670, gift card",DEPARTMENT STORES,CHILDREN & YOUNG PEOPLE
REDACTED,20.99,10/03/2021,ONE4ALL,"611N, ID: 897435, gift card",DEPARTMENT STORES,CHILDREN & YOUNG PEOPLE
REDACTED,25.00,10/03/2021,GEN REGISTER OFFICE,272772 1177W,GOVERNMENT SERVICES-NOT ELSEWHERE CLASSIFIED,CHILDREN & YOUNG PEOPLE
REDACTED,249.17,10/03/2021,APPLE.COM/UK,395263. 1182W/1183W/492W,ELECTRONIC SALES,CHILDREN & YOUNG PEOPLE
REDACTED,42.00,10/03/2021,WWW.JA.NET,Domain name SR-197485 XXXXX,"ORGANISATIONS, MEMBERSHIP-NOT ELSEWHERE CLASSIFIED",CORPORATE SERVICES
REDACTED,11.00,10/03/2021,WWW.LGSS.CO.UK,URGENT COPY BIRTH CERTIFICATE (63079),"COLLEGES, UNIV, PRO SCHOOLS, JUNIOR COLLEGES",CORPORATE SERVICES
REDACTED,102.00,10/03/2021,www.anyvan.com,1204W. 318848. REmovals,"FREIGHT CARRIER,TRUCKING-LCL/LNG DIST, MVG/STORAGE",CHILDREN & YOUNG PEOPLE
REDACTED,24.96,10/03/2021,ARGOS LTD,children's home expense - XXXXX phone,DISCOUNT STORES,CHILDREN & YOUNG PEOPLE
REDACTED,17.99,10/03/2021,AMZNMKTPLACE AMAZON.CO,Collapsible Trolley for West Suffolk House,MISCELLANEOUS AND SPECIALTY RETAIL STORES,ADULT & COMMUNITY SERVICES
REDACTED,80.59,10/03/2021,BOOHOO.COM,child in care - clothing,MEN'S AND WOMEN'S CLOTHING STORES,CHILDREN & YOUNG PEOPLE
REDACTED,54.59,10/03/2021,BOOHOO.COM,child in care - clothing XXXXX,MEN'S AND WOMEN'S CLOTHING STORES,CHILDREN & YOUNG PEOPLE
REDACTED,-104.65,10/03/2021,EASYLINK UK,"Customer:  XXXXX321581
Partial refund",DIRECT MARKETING-OTHER DIRECT MARKETERS/NOT ELSEW.,ADULT & COMMUNITY SERVICES
REDACTED,15.60,10/03/2021,D J EVANS (BURY) LTD,BRE and Branch Screws,"BUILDING MATERIALS, LUMBER STORES",FIRE & PUBLIC SAFETY
REDACTED,33.00,10/03/2021,GEN REGISTER OFFICE,"9/3 Birth certs x 3 BC0022, BC0023, BC0024 at £11",GOVERNMENT SERVICES-NOT ELSEWHERE CLASSIFIED,CHILDREN & YOUNG PEOPLE
REDACTED,30.00,10/03/2021,TESCO GIFT CARD,reunification,"GROCERY STORES, SUPERMARKETS",CHILDREN & YOUNG PEOPLE
REDACTED,173.16,10/03/2021,ARGOS LTD,Safe/Dinner set/Oven trays etc for Lowestoft Hse,DISCOUNT STORES,CHILDREN & YOUNG PEOPLE
REDACTED,483.26,10/03/2021,ARGOS LTD,TV/Hoover/Bedding/Toaster/Saucepans Lowestoft Hse,DISCOUNT STORES,CHILDREN & YOUNG PEOPLE
REDACTED,1154.52,10/03/2021,ARGOS LTD,White Goods/Beds/Wardrobe for Lowestoft House,DISCOUNT STORES,CHILDREN & YOUNG PEOPLE
REDACTED,82.06,10/03/2021,AMZNMktplace,children in care birthday present for child,MISCELLANEOUS AND SPECIALTY RETAIL STORES,CHILDREN & YOUNG PEOPLE
REDACTED,43.99,10/03/2021,ZOOM.US 888-799-9666,BEE Zoom subscription,TELECOM INCL PREPAID/RECURRING PHONE SVCS,"GROWTH, HIGHWAYS & INFRASTRUCTURE"
REDACTED,213.17,10/03/2021,STEVEN EAGELL IPSWICH,REPAIR OF BRAKE LIGHT ON VAN,"AUTO & TRUCK DLRS-SALES,SVC, REPRS,PRTS, & LEASING",ADULT & COMMUNITY SERVICES
REDACTED,6.35,10/03/2021,WP-TVCABLES NIMBUS,3m ethernet cable,ELECTRONIC SALES,"GROWTH, HIGHWAYS & INFRASTRUCTURE"
REDACTED,100.00,10/03/2021,WWW.MIDSUFFOLK.GOV.UK,Application fee to register the address,GOVERNMENT SERVICES-NOT ELSEWHERE CLASSIFIED,FIRE & PUBLIC SAFETY
REDACTED,400.00,11/03/2021,ERIC DINES CONTRACT FL,265789 1189W,FLOOR COVERING STORES,CHILDREN & YOUNG PEOPLE
REDACTED,19.96,11/03/2021,AMZNMKTPLACE AMAZON.CO,344997 1179W,MISCELLANEOUS AND SPECIALTY RETAIL STORES,CHILDREN & YOUNG PEOPLE
REDACTED,39.00,11/03/2021,COOKIE CONTROL PRO,Cookie Control management software licence,"COMP PROGRAMING,DATA PRCSNG,INTGRTD SYS DSGN SRVS",ADULT & COMMUNITY SERVICES
REDACTED,176.00,11/03/2021,AMZNMKTPLACE AMAZON.CO,Smoke detector tester spray x 10,MISCELLANEOUS AND SPECIALTY RETAIL STORES,FIRE & PUBLIC SAFETY
REDACTED,16.24,11/03/2021,AMZNMKTPLACE AMAZON.CO,Metal lockable box for new carer,MISCELLANEOUS AND SPECIALTY RETAIL STORES,CHILDREN & YOUNG PEOPLE
REDACTED,60.00,11/03/2021,CFOA-NFCC,NFCC Annual Conference,"ORGANISATIONS, CHARITABLE AND SOCIAL SERVICES",FIRE & PUBLIC SAFETY
REDACTED,58.00,11/03/2021,Dunelm,children's home expense - blinds,"EQUIP, FURNITURE, HOME FURNSHNGS STRS (EXCPT APPL)",CHILDREN & YOUNG PEOPLE
REDACTED,5.99,11/03/2021,NETFLIX.COM,Children's home expense Activity,"CABLE, SATELLITE, OTHER PAY TELEVISION, RADIO SVCS",CHILDREN & YOUNG PEOPLE
REDACTED,60.00,11/03/2021,Amazon.co.uk MM3RQ1274,Voucher for young people COS Interviews,DIRECT MARKETING-OTHER DIRECT MARKETERS/NOT ELSEW.,CHILDREN & YOUNG PEOPLE
REDACTED,165.00,11/03/2021,Amazon.co.uk MM42752F4,£15 gift cards to volunteers for interview assist,DIRECT MARKETING-OTHER DIRECT MARKETERS/NOT ELSEW.,CHILDREN & YOUNG PEOPLE
REDACTED,152.50,11/03/2021,DVLA VEHICLE TAX,Car tax for NTSIT pool vehicle,TAX PAYMENTS,FIRE & PUBLIC SAFETY
REDACTED,8.33,11/03/2021,B&M 405 - WESTERN WAY,children in care clock,SUNDRY GENERAL MERCHANDISE,CHILDREN & YOUNG PEOPLE
REDACTED,51.36,11/03/2021,ASDA  STORES 4218,children in care provisions,"GROCERY STORES, SUPERMARKETS",CHILDREN & YOUNG PEOPLE
REDACTED,53.33,11/03/2021,Dunelm,Children in care - toilet roll holders,"EQUIP, FURNITURE, HOME FURNSHNGS STRS (EXCPT APPL)",CHILDREN & YOUNG PEOPLE
REDACTED,214.81,11/03/2021,GITHUB,6 Seats X $48 per year,"COMP PROGRAMING,DATA PRCSNG,INTGRTD SYS DSGN SRVS",FIRE & PUBLIC SAFETY
REDACTED,104.17,11/03/2021,Dunelm,Childrens Rugs for centre,"EQUIP, FURNITURE, HOME FURNSHNGS STRS (EXCPT APPL)",CHILDREN & YOUNG PEOPLE
REDACTED,59.99,12/03/2021,Foot Locker Europe.com,"595N, ID: 391937, clothing",SHOE STORES,CHILDREN & YOUNG PEOPLE
REDACTED,80.00,12/03/2021,JD SPORTS INTERNET,"598N, ID: 358829, clothing",SPORTING GOODS STORES,CHILDREN & YOUNG PEOPLE
REDACTED,194.25,12/03/2021,Samsung Electronics,"613N, ID: 325591, TV",ELECTRONIC SALES,CHILDREN & YOUNG PEOPLE
REDACTED,75.50,12/03/2021,HM PASSPORT OFFICE,305268 1193W,GOVERNMENT SERVICES-NOT ELSEWHERE CLASSIFIED,CHILDREN & YOUNG PEOPLE
REDACTED,75.50,12/03/2021,HM PASSPORT OFFICE,515610 1197W,GOVERNMENT SERVICES-NOT ELSEWHERE CLASSIFIED,CHILDREN & YOUNG PEOPLE
REDACTED,398.00,12/03/2021,GROUND LABS,Card Recon renewal - XXXXX,"COMP PROGRAMING,DATA PRCSNG,INTGRTD SYS DSGN SRVS",CORPORATE SERVICES
REDACTED,20.00,12/03/2021,Amazon.co.uk MM8ZN79R4,Gift card for XXXXX birthday Staying Close,DIRECT MARKETING-OTHER DIRECT MARKETERS/NOT ELSEW.,CHILDREN & YOUNG PEOPLE
REDACTED,16.24,12/03/2021,AMZNMKTPLACE AMAZON.CO,Metal lockable box for new foster carer,MISCELLANEOUS AND SPECIALTY RETAIL STORES,CHILDREN & YOUNG PEOPLE
REDACTED,29.16,12/03/2021,AMZNMktplace,Later flow test equip,MISCELLANEOUS AND SPECIALTY RETAIL STORES,FIRE & PUBLIC SAFETY
REDACTED,67.63,12/03/2021,ALDI 776 147,child in care - food provisions,"GROCERY STORES, SUPERMARKETS",CHILDREN & YOUNG PEOPLE
REDACTED,21.00,12/03/2021,AMZNMktplace,Water filter cartridges,MISCELLANEOUS AND SPECIALTY RETAIL STORES,CHILDREN & YOUNG PEOPLE
REDACTED,54.16,12/03/2021,Amazon.co.uk MM26X19A4,"Customer XXXXX (3011135)
Digital Equip",DIRECT MARKETING-OTHER DIRECT MARKETERS/NOT ELSEW.,ADULT & COMMUNITY SERVICES
REDACTED,150.00,12/03/2021,WWW.FILMBANK.CO.UK,Film Bank Licence as requested by XXXXX,MOTION PICTURE/VIDEO TAPE PRODUCTION/DISTRIBUTION,"GROWTH, HIGHWAYS & INFRASTRUCTURE"
REDACTED,22.00,12/03/2021,Hobbycraft Trading Lim,Educational Supplies,"ARTIST SUPPLY STORES, CRAFT SHOPS",CHILDREN & YOUNG PEOPLE
REDACTED,49.95,12/03/2021,ARGOS LTD,XXXXX 2035189 Phone 020SL387,DISCOUNT STORES,CHILDREN & YOUNG PEOPLE
REDACTED,-49.95,12/03/2021,ARGOS LTD,XXXXX 2035189 Phone 020SL387,DISCOUNT STORES,CHILDREN & YOUNG PEOPLE
REDACTED,144.00,12/03/2021,MACHINE MART WEB,Large fan heater for WTC,"EQUIPMENT RENTAL & LEASING SVS, FURNTURE/TOOL RENTAL",FIRE & PUBLIC SAFETY
REDACTED,-133.99,12/03/2021,AMZ SANVENS,refund,MISCELLANEOUS AND SPECIALTY RETAIL STORES,CHILDREN & YOUNG PEOPLE
REDACTED,20.89,12/03/2021,AMZNMktplace,resources,MISCELLANEOUS AND SPECIALTY RETAIL STORES,CHILDREN & YOUNG PEOPLE
REDACTED,305.00,12/03/2021,RED LODGE KARTING,Red Lodge Karting Booking for Pathfinder project,"CLUBS-CNTRY,MBRSHIP(ATHLET,REC,SPRTS,PRIVATE GOLF",CHILDREN & YOUNG PEOPLE
REDACTED,65.00,12/03/2021,SP   THE RUGS OUTLET,1243939/2013S Setting up home item for client,COMPUTER SOFTWARE STORES,CHILDREN & YOUNG PEOPLE
REDACTED,204.11,12/03/2021,AMZNMKTPLACE AMAZON.CO,482836/1573S Setting up home item for client,MISCELLANEOUS AND SPECIALTY RETAIL STORES,CHILDREN & YOUNG PEOPLE
REDACTED,.96,12/03/2021,POST OFFICE COUNTER,1 x large 2nd,POSTAL SERVICES-GOVERNMENT ONLY,CHILDREN & YOUNG PEOPLE
REDACTED,50.00,12/03/2021,WHERSTEAD PARK,Co-Op Fresh Food Vouchers,"THEATRICAL PRODUCERS(EXCL MOTION PIX),TICKET AGNCY",CHILDREN & YOUNG PEOPLE
REDACTED,5.99,12/03/2021,NETFLIX.COM,Children in care - Netflix monthly subscription,"CABLE, SATELLITE, OTHER PAY TELEVISION, RADIO SVCS",CHILDREN & YOUNG PEOPLE
REDACTED,-59.99,15/03/2021,Foot Locker Europe.com,"595N, ID: 391937, clothing refund",SHOE STORES,CHILDREN & YOUNG PEOPLE
REDACTED,7.00,15/03/2021,1 AND 1 IONOS LTD,Monthly web hosting fee,COMPUTER NETWORK/INFORMATION SERVICES,CHILDREN & YOUNG PEOPLE
REDACTED,64.98,15/03/2021,SPORTSDIRECT.COM,1064849 1194W,SPORTING GOODS STORES,CHILDREN & YOUNG PEOPLE
REDACTED,24.82,15/03/2021,MailChimp,Mailchimp subscription for Education and Learning,DIGITAL GOODS MULTI-CATEGORY,CHILDREN & YOUNG PEOPLE
REDACTED,6.66,15/03/2021,Amazon Prime MM9LH8WY4,Children's home expense - Prime subscription,DIRECT MARKETING - CONTINUITY/SUBSCRIPTION MERCHANTS,CHILDREN & YOUNG PEOPLE
REDACTED,38.32,15/03/2021,ASDA SUPERSTORE,Children's home expense - provisions,"GROCERY STORES, SUPERMARKETS",CHILDREN & YOUNG PEOPLE
REDACTED,-40.00,15/03/2021,ARGOS LTD,Refund on Habitat Table,DISCOUNT STORES,ADULT & COMMUNITY SERVICES
REDACTED,15.30,15/03/2021,TESCO STORES 5086,Stamps,"GROCERY STORES, SUPERMARKETS",FIRE & PUBLIC SAFETY
REDACTED,366.67,15/03/2021,AKB 2000 LIMITED,Training equipment hire,"AUTOMOTIVE PARTS, ACCESSORIES STORES",FIRE & PUBLIC SAFETY
REDACTED,14.00,15/03/2021,GEN REGISTER OFFICE,birth certificate 086LS200/4,GOVERNMENT SERVICES-NOT ELSEWHERE CLASSIFIED,CHILDREN & YOUNG PEOPLE
REDACTED,22.57,15/03/2021,AMZNMktplace,lockable box cin 086CH177/2,MISCELLANEOUS AND SPECIALTY RETAIL STORES,CHILDREN & YOUNG PEOPLE
REDACTED,55.00,15/03/2021,ASDA STORES LTD 5729,child in care - activity XXXXX,"GROCERY STORES, SUPERMARKETS",CHILDREN & YOUNG PEOPLE
REDACTED,47.20,15/03/2021,NEW LOOK INTERNET,child in care - clothing XXXXX,WOMEN'S READY-TO-WEAR STORES,CHILDREN & YOUNG PEOPLE
REDACTED,44.66,15/03/2021,ASDA STORES LTD 5729,child in care - provisions,"GROCERY STORES, SUPERMARKETS",CHILDREN & YOUNG PEOPLE
REDACTED,39.21,15/03/2021,ASDA STORES LTD 5729,"child in care - school equipment, provisions","GROCERY STORES, SUPERMARKETS",CHILDREN & YOUNG PEOPLE
REDACTED,20.00,15/03/2021,Amazon.co.uk MM2O44UH4,Young person's voucher for NEET interview,DIRECT MARKETING-OTHER DIRECT MARKETERS/NOT ELSEW.,CHILDREN & YOUNG PEOPLE
REDACTED,52.48,15/03/2021,AMZNMKTPLACE AMAZON.CO,XXXXX - Anti-glare screen protector,MISCELLANEOUS AND SPECIALTY RETAIL STORES,ADULT & COMMUNITY SERVICES
REDACTED,700.00,15/03/2021,FACEBK E995G2KNF2,Advertising,ADVERTISING SERVICES,CORPORATE SERVICES
REDACTED,1400.00,15/03/2021,THEFITBUSINESS.CO.UK,Online fitness training to support SFRS staff,"HEALTH PRACTITIONERS, MEDICAL SRVCS-NOT ELSEWHERE",FIRE & PUBLIC SAFETY
REDACTED,125.00,15/03/2021,FACEBK  VFL8EZEPC2,Boosted Facebook post,ADVERTISING SERVICES,"GROWTH, HIGHWAYS & INFRASTRUCTURE"
REDACTED,119.89,15/03/2021,SMARTSHEET,Smartsheet annual hosting fee,COMPUTER SOFTWARE STORES,"GROWTH, HIGHWAYS & INFRASTRUCTURE"
REDACTED,21.01,15/03/2021,B&M 405 - WESTERN WAY,children in care birthday décor and stationery bit,SUNDRY GENERAL MERCHANDISE,CHILDREN & YOUNG PEOPLE
REDACTED,57.28,15/03/2021,ASDA  STORES 4218,children in care provisions,"GROCERY STORES, SUPERMARKETS",CHILDREN & YOUNG PEOPLE
REDACTED,25.00,15/03/2021,AMZN Digital,Child in care - Xbox live credit,RECORD SHOPS,CHILDREN & YOUNG PEOPLE
REDACTED,29.95,15/03/2021,AMZNMktplace,310869/2012S Setting up home item for client,MISCELLANEOUS AND SPECIALTY RETAIL STORES,CHILDREN & YOUNG PEOPLE
REDACTED,51.98,15/03/2021,SPORTSDIRECT.COM,518366/1552S Clothing allowance for client,SPORTING GOODS STORES,CHILDREN & YOUNG PEOPLE
REDACTED,20.06,15/03/2021,AMZNMKTPLACE AMAZON.CO,Connector,MISCELLANEOUS AND SPECIALTY RETAIL STORES,CORPORATE SERVICES
REDACTED,3.72,16/03/2021,ROYAL MAIL GROUP LTD,Laptop stand to XXXXX,POSTAL SERVICES-GOVERNMENT ONLY,"GROWTH, HIGHWAYS & INFRASTRUCTURE"
REDACTED,47.81,16/03/2021,www.anyvan.com,318848 1204W. REmovals,"FREIGHT CARRIER,TRUCKING-LCL/LNG DIST, MVG/STORAGE",CHILDREN & YOUNG PEOPLE
REDACTED,33.27,16/03/2021,AMZNMktplace,Children's home expense - Cic Activity,MISCELLANEOUS AND SPECIALTY RETAIL STORES,CHILDREN & YOUNG PEOPLE
REDACTED,39.52,16/03/2021,AMZNMktplace,children's home expense - CIC bedroom XXXXX,MISCELLANEOUS AND SPECIALTY RETAIL STORES,CHILDREN & YOUNG PEOPLE
REDACTED,5.34,16/03/2021,ASDA SUPERSTORE,Children's home expense - CIC Toiletries,"GROCERY STORES, SUPERMARKETS",CHILDREN & YOUNG PEOPLE
REDACTED,79.82,16/03/2021,ASDA SUPERSTORE,Children's home expense - provisions,"GROCERY STORES, SUPERMARKETS",CHILDREN & YOUNG PEOPLE
REDACTED,74.50,16/03/2021,POST OFFICE COUNTER,Stamps,POSTAL SERVICES-GOVERNMENT ONLY,CHILDREN & YOUNG PEOPLE
REDACTED,6.99,16/03/2021,CDKEYS.COM,Child in care - XXXXX XBox subscription,DIGITAL GOODS GAMES,CHILDREN & YOUNG PEOPLE
REDACTED,25.00,16/03/2021,AMZN Digital,children in care x box amazon,RECORD SHOPS,CHILDREN & YOUNG PEOPLE
REDACTED,111.61,16/03/2021,RIDGEONS SUDBURY,"HANDRAIL, SCREWS, SANDPAPER AND SEALANT.","BUILDING MATERIALS, LUMBER STORES",ADULT & COMMUNITY SERVICES
REDACTED,73.62,16/03/2021,TRAVIS PERKINS,Banister rail etc,"BUILDING MATERIALS, LUMBER STORES",ADULT & COMMUNITY SERVICES
REDACTED,9.03,16/03/2021,POST OFFICE COUNTER,Postage for HSBC security fobs,POSTAL SERVICES-GOVERNMENT ONLY,CORPORATE SERVICES
REDACTED,66.00,16/03/2021,POST OFFICE COUNTER,Stamps for neighbour notifications,POSTAL SERVICES-GOVERNMENT ONLY,"GROWTH, HIGHWAYS & INFRASTRUCTURE"
REDACTED,21.56,17/03/2021,SMARTY SYMBOLS LLC,Monthly software for CISS team,"COMPUTERS, COMPUTER PERIPHERAL EQUIPMENT, SOFTWARE",CHILDREN & YOUNG PEOPLE
REDACTED,306.92,17/03/2021,BYTEMARK HOSTING,One Suffolk Hosting - XXXXX,COMPUTER SOFTWARE STORES,CORPORATE SERVICES
REDACTED,170.00,17/03/2021,CURRYS ONLINE,371160 1201W. SUHA-TV,ELECTRONIC SALES,CHILDREN & YOUNG PEOPLE
REDACTED,8.32,17/03/2021,Dropbox,Dropbox premium service for file exchange,COMPUTER NETWORK/INFORMATION SERVICES,"GROWTH, HIGHWAYS & INFRASTRUCTURE"
REDACTED,28.80,17/03/2021,WOLSELEY UK,Toilet Seat for XXXXX of XXXXX 103308,"HEATING, PLUMBING, AIR CONDITIONING CONTRACTORS",ADULT & COMMUNITY SERVICES
REDACTED,9.99,17/03/2021,AMZNMKTPLACE AMAZON.CO,child in care - activity,MISCELLANEOUS AND SPECIALTY RETAIL STORES,CHILDREN & YOUNG PEOPLE
REDACTED,6.66,17/03/2021,Amazon Prime MU1RE9FI4,child in care - subscription,DIRECT MARKETING - CONTINUITY/SUBSCRIPTION MERCHANTS,CHILDREN & YOUNG PEOPLE
REDACTED,74.98,17/03/2021,WWW.ALCOSENSE.CO.UK,breath tester for medical,MISCELLANEOUS AND SPECIALTY RETAIL STORES,CHILDREN & YOUNG PEOPLE
REDACTED,106.46,17/03/2021,Amazon.co.uk MU4KH3F54,resources,DIRECT MARKETING-OTHER DIRECT MARKETERS/NOT ELSEW.,CHILDREN & YOUNG PEOPLE
REDACTED,7.80,17/03/2021,FACEBK VTERAZW272,Boosted Facebook post,ADVERTISING SERVICES,"GROWTH, HIGHWAYS & INFRASTRUCTURE"
REDACTED,-9.36,17/03/2021,FACEBK 57VKDXS272,Boosted Facebook post,ADVERTISING SERVICES,"GROWTH, HIGHWAYS & INFRASTRUCTURE"
REDACTED,40.16,17/03/2021,THE OUTDOORS COMPANY,Gloves for training instructors,SPORTING GOODS STORES,FIRE & PUBLIC SAFETY
REDACTED,24.97,17/03/2021,AMZNMktplace,"resources, books",MISCELLANEOUS AND SPECIALTY RETAIL STORES,CHILDREN & YOUNG PEOPLE
REDACTED,27.66,17/03/2021,QUSTODIO,"Children in care - parental controls, year subs",COMPUTER SOFTWARE STORES,CHILDREN & YOUNG PEOPLE
REDACTED,35.48,17/03/2021,TRAVIS PERKINS,Bannister Rail,"BUILDING MATERIALS, LUMBER STORES",ADULT & COMMUNITY SERVICES
REDACTED,27.96,17/03/2021,Amazon.co.uk MU7BQ3FD4,4 Books for FCFCT on Grief/Illness/Death/Crisis,DIRECT MARKETING-OTHER DIRECT MARKETERS/NOT ELSEW.,CHILDREN & YOUNG PEOPLE
REDACTED,99.98,17/03/2021,AMZNMktplace,Digital Care Order: RH 264412,MISCELLANEOUS AND SPECIALTY RETAIL STORES,ADULT & COMMUNITY SERVICES
REDACTED,260.83,17/03/2021,AO RETAIL LIMITED,XXXXX 3008677 fridge freezer,HOUSEHOLD APPLIANCE STORES,ADULT & COMMUNITY SERVICES
REDACTED,129.97,18/03/2021,FOOTASYLUM PLC,"452N, ID: 440814, clothing",MEN'S AND WOMEN'S CLOTHING STORES,CHILDREN & YOUNG PEOPLE
REDACTED,129.97,18/03/2021,FOOTASYLUM PLC,"452N, ID: 440814, clothing",MEN'S AND WOMEN'S CLOTHING STORES,CHILDREN & YOUNG PEOPLE
REDACTED,107.00,18/03/2021,JD SPORTS INTERNET,"601N, ID: 485183, clothing",SPORTING GOODS STORES,CHILDREN & YOUNG PEOPLE
REDACTED,44.97,18/03/2021,AMZNMktplace,1064849. 1190W.,MISCELLANEOUS AND SPECIALTY RETAIL STORES,CHILDREN & YOUNG PEOPLE
REDACTED,99.98,18/03/2021,AMZNMktplace,675810. 1195W. SUHA,MISCELLANEOUS AND SPECIALTY RETAIL STORES,CHILDREN & YOUNG PEOPLE
REDACTED,51.00,18/03/2021,Amazon.co.uk MU8EY54D4,Illustration nibs for use by illustrator,DIRECT MARKETING-OTHER DIRECT MARKETERS/NOT ELSEW.,"GROWTH, HIGHWAYS & INFRASTRUCTURE"
REDACTED,47.48,18/03/2021,AMZNMktplace,video door bell for CIN 086CH191/1,MISCELLANEOUS AND SPECIALTY RETAIL STORES,CHILDREN & YOUNG PEOPLE
REDACTED,124.17,18/03/2021,B&M 420 - HS LOWESTOFT,child in care - bedroom furniture,SUNDRY GENERAL MERCHANDISE,CHILDREN & YOUNG PEOPLE
REDACTED,2.50,18/03/2021,B&M 420 - HS LOWESTOFT,child in care - provisions,SUNDRY GENERAL MERCHANDISE,CHILDREN & YOUNG PEOPLE
REDACTED,355.74,18/03/2021,GOOGLE  ADS6087318024,P Card Re-charge linked to PO number YT-SNY-JAN21,ADVERTISING SERVICES,CORPORATE SERVICES
REDACTED,20.00,18/03/2021,Amazon.co.uk MU8RD74Z4,Voucher for young person NEET interview,DIRECT MARKETING-OTHER DIRECT MARKETERS/NOT ELSEW.,CHILDREN & YOUNG PEOPLE
REDACTED,151.17,18/03/2021,FACEBK GR2WR2FPF2,Facebook advertising,ADVERTISING SERVICES,CORPORATE SERVICES
REDACTED,33.32,18/03/2021,SCREWFIX DIRECT,Battery  Chargers LPP WTC,"BUILDING MATERIALS, LUMBER STORES",FIRE & PUBLIC SAFETY
REDACTED,-624.00,18/03/2021,FITECH.UK,Credit note for heart rate monitors not in stock,COMPUTER SOFTWARE STORES,FIRE & PUBLIC SAFETY
REDACTED,1180.80,18/03/2021,FITECH.UK,Heart rate monitors for SFRS fitness testing,COMPUTER SOFTWARE STORES,FIRE & PUBLIC SAFETY
REDACTED,30.45,18/03/2021,PAYPAL  PACOUNSELLI,cards for resources,"DEBT, MARRIAGE, PERSONAL - COUNSELLING SERVICE",CHILDREN & YOUNG PEOPLE
REDACTED,12.08,18/03/2021,AMZNMKTPLACE AMAZON.CO,XXXXX id 1217329 fire extinguisher,MISCELLANEOUS AND SPECIALTY RETAIL STORES,CHILDREN & YOUNG PEOPLE
REDACTED,22.89,18/03/2021,AMZNMktplace,Quran and Prayer Mat XXXXX 2038501 020SL406,MISCELLANEOUS AND SPECIALTY RETAIL STORES,CHILDREN & YOUNG PEOPLE
REDACTED,157.00,18/03/2021,FINNEYS,Meals for training course delegates,BAKERIES,FIRE & PUBLIC SAFETY
REDACTED,40.78,18/03/2021,ARGOS LTD,Microwave for emergency bed plus delivery,DISCOUNT STORES,CHILDREN & YOUNG PEOPLE
REDACTED,149.99,18/03/2021,ARGOS LTD,Oven for Lowestoft House,DISCOUNT STORES,CHILDREN & YOUNG PEOPLE
REDACTED,92.62,18/03/2021,Amazon.co.uk MU8FD8464,Equipment for XXXXX legal investigation,DIRECT MARKETING-OTHER DIRECT MARKETERS/NOT ELSEW.,FIRE & PUBLIC SAFETY
REDACTED,50.49,18/03/2021,SPORTSDIRECT.COM,children in care children's clothing /trainers,SPORTING GOODS STORES,CHILDREN & YOUNG PEOPLE
REDACTED,20.00,18/03/2021,JD SPORTS INTERNET,1157309/S420 Birthday allowance for client,SPORTING GOODS STORES,CHILDREN & YOUNG PEOPLE
REDACTED,41.67,18/03/2021,SP   HOODRICH LTD,2019867/S270 Clothing allowance for client,MEN'S AND WOMEN'S CLOTHING STORES,CHILDREN & YOUNG PEOPLE
REDACTED,10.00,18/03/2021,JD SPORTS INTERNET,292233/S423 Birthday allowance for client,SPORTING GOODS STORES,CHILDREN & YOUNG PEOPLE
REDACTED,10.00,18/03/2021,JD SPORTS INTERNET,399161/S421 Birthday allowance for client,SPORTING GOODS STORES,CHILDREN & YOUNG PEOPLE
REDACTED,10.00,18/03/2021,JD SPORTS INTERNET,422S/2004006 - birthday allowance for client,SPORTING GOODS STORES,CHILDREN & YOUNG PEOPLE
REDACTED,61.48,19/03/2021,SPORTSDIRECT.COM,"452N, ID: 440814, clothing",SPORTING GOODS STORES,CHILDREN & YOUNG PEOPLE
REDACTED,-129.97,19/03/2021,FOOTASYLUM PLC,"452N, ID: 440814, clothing refunded",MEN'S AND WOMEN'S CLOTHING STORES,CHILDREN & YOUNG PEOPLE
REDACTED,34.00,19/03/2021,DVLA DRIVER ONLINE,"614N, ID: 440814, provisional driving licence",GOVERNMENT SERVICES-NOT ELSEWHERE CLASSIFIED,CHILDREN & YOUNG PEOPLE
REDACTED,11.00,19/03/2021,GEN REGISTER OFFICE,675810. 1219W. Mum's D Cert.,GOVERNMENT SERVICES-NOT ELSEWHERE CLASSIFIED,CHILDREN & YOUNG PEOPLE
REDACTED,164.50,19/03/2021,EAST SUFFOLK COUNCIL,URGENT LLC SEARCH (64375),GOVERNMENT SERVICES-NOT ELSEWHERE CLASSIFIED,CORPORATE SERVICES
REDACTED,47.70,19/03/2021,AMZNMKTPLACE AMAZON.CO,6 x USB splitters 1 to 4 USB slots.,MISCELLANEOUS AND SPECIALTY RETAIL STORES,CHILDREN & YOUNG PEOPLE
REDACTED,303.00,19/03/2021,BEDWORLD,bed for CIN 086JZ207/3,"EQUIP, FURNITURE, HOME FURNSHNGS STRS (EXCPT APPL)",CHILDREN & YOUNG PEOPLE
REDACTED,50.88,19/03/2021,ASDA STORES LTD 5729,child in care - provisions & equipment,"GROCERY STORES, SUPERMARKETS",CHILDREN & YOUNG PEOPLE
REDACTED,103.98,19/03/2021,VERY,Mouse for XXXXX,DIRECT MARKETING - CATALOGUE MERCHANTS,CORPORATE SERVICES
REDACTED,615.54,19/03/2021,KINETIK WELLBEING,BP monitor-improved control measure fitness tests,ELECTRONIC SALES,FIRE & PUBLIC SAFETY
REDACTED,38.94,19/03/2021,WWW.RYMAN.CO.UK,Trial speaker for Princes street fitness testing,"OFFICE, SCHOOL SUPPLY, AND STATIONERY STORES",FIRE & PUBLIC SAFETY
REDACTED,54.00,19/03/2021,HM PASSPORT OFFICE,Passport application,GOVERNMENT SERVICES-NOT ELSEWHERE CLASSIFIED,CHILDREN & YOUNG PEOPLE
REDACTED,22.19,19/03/2021,BLACKWELL'S,cards for resources,BOOK STORES,CHILDREN & YOUNG PEOPLE
REDACTED,247.52,19/03/2021,SECUREDATARECYCLIN,Desk PC for child,"UTLTS-ELCTRC, GAS, HEATING OIL, SANITARY, WATER",CHILDREN & YOUNG PEOPLE
REDACTED,22.89,19/03/2021,AMZNMktplace,Prayer mat and Quran XXXXX 2038501 020SL406,MISCELLANEOUS AND SPECIALTY RETAIL STORES,CHILDREN & YOUNG PEOPLE
REDACTED,22.89,19/03/2021,AMZNMKTPLACE AMAZON.CO,Quran and prayer mat XXXXX id2038516 020SL409,MISCELLANEOUS AND SPECIALTY RETAIL STORES,CHILDREN & YOUNG PEOPLE
REDACTED,8.28,19/03/2021,EOE COOP,Provisions for offsite interviews beverages,"GROCERY STORES, SUPERMARKETS",FIRE & PUBLIC SAFETY
REDACTED,200.47,19/03/2021,AMZNMktplace,resources,MISCELLANEOUS AND SPECIALTY RETAIL STORES,CHILDREN & YOUNG PEOPLE
REDACTED,49.99,19/03/2021,AMZNMKTPLACE AMAZON.CO,Equipment for XXXXX legal investigation,MISCELLANEOUS AND SPECIALTY RETAIL STORES,FIRE & PUBLIC SAFETY
REDACTED,228.00,19/03/2021,WESTMINSTER FORUM PROJ,Westminster Food & Nutrition Forum Keynote Seminar,"CONSULTING, MANAGEMENT AND PUBLIC RELATIONS SVCS",FIRE & PUBLIC SAFETY
REDACTED,53.71,19/03/2021,TRAVIS PERKINS,Mopstick,"BUILDING MATERIALS, LUMBER STORES",ADULT & COMMUNITY SERVICES
REDACTED,10.00,19/03/2021,JD SPORTS INTERNET,1270650/424S Birthday allowance for client,SPORTING GOODS STORES,CHILDREN & YOUNG PEOPLE
REDACTED,16.94,19/03/2021,AMZNMktplace,Reward Chart for Kinship Carer XXXXX re XXXXX,MISCELLANEOUS AND SPECIALTY RETAIL STORES,CHILDREN & YOUNG PEOPLE
REDACTED,9.98,19/03/2021,Amazon.co.uk MU9S34ZZ4,When something terrible happensBook for-XXXXX XXXXX,DIRECT MARKETING-OTHER DIRECT MARKETERS/NOT ELSEW.,CHILDREN & YOUNG PEOPLE
REDACTED,-20.00,19/03/2021,AO RETAIL LIMITED,Refund XXXXX 3008677,HOUSEHOLD APPLIANCE STORES,ADULT & COMMUNITY SERVICES
REDACTED,41.66,22/03/2021,ARGOS LTD,Cont Centre Microwave,DISCOUNT STORES,ADULT & COMMUNITY SERVICES
REDACTED,28.00,22/03/2021,TYPEFORM S.L,Website form builder tool,"CONSULTING, MANAGEMENT AND PUBLIC RELATIONS SVCS",ADULT & COMMUNITY SERVICES
REDACTED,120.00,22/03/2021,CRIMELINE,ANNUAL SUBSCRIPTION FOR XXXXX,COMPUTER SOFTWARE STORES,CORPORATE SERVICES
REDACTED,-14.36,22/03/2021,FACEBK  MYFLXZJBW2,Facebook credit,ADVERTISING SERVICES,"GROWTH, HIGHWAYS & INFRASTRUCTURE"
REDACTED,11.97,22/03/2021,FACEBK  AB7X53KBW2,Facebook food savvy ad ( freezer),ADVERTISING SERVICES,"GROWTH, HIGHWAYS & INFRASTRUCTURE"
REDACTED,172.00,22/03/2021,JD SPORTS INTERNET,1064849. 1233W & W97 Clothing,SPORTING GOODS STORES,CHILDREN & YOUNG PEOPLE
REDACTED,11.00,22/03/2021,GEN REGISTER OFFICE,301533. 1217W B Cert,GOVERNMENT SERVICES-NOT ELSEWHERE CLASSIFIED,CHILDREN & YOUNG PEOPLE
REDACTED,67.36,22/03/2021,TESCO STORE 3240,Children's Home Expense - Provisions,"GROCERY STORES, SUPERMARKETS",CHILDREN & YOUNG PEOPLE
REDACTED,95.00,22/03/2021,JD SPORTS INTERNET,child in care - XXXXX uniform clothing,SPORTING GOODS STORES,CHILDREN & YOUNG PEOPLE
REDACTED,128.22,22/03/2021,ALDI 776 147,Child in care - provisions,"GROCERY STORES, SUPERMARKETS",CHILDREN & YOUNG PEOPLE
REDACTED,5.20,22/03/2021,FLICKR,Flickr subscription,OTHER SERVICES (NOT ELSEWHERE CLASSIFIED),CORPORATE SERVICES
REDACTED,25.50,22/03/2021,STATIONERY OFFICE BOOK,H&S Posters,BOOK STORES,"GROWTH, HIGHWAYS & INFRASTRUCTURE"
REDACTED,23.33,22/03/2021,SCREWFIX DIRECT,CSV Step Ladder,"BUILDING MATERIALS, LUMBER STORES",FIRE & PUBLIC SAFETY
REDACTED,12.10,22/03/2021,AMZNMktplace,children in care activity items pens cards,MISCELLANEOUS AND SPECIALTY RETAIL STORES,CHILDREN & YOUNG PEOPLE
REDACTED,2.91,22/03/2021,Prime Video MU75Y6J14,children in care amazon video,RECORD SHOPS,CHILDREN & YOUNG PEOPLE
REDACTED,6.62,22/03/2021,AMZNMktplace,children in care easter items,MISCELLANEOUS AND SPECIALTY RETAIL STORES,CHILDREN & YOUNG PEOPLE
REDACTED,41.00,22/03/2021,GREATER ANGLIA T/O,children in care rail tickets,PASSENGER RAILWAYS,CHILDREN & YOUNG PEOPLE
REDACTED,32.48,22/03/2021,AMZNMktplace,children in care sensory blanket and spray,MISCELLANEOUS AND SPECIALTY RETAIL STORES,CHILDREN & YOUNG PEOPLE
REDACTED,8.00,22/03/2021,DN HOWELLS & SONS,Screws,HARDWARE STORES,"GROWTH, HIGHWAYS & INFRASTRUCTURE"
REDACTED,79.98,22/03/2021,WWW.POWERHOUSEDIRECT.C,XXXXX for XXXXX 61849,NONDURABLE GOODS (NOT ELSEWHERE CLASSIFIED),CHILDREN & YOUNG PEOPLE
REDACTED,4.98,22/03/2021,MOTORSPARES,Fuses for van,MOTOR VEHICLE SUPPLIES AND NEW PARTS,ADULT & COMMUNITY SERVICES
REDACTED,10.00,22/03/2021,JD SPORTS INTERNET,1066882/S425 Birthday allowance for client,SPORTING GOODS STORES,CHILDREN & YOUNG PEOPLE
REDACTED,83.32,22/03/2021,AMZNMKTPLACE AMAZON.CO,1162661/S428 Setting up home item for client,MISCELLANEOUS AND SPECIALTY RETAIL STORES,CHILDREN & YOUNG PEOPLE
REDACTED,14.15,22/03/2021,AMZNMktplace,398205/427S Setting up home item for client,MISCELLANEOUS AND SPECIALTY RETAIL STORES,CHILDREN & YOUNG PEOPLE
REDACTED,74.99,22/03/2021,DEFY GAMING LTD,482406/S426 Birthday allowance for client,ELECTRONIC SALES,CHILDREN & YOUNG PEOPLE
REDACTED,14.99,22/03/2021,Amazon.co.uk MU9139NE4,Book Understanding LAC for Kinship Carer XXXXX re XXXXX,DIRECT MARKETING-OTHER DIRECT MARKETERS/NOT ELSEW.,CHILDREN & YOUNG PEOPLE
REDACTED,34.99,22/03/2021,ARGOS LTD,Cuggle Wave Car Seat for Kinship Carer XXXXX re XXXXX,DISCOUNT STORES,CHILDREN & YOUNG PEOPLE
REDACTED,231.95,22/03/2021,ARGOS LTD,Door Wardrobe for Kinship Carer XXXXX re XXXXX (inc del),DISCOUNT STORES,CHILDREN & YOUNG PEOPLE
REDACTED,286.95,22/03/2021,ARGOS LTD,F&E Grant: XXXXX457256,DISCOUNT STORES,ADULT & COMMUNITY SERVICES
REDACTED,-30.00,22/03/2021,AO RETAIL LIMITED,Refund XXXXX 3008677,HOUSEHOLD APPLIANCE STORES,ADULT & COMMUNITY SERVICES
REDACTED,25.50,23/03/2021,Amazon.co.uk MU7IJ3EW4,SaLT Resources Purchase,DIRECT MARKETING-OTHER DIRECT MARKETERS/NOT ELSEW.,CHILDREN & YOUNG PEOPLE
REDACTED,18.94,23/03/2021,MAILCHIMP    MONTHLY,Mailchimp email fee,DIRECT MARKETING - CONTINUITY/SUBSCRIPTION MERCHANTS,"GROWTH, HIGHWAYS & INFRASTRUCTURE"
REDACTED,59.29,23/03/2021,BOOHOO.COM,children's home expense - clothing XXXXX,MEN'S AND WOMEN'S CLOTHING STORES,CHILDREN & YOUNG PEOPLE
REDACTED,59.07,23/03/2021,LIDL GB  STOWMARKET,Children's Home Expense - Provisions,"GROCERY STORES, SUPERMARKETS",CHILDREN & YOUNG PEOPLE
REDACTED,45.41,23/03/2021,TESCO STORE 3240,Children's Home Expense - Provisions,"GROCERY STORES, SUPERMARKETS",CHILDREN & YOUNG PEOPLE
REDACTED,240.00,23/03/2021,WWW.ADASS.ORG.UK,ADASS Spring Seminar XXXXX,"ORGANISATIONS, CHARITABLE AND SOCIAL SERVICES",ADULT & COMMUNITY SERVICES
REDACTED,10.00,23/03/2021,AMZN Digital,child in care - XBox live credit,RECORD SHOPS,CHILDREN & YOUNG PEOPLE
REDACTED,132.00,23/03/2021,ROYAL MAIL ONLINE SHOP,200 x standard 2nd class stamps for Sudbury,POSTAL SERVICES-GOVERNMENT ONLY,CORPORATE SERVICES
REDACTED,187.47,23/03/2021,Amazon.co.uk MU7UF2EF4,Legal case - high memory USB sticks and hard drive,DIRECT MARKETING-OTHER DIRECT MARKETERS/NOT ELSEW.,FIRE & PUBLIC SAFETY
REDACTED,71.01,23/03/2021,PLUMBASE - BURY ST EDM,screws,"BUILDING MATERIALS, LUMBER STORES",ADULT & COMMUNITY SERVICES
REDACTED,10.69,23/03/2021,AMZNMktplace,Book K/ship Carer/Sexually Abused Child XXXXX re XXXXX,MISCELLANEOUS AND SPECIALTY RETAIL STORES,CHILDREN & YOUNG PEOPLE
REDACTED,67.73,23/03/2021,DTCC    GMEIUTILITY,Stock Exchange registration,BUSINESS SERVICES-NOT ELSEWHERE CLASSIFIED,CORPORATE SERVICES
REDACTED,44.89,23/03/2021,SP   COES_STORE,Child in care - school uniform,COMPUTER SOFTWARE STORES,CHILDREN & YOUNG PEOPLE
REDACTED,23.50,23/03/2021,SP   COES_STORE,Child in Care - School uniform,COMPUTER SOFTWARE STORES,CHILDREN & YOUNG PEOPLE
REDACTED,10.99,24/03/2021,ONE4ALL,"625N, ID: 743095, gift card",DEPARTMENT STORES,CHILDREN & YOUNG PEOPLE
REDACTED,20.99,24/03/2021,ONE4ALL,"626N, ID: 304006, gift card",DEPARTMENT STORES,CHILDREN & YOUNG PEOPLE
REDACTED,187.94,24/03/2021,LCN COM,Domain name renewals SR-199912 XXXXX,COMPUTER NETWORK/INFORMATION SERVICES,CORPORATE SERVICES
REDACTED,3.80,24/03/2021,MSFT   E0800DYMX1,O365 PAYG Sub - XXXXX,"COMPUTERS, COMPUTER PERIPHERAL EQUIPMENT, SOFTWARE",CORPORATE SERVICES
REDACTED,125.00,24/03/2021,HAYMARKET MEDIA GROUP,Conference booking for one delegate,"CONSULTING, MANAGEMENT AND PUBLIC RELATIONS SVCS","GROWTH, HIGHWAYS & INFRASTRUCTURE"
REDACTED,42.15,24/03/2021,AMZNMktplace,Children's Home Expense - CIC activity,MISCELLANEOUS AND SPECIALTY RETAIL STORES,CHILDREN & YOUNG PEOPLE
REDACTED,-78.99,24/03/2021,SPORTSDIRECT.COM,Children's Home Expense - Football Tshirt Refund,SPORTING GOODS STORES,CHILDREN & YOUNG PEOPLE
REDACTED,1.50,24/03/2021,WWW.GOV.UK,Will and Probate for XXXXX 1254277,PROFESSIONAL SERVICES - NOT ELSEWHERE CLASSIFIED,ADULT & COMMUNITY SERVICES
REDACTED,37.98,24/03/2021,SPORTSDIRECT.COM,Child in care - clothes for XXXXX,SPORTING GOODS STORES,CHILDREN & YOUNG PEOPLE
REDACTED,72.42,24/03/2021,WWW.PMGSCHOOLWEAR.CO.U,school uniform for XXXXX id 2027203 020SL417,CHILDREN'S AND INFANT'S WEAR SHOPS,CHILDREN & YOUNG PEOPLE
REDACTED,123.04,24/03/2021,WWW.PMGSCHOOLWEAR.CO.U,School uniform for XXXXX id 2039564 020SL416,CHILDREN'S AND INFANT'S WEAR SHOPS,CHILDREN & YOUNG PEOPLE
REDACTED,27.45,24/03/2021,WWW.PMGSCHOOLWEAR.CO.U,School uniform XXXXX id 2039564 020SL416,CHILDREN'S AND INFANT'S WEAR SHOPS,CHILDREN & YOUNG PEOPLE
REDACTED,6.74,24/03/2021,FACEBK  8A8UK2KQC2,Boosted Facebook posts,ADVERTISING SERVICES,"GROWTH, HIGHWAYS & INFRASTRUCTURE"
REDACTED,52.50,24/03/2021,AUSTENKNAPMANCO.UK,Metal pins,"BUILDING MATERIALS, LUMBER STORES","GROWTH, HIGHWAYS & INFRASTRUCTURE"
REDACTED,132.13,24/03/2021,www.bizay.co.uk,Redshank postcard printing,"QUICK COPY, REPRODUCTION AND BLUEPRINTING SERVICES","GROWTH, HIGHWAYS & INFRASTRUCTURE"
REDACTED,14.36,24/03/2021,STAMPS DIRECT LTD,Ink stamper for Health Check envelopes,"OFFICE, SCHOOL SUPPLY, AND STATIONERY STORES",PUBLIC HEALTH
REDACTED,64.99,24/03/2021,IPSWICH BOROUGH CO,257878/S366 Rent from donation for client,GOVERNMENT SERVICES-NOT ELSEWHERE CLASSIFIED,CHILDREN & YOUNG PEOPLE
REDACTED,168.00,24/03/2021,STAGECOACH IPSWICH,Child in Care - Activity fees,SCHOOLS & EDUCATIONAL SVC-NOT ELSEWHERE CLASSIFIED,CHILDREN & YOUNG PEOPLE
REDACTED,9.96,25/03/2021,W F SENATE,3 pin plugs to replace broken ones while P.A.Test,ELECTRICAL PARTS AND EQUIPMENT,FIRE & PUBLIC SAFETY
REDACTED,86.82,25/03/2021,Amazon.co.uk MU3J10PH4,SaLT resources purchase,DIRECT MARKETING-OTHER DIRECT MARKETERS/NOT ELSEW.,CHILDREN & YOUNG PEOPLE
REDACTED,22.04,25/03/2021,AMZNMktplace,234492. 1218W. Birthday,MISCELLANEOUS AND SPECIALTY RETAIL STORES,CHILDREN & YOUNG PEOPLE
REDACTED,84.00,25/03/2021,WWW.JA.NET,SSL Cert SR-200452 XXXXX,"ORGANISATIONS, MEMBERSHIP-NOT ELSEWHERE CLASSIFIED",CORPORATE SERVICES
REDACTED,11.00,25/03/2021,MY.NORFOLK.GOV.UK,URGENT COPY OF BIRTH CERTIFICATE (64036),GOVERNMENT SERVICES-NOT ELSEWHERE CLASSIFIED,CORPORATE SERVICES
REDACTED,100.10,25/03/2021,BOOHOO.COM,1038127. W3 Clothing,MEN'S AND WOMEN'S CLOTHING STORES,CHILDREN & YOUNG PEOPLE
REDACTED,11.00,25/03/2021,GEN REGISTER OFFICE,339554. 1216W. B Cert,GOVERNMENT SERVICES-NOT ELSEWHERE CLASSIFIED,CHILDREN & YOUNG PEOPLE
REDACTED,228.50,25/03/2021,IM-PRESS PROMOTION,10 x Prevention toolkit folders (orange),"OFFICE, SCHOOL SUPPLY, AND STATIONERY STORES",FIRE & PUBLIC SAFETY
REDACTED,30.79,25/03/2021,AMZNMktplace,Digital Care Order XXXXX 774976 DORO mobile phone,MISCELLANEOUS AND SPECIALTY RETAIL STORES,ADULT & COMMUNITY SERVICES
REDACTED,51.95,25/03/2021,Dunelm,Child in care - Blinds for lounge,"EQUIP, FURNITURE, HOME FURNSHNGS STRS (EXCPT APPL)",CHILDREN & YOUNG PEOPLE
REDACTED,2018.86,25/03/2021,BC.BASECAMP 3 4358036,Software licence required for EU funded project,"ORGANISATIONS, MEMBERSHIP-NOT ELSEWHERE CLASSIFIED",PUBLIC HEALTH
REDACTED,104.95,25/03/2021,OATEIN,Protein bars for course delegates,"MISC FOOD STORE-CONVENIENCE,MRKT,SPLTY,VENDNG MACS",FIRE & PUBLIC SAFETY
REDACTED,100.00,26/03/2021,Buyatab - Aldi,Aldi vouchers for hardship payments re Covid-19,"GIFT, CARD, NOVELTY AND SOUVENIR SHOPS",PUBLIC HEALTH
REDACTED,500.00,26/03/2021,Buyatab - Aldi,Aldi vouchers for hardship payments re Covid-19,"GIFT, CARD, NOVELTY AND SOUVENIR SHOPS",PUBLIC HEALTH
REDACTED,10.99,26/03/2021,ONE4ALL,"632N, ID: 252837, gift card",DEPARTMENT STORES,CHILDREN & YOUNG PEOPLE
REDACTED,10.99,26/03/2021,ONE4ALL,"633N, ID: 301460, gift card",DEPARTMENT STORES,CHILDREN & YOUNG PEOPLE
REDACTED,23.85,26/03/2021,AMZNMktplace,237853. 1214W. Birthday,MISCELLANEOUS AND SPECIALTY RETAIL STORES,CHILDREN & YOUNG PEOPLE
REDACTED,186.77,26/03/2021,AMZNMKTPLACE AMAZON.CO,300215. 1224W. SUHA,MISCELLANEOUS AND SPECIALTY RETAIL STORES,CHILDREN & YOUNG PEOPLE
REDACTED,86.97,26/03/2021,LCN COM,New domain names SR-200218 XXXXX,COMPUTER NETWORK/INFORMATION SERVICES,CORPORATE SERVICES
REDACTED,99.49,26/03/2021,SP   ISAWITFIRST.COM,414019. W2. Clothing,MEN'S AND WOMEN'S CLOTHING STORES,CHILDREN & YOUNG PEOPLE
REDACTED,58.32,26/03/2021,Amazon.co.uk MU1ZL2VR4,Digital -  Alexa Echo Show 8 Customer XXXXX 1062351,DIRECT MARKETING-OTHER DIRECT MARKETERS/NOT ELSEW.,ADULT & COMMUNITY SERVICES
REDACTED,83.32,26/03/2021,AMZNMKTPLACE AMAZON.CO,Digital Order Customer XXXXX 3030904 Pill Dispenser,MISCELLANEOUS AND SPECIALTY RETAIL STORES,ADULT & COMMUNITY SERVICES
REDACTED,13.32,26/03/2021,Amazon.co.uk MU2M09VV4,Digital Order Customer XXXXX 3030904 Smart Plug,DIRECT MARKETING-OTHER DIRECT MARKETERS/NOT ELSEW.,ADULT & COMMUNITY SERVICES
REDACTED,29.36,26/03/2021,AMZNMKTPLACE AMAZON.CO,Digital Order Smart Bulbs Customer XXXXX 3030904,MISCELLANEOUS AND SPECIALTY RETAIL STORES,ADULT & COMMUNITY SERVICES
REDACTED,2.97,26/03/2021,MCDONALDS,child in care - activity,FAST FOOD RESTAURANTS,CHILDREN & YOUNG PEOPLE
REDACTED,25.10,26/03/2021,WM MORRISONS STORE,Child in care - provisionos,"GROCERY STORES, SUPERMARKETS",CHILDREN & YOUNG PEOPLE
REDACTED,11.00,26/03/2021,WM MORRISONS STORE,Child in care - Provisions,"GROCERY STORES, SUPERMARKETS",CHILDREN & YOUNG PEOPLE
REDACTED,13.40,26/03/2021,B&M 420 - HS LOWESTOFT,Child in care - Provisions,SUNDRY GENERAL MERCHANDISE,CHILDREN & YOUNG PEOPLE
REDACTED,17.50,26/03/2021,Just Eat,Young person's meal pizza party,FAST FOOD RESTAURANTS,CHILDREN & YOUNG PEOPLE
REDACTED,15.80,26/03/2021,Amazon.co.uk MU5OP2VR4,Sharpies for boxes,DIRECT MARKETING-OTHER DIRECT MARKETERS/NOT ELSEW.,"GROWTH, HIGHWAYS & INFRASTRUCTURE"
REDACTED,111.72,26/03/2021,BRITISHSAFE,COSHH Training for role,"ORGANISATIONS, CHARITABLE AND SOCIAL SERVICES",FIRE & PUBLIC SAFETY
REDACTED,21.48,26/03/2021,Amazon.co.uk MU4KO1XS4,Extension lead. WFH,DIRECT MARKETING-OTHER DIRECT MARKETERS/NOT ELSEW.,CHILDREN & YOUNG PEOPLE
REDACTED,6.66,26/03/2021,Amazon Prime MU0MC4VE4,amazon prime subscription,DIRECT MARKETING - CONTINUITY/SUBSCRIPTION MERCHANTS,CHILDREN & YOUNG PEOPLE
REDACTED,21.66,26/03/2021,AMZNMKTPLACE AMAZON.CO,children in care amazon bedding,MISCELLANEOUS AND SPECIALTY RETAIL STORES,CHILDREN & YOUNG PEOPLE
REDACTED,149.60,26/03/2021,AMZNMktplace,F&EXXXXX210212-01,MISCELLANEOUS AND SPECIALTY RETAIL STORES,ADULT & COMMUNITY SERVICES
REDACTED,22.50,29/03/2021,SPLASHTOP.COM,CISS monthly software,COMPUTER SOFTWARE STORES,CHILDREN & YOUNG PEOPLE
REDACTED,111.66,29/03/2021,Amazon.co.uk MU5UF1MQ4,Digital - XXXXX Doorbell,DIRECT MARKETING-OTHER DIRECT MARKETERS/NOT ELSEW.,ADULT & COMMUNITY SERVICES
REDACTED,115.83,29/03/2021,Amazon.co.uk MU1SJ4HC4,Digital Order - Doorbell Customer XXXXX 3032692,DIRECT MARKETING-OTHER DIRECT MARKETERS/NOT ELSEW.,ADULT & COMMUNITY SERVICES
REDACTED,309.98,29/03/2021,ARGOS LTD,Baby Equipment bouncer & travel System XXXXX 2040952,DISCOUNT STORES,CHILDREN & YOUNG PEOPLE
REDACTED,14.98,29/03/2021,Amazon.co.uk MU1TJ0B44,books for CIn 086CH304/1,DIRECT MARKETING-OTHER DIRECT MARKETERS/NOT ELSEW.,CHILDREN & YOUNG PEOPLE
REDACTED,15.00,29/03/2021,SCREWFIX DIRECT,Child in care - Paint DIY,"BUILDING MATERIALS, LUMBER STORES",CHILDREN & YOUNG PEOPLE
REDACTED,81.16,29/03/2021,ALDI 776 147,child in care - provisions,"GROCERY STORES, SUPERMARKETS",CHILDREN & YOUNG PEOPLE
REDACTED,43.40,29/03/2021,Just Eat,Child in care - provisions,FAST FOOD RESTAURANTS,CHILDREN & YOUNG PEOPLE
REDACTED,6.66,29/03/2021,Amazon Prime MU5XN0HS4,Child in care - subscription,DIRECT MARKETING - CONTINUITY/SUBSCRIPTION MERCHANTS,CHILDREN & YOUNG PEOPLE
REDACTED,20.00,29/03/2021,Amazon.co.uk MU79H0MK4,Voucher for young person NEET interview,DIRECT MARKETING-OTHER DIRECT MARKETERS/NOT ELSEW.,CHILDREN & YOUNG PEOPLE
REDACTED,75.00,29/03/2021,Amazon.co.uk MU75T2MS4,Vouchers for young people XXXXX Inclusion interviews,DIRECT MARKETING-OTHER DIRECT MARKETERS/NOT ELSEW.,CHILDREN & YOUNG PEOPLE
REDACTED,40.00,29/03/2021,Amazon.co.uk MU6LL9M04,Vouchers for young people NEET interviews,DIRECT MARKETING-OTHER DIRECT MARKETERS/NOT ELSEW.,CHILDREN & YOUNG PEOPLE
REDACTED,14.99,29/03/2021,Domino s Pizza,Young people's pizza party,"EATING PLACES, RESTAURANTS",CHILDREN & YOUNG PEOPLE
REDACTED,14.99,29/03/2021,Domino s Pizza,Young people's pizza party,"EATING PLACES, RESTAURANTS",CHILDREN & YOUNG PEOPLE
REDACTED,12.99,29/03/2021,Domino s Pizza,Young people's pizza party,"EATING PLACES, RESTAURANTS",CHILDREN & YOUNG PEOPLE
REDACTED,14.99,29/03/2021,Domino s Pizza,Young people's pizza party,"EATING PLACES, RESTAURANTS",CHILDREN & YOUNG PEOPLE
REDACTED,14.99,29/03/2021,Domino s Pizza,Young people's pizza party,"EATING PLACES, RESTAURANTS",CHILDREN & YOUNG PEOPLE
REDACTED,14.99,29/03/2021,Domino s Pizza,Young people's Pizza Party,"EATING PLACES, RESTAURANTS",CHILDREN & YOUNG PEOPLE
REDACTED,14.99,29/03/2021,Domino s Pizza,Young people's pizza party,"EATING PLACES, RESTAURANTS",CHILDREN & YOUNG PEOPLE
REDACTED,14.99,29/03/2021,Domino s Pizza,Young people's pizza party,"EATING PLACES, RESTAURANTS",CHILDREN & YOUNG PEOPLE
REDACTED,14.99,29/03/2021,Domino s Pizza,Young people's pizza party,"EATING PLACES, RESTAURANTS",CHILDREN & YOUNG PEOPLE
REDACTED,12.99,29/03/2021,Domino s Pizza,Young people's pizza party,"EATING PLACES, RESTAURANTS",CHILDREN & YOUNG PEOPLE
REDACTED,14.99,29/03/2021,Domino s Pizza,Young people's pizza party,"EATING PLACES, RESTAURANTS",CHILDREN & YOUNG PEOPLE
REDACTED,14.99,29/03/2021,Domino s Pizza,Young people's pizza party,"EATING PLACES, RESTAURANTS",CHILDREN & YOUNG PEOPLE
REDACTED,14.99,29/03/2021,Domino s Pizza,Young people's pizza party,"EATING PLACES, RESTAURANTS",CHILDREN & YOUNG PEOPLE
REDACTED,30.80,29/03/2021,AMZNMktplace,Magnetic labels for shelves,MISCELLANEOUS AND SPECIALTY RETAIL STORES,"GROWTH, HIGHWAYS & INFRASTRUCTURE"
REDACTED,46.65,29/03/2021,SCREWFIX DIRECT,CSV Step ladder x2,"BUILDING MATERIALS, LUMBER STORES",FIRE & PUBLIC SAFETY
REDACTED,-154.90,29/03/2021,SP   SPARTANSKN,clothing didnt fit money charity,"CONSULTING, MANAGEMENT AND PUBLIC RELATIONS SVCS",CHILDREN & YOUNG PEOPLE
REDACTED,179.00,29/03/2021,Amazon.co.uk MU7I93MB4,Mills security,DIRECT MARKETING-OTHER DIRECT MARKETERS/NOT ELSEW.,CHILDREN & YOUNG PEOPLE
REDACTED,43.20,29/03/2021,POST OFFICE COUNTER,50 x 2nd & 12 x 1st Stamps,POSTAL SERVICES-GOVERNMENT ONLY,CHILDREN & YOUNG PEOPLE
REDACTED,55.95,29/03/2021,SHOE ZONE (INTERNET),Charity Funding Forge re Central XXXXX,SHOE STORES,CHILDREN & YOUNG PEOPLE
REDACTED,8.32,29/03/2021,THE RANGE,children in care clock new child,DEPARTMENT STORES,CHILDREN & YOUNG PEOPLE
REDACTED,50.28,29/03/2021,B&M 405 - WESTERN WAY,children in care items new child,SUNDRY GENERAL MERCHANDISE,CHILDREN & YOUNG PEOPLE
REDACTED,5.94,29/03/2021,MCDONALDS 1560,children in care new child key working,"EATING PLACES, RESTAURANTS",CHILDREN & YOUNG PEOPLE
REDACTED,82.46,29/03/2021,ARGOS LTD,1081696/N115 Setting up home item for client,DISCOUNT STORES,CHILDREN & YOUNG PEOPLE
REDACTED,382.00,29/03/2021,E B CARPETS,1178430/431S Setting up home item for client,"EQUIP, FURNITURE, HOME FURNSHNGS STRS (EXCPT APPL)",CHILDREN & YOUNG PEOPLE
REDACTED,258.33,29/03/2021,ARGOS LTD,2010301/429S Setting up home items for client,DISCOUNT STORES,CHILDREN & YOUNG PEOPLE
REDACTED,15.25,29/03/2021,AMZNMktplace,2010864/S432 Setting up home item for client,MISCELLANEOUS AND SPECIALTY RETAIL STORES,CHILDREN & YOUNG PEOPLE
REDACTED,165.84,29/03/2021,ARGOS LTD,2029507/,DISCOUNT STORES,CHILDREN & YOUNG PEOPLE
REDACTED,8.30,29/03/2021,Amazon.co.uk MU9RC5MQ4,Envelopes for neighbour notifications,DIRECT MARKETING-OTHER DIRECT MARKETERS/NOT ELSEW.,"GROWTH, HIGHWAYS & INFRASTRUCTURE"
REDACTED,132.00,29/03/2021,POST OFFICE COUNTER,Stamps for Neighbour Letters,POSTAL SERVICES-GOVERNMENT ONLY,"GROWTH, HIGHWAYS & INFRASTRUCTURE"
REDACTED,1.66,29/03/2021,B&M 055 - STOWMARKET,Dettol Clothing Antibac for H.V.,SUNDRY GENERAL MERCHANDISE,CHILDREN & YOUNG PEOPLE
REDACTED,6.66,29/03/2021,Amazon Prime MU0CG5MW4,Children in Care - Amazon prime monthly fee,DIRECT MARKETING - CONTINUITY/SUBSCRIPTION MERCHANTS,CHILDREN & YOUNG PEOPLE
REDACTED,286.62,30/03/2021,ARGOS LTD,"333853. W96. TV, Office chair & DEsk",DISCOUNT STORES,CHILDREN & YOUNG PEOPLE
REDACTED,413.79,30/03/2021,AMZNMKTPLACE AMAZON.CO,515610. 1222W. SUHA,MISCELLANEOUS AND SPECIALTY RETAIL STORES,CHILDREN & YOUNG PEOPLE
REDACTED,187.46,30/03/2021,ARGOS LTD,541051. W95.  TV & Bedding,DISCOUNT STORES,CHILDREN & YOUNG PEOPLE
REDACTED,281.46,30/03/2021,"LYNDA.COM, INC.",Software licence for SCC NTS Intelligence Team,SCHOOLS & EDUCATIONAL SVC-NOT ELSEWHERE CLASSIFIED,FIRE & PUBLIC SAFETY
REDACTED,49.45,30/03/2021,AMZNMktplace,Toys and games for activity group,MISCELLANEOUS AND SPECIALTY RETAIL STORES,CHILDREN & YOUNG PEOPLE
REDACTED,17.00,30/03/2021,HMCTS-SUFFOLK024,Court fine. for XXXXX,FINES,CHILDREN & YOUNG PEOPLE
REDACTED,61.97,30/03/2021,SPORTSDIRECT.COM,460597/S380 Work clothing for client,SPORTING GOODS STORES,CHILDREN & YOUNG PEOPLE
REDACTED,119.00,30/03/2021,giffgaff,494636/S357 Phone for client - equip for contact,TELECOM INCL PREPAID/RECURRING PHONE SVCS,CHILDREN & YOUNG PEOPLE
REDACTED,9.58,30/03/2021,AMZNMktplace,522235/S362 Setting up home item for client,MISCELLANEOUS AND SPECIALTY RETAIL STORES,CHILDREN & YOUNG PEOPLE
REDACTED,9.16,30/03/2021,AMZNMktplace,customer goods,MISCELLANEOUS AND SPECIALTY RETAIL STORES,ADULT & COMMUNITY SERVICES
REDACTED,.96,30/03/2021,POST OFFICE COUNTER,1 x 2nd Stamp,POSTAL SERVICES-GOVERNMENT ONLY,CHILDREN & YOUNG PEOPLE
REDACTED,4.95,31/03/2021,PAYPAL  SIMPLYPLAST,Additional postage cost for acrylic cover order.,ADVERTISING SERVICES,"GROWTH, HIGHWAYS & INFRASTRUCTURE"
REDACTED,53.94,31/03/2021,AMZNMktplace,Arm Protectors for Home First,MISCELLANEOUS AND SPECIALTY RETAIL STORES,ADULT & COMMUNITY SERVICES
REDACTED,44.92,31/03/2021,ARGOS LTD,Child in care - Phone for XXXXX,DISCOUNT STORES,CHILDREN & YOUNG PEOPLE
REDACTED,8.95,31/03/2021,POST OFFICE COUNTER,Post Services to send evidence to SCC Legal,POSTAL SERVICES-GOVERNMENT ONLY,FIRE & PUBLIC SAFETY
REDACTED,51.53,31/03/2021,FOUR SQUARE HEALTHCARE,Breast feeding pumps.,DENTAL/LAB/MED/OPHTHALMIC HOSP EQUIP & SUPPLIES,CHILDREN & YOUNG PEOPLE
REDACTED,35.97,31/03/2021,AMZNMktplace,300 Paper cups for Training Centre,MISCELLANEOUS AND SPECIALTY RETAIL STORES,FIRE & PUBLIC SAFETY
REDACTED,42.00,31/03/2021,SumUp   The Melting Po,children in care activity sweet van,"MISC FOOD STORE-CONVENIENCE,MRKT,SPLTY,VENDNG MACS",CHILDREN & YOUNG PEOPLE
REDACTED,34.00,31/03/2021,DVLA DRIVER ONLINE,2002599/S381 Driving licence for client,GOVERNMENT SERVICES-NOT ELSEWHERE CLASSIFIED,CHILDREN & YOUNG PEOPLE
REDACTED,46.14,31/03/2021,AMZNMktplace,customer goods,MISCELLANEOUS AND SPECIALTY RETAIL STORES,ADULT & COMMUNITY SERVICES
REDACTED,278.33,31/03/2021,CURRYS ONLINE,Cooker for family in need. 086JM305,ELECTRONIC SALES,CHILDREN & YOUNG PEOPLE
